Body Name,Date Paid,Transaction Number,Amount,Supplier Name,Supplier Type,Expense Area,Cost Centre Description,Expense Type
Cambridgeshire County Council,04-Sep-15,19223169-11982742,-36807,Softcat Ltd,Trade Supplier,LGSS,Norwich IT One-off recharges,Computer software - Computer software
Cambridgeshire County Council,21-Sep-15,17161198-12043832,-36618,Tribal Education Ltd,Trade Supplier,LGSS Managed,Effective Property Asset Management,Capital WIP - land and buildings  -  Construction cost
Cambridgeshire County Council,07-Sep-15,19172290-11985898,-27967,Senad Ltd,Care Establishment,S&C,Placements - Education,Independent School Placements
Cambridgeshire County Council,25-Sep-15,19273719-12073987,-7975,Lcc Support Services Ltd,Trade Supplier,LGSS Managed,Shire Hall Area,Building cleaning
Cambridgeshire County Council,01-Sep-15,19098598-11967755,-7900,First Eastern Counties Buses Ltd,Trade Supplier,Passenger Transport,Concessionary Fares,Concessions - payments to bus operator
Cambridgeshire County Council,21-Sep-15,19217352-12044021,-7273,Cambridgeshire Learning And Community Partnerships,Trade Supplier,S&C,BSF LEP,Capital WIP - land and buildings  -  Construction cost
Cambridgeshire County Council,08-Sep-15,19252630-11989408,-6994,Care Afloat,Care Establishment,S&C,Placements - Social Care,Agency Placements - Out County
Cambridgeshire County Council,22-Sep-15,19319522-12048209,-6960,Thera East Anglia,Trust (Other),2 - Operations - Learning Disability,LDP South Cambs Team,Day and Domicillary Care Independent Sector
Cambridgeshire County Council,04-Sep-15,19250893-11982943,-6743,Thera East Anglia,Trust (Other),2 - Operations - Learning Disability,LDP E Cambs Team,Daycare
Cambridgeshire County Council,25-Sep-15,19268852-12074101,-5873,Affinity Trust,Care Establishment,2 - Operations - Learning Disability,LDP South Cambs Team,Supported Living
Cambridgeshire County Council,04-Sep-15,19248561-11983040,-2733,The Mary Hare Primary School,Education,S&C,Placements - Education,Independent School Placements
Cambridgeshire County Council,11-Sep-15,19268629-12003672,-2679,Xma Limited,Trade Supplier,LRNG,ICT Service Procurement,Materials for resale
Cambridgeshire County Council,23-Sep-15,19219096-12051712,-2464,Chubb Fire & Security Ltd,Company,LGSS Managed,Whittlesford Highways Depot,Alarm / CCTV system
Cambridgeshire County Council,03-Sep-15,19227361-11977273,-2459,Orchard Manor (Scope),Care Establishment,2 - Operations - Learning Disability,LDP City Team,Residential Independent Sector
Cambridgeshire County Council,03-Sep-15,19227365-11977274,-2459,Orchard Manor (Scope),Care Establishment,2 - Operations - Learning Disability,LDP City Team,Residential Independent Sector
Cambridgeshire County Council,03-Sep-15,19227366-11977275,-2459,Orchard Manor (Scope),Care Establishment,2 - Operations - Learning Disability,LDP City Team,Residential Independent Sector
Cambridgeshire County Council,03-Sep-15,19227370-11977276,-2459,Orchard Manor (Scope),Care Establishment,2 - Operations - Learning Disability,LDP City Team,Residential Independent Sector
Cambridgeshire County Council,03-Sep-15,19227380-11977278,-2459,Orchard Manor (Scope),Care Establishment,2 - Operations - Learning Disability,LDP City Team,Residential Independent Sector
Cambridgeshire County Council,03-Sep-15,19227385-11977279,-2459,Orchard Manor (Scope),Care Establishment,2 - Operations - Learning Disability,LDP City Team,Residential Independent Sector
Cambridgeshire County Council,03-Sep-15,19227386-11977280,-2459,Orchard Manor (Scope),Care Establishment,2 - Operations - Learning Disability,LDP City Team,Residential Independent Sector
Cambridgeshire County Council,03-Sep-15,19227387-11977281,-2459,Orchard Manor (Scope),Care Establishment,2 - Operations - Learning Disability,LDP City Team,Residential Independent Sector
Cambridgeshire County Council,03-Sep-15,19231267-11977264,-2459,Orchard Manor (Scope),Care Establishment,2 - Operations - Learning Disability,LDP City Team,Residential Independent Sector
Cambridgeshire County Council,03-Sep-15,19246163-11977282,-2303,Orchard Manor (Scope),Care Establishment,2 - Operations - Learning Disability,LDP South Cambs Team,Residential Independent Sector
Cambridgeshire County Council,03-Sep-15,19246168-11977284,-2303,Orchard Manor (Scope),Care Establishment,2 - Operations - Learning Disability,LDP South Cambs Team,Residential Independent Sector
Cambridgeshire County Council,03-Sep-15,19246171-11977285,-2303,Orchard Manor (Scope),Care Establishment,2 - Operations - Learning Disability,LDP South Cambs Team,Residential Independent Sector
Cambridgeshire County Council,03-Sep-15,19246181-11977286,-2303,Orchard Manor (Scope),Care Establishment,2 - Operations - Learning Disability,LDP South Cambs Team,Residential Independent Sector
Cambridgeshire County Council,03-Sep-15,19246188-11977287,-2303,Orchard Manor (Scope),Care Establishment,2 - Operations - Learning Disability,LDP South Cambs Team,Residential Independent Sector
Cambridgeshire County Council,03-Sep-15,19223919-11977083,-2227,Buchan Healthcare Ltd,Care Establishment,4 - Commissioning - Mental Health & Supporting People,Dom Blocks,Respite Independent Sector
Cambridgeshire County Council,18-Sep-15,19293564-12033495,-1970,Social Care Solutions Ltd,Care Establishment,2 - Operations - Learning Disability,LDP E Cambs Team,Day and Domicillary Care Independent Sector
Cambridgeshire County Council,18-Sep-15,19293567-12033496,-1970,Social Care Solutions Ltd,Care Establishment,2 - Operations - Learning Disability,LDP E Cambs Team,Day and Domicillary Care Independent Sector
Cambridgeshire County Council,18-Sep-15,19293569-12033497,-1970,Social Care Solutions Ltd,Care Establishment,2 - Operations - Learning Disability,LDP E Cambs Team,Day and Domicillary Care Independent Sector
Cambridgeshire County Council,18-Sep-15,19293573-12033498,-1970,Social Care Solutions Ltd,Care Establishment,2 - Operations - Learning Disability,LDP E Cambs Team,Day and Domicillary Care Independent Sector
Cambridgeshire County Council,18-Sep-15,19293575-12033499,-1970,Social Care Solutions Ltd,Care Establishment,2 - Operations - Learning Disability,LDP E Cambs Team,Day and Domicillary Care Independent Sector
Cambridgeshire County Council,18-Sep-15,19293576-12033500,-1970,Social Care Solutions Ltd,Care Establishment,2 - Operations - Learning Disability,LDP E Cambs Team,Day and Domicillary Care Independent Sector
Cambridgeshire County Council,18-Sep-15,19293579-12033501,-1970,Social Care Solutions Ltd,Care Establishment,2 - Operations - Learning Disability,LDP E Cambs Team,Day and Domicillary Care Independent Sector
Cambridgeshire County Council,18-Sep-15,19293580-12033502,-1970,Social Care Solutions Ltd,Care Establishment,2 - Operations - Learning Disability,LDP E Cambs Team,Day and Domicillary Care Independent Sector
Cambridgeshire County Council,18-Sep-15,19293581-12033503,-1970,Social Care Solutions Ltd,Care Establishment,2 - Operations - Learning Disability,LDP E Cambs Team,Day and Domicillary Care Independent Sector
Cambridgeshire County Council,18-Sep-15,19293586-12033484,-1970,Social Care Solutions Ltd,Care Establishment,2 - Operations - Learning Disability,LDP E Cambs Team,Day and Domicillary Care Independent Sector
Cambridgeshire County Council,18-Sep-15,19293587-12033485,-1970,Social Care Solutions Ltd,Care Establishment,2 - Operations - Learning Disability,LDP E Cambs Team,Day and Domicillary Care Independent Sector
Cambridgeshire County Council,18-Sep-15,19293588-12033486,-1970,Social Care Solutions Ltd,Care Establishment,2 - Operations - Learning Disability,LDP E Cambs Team,Day and Domicillary Care Independent Sector
Cambridgeshire County Council,18-Sep-15,19293594-12033488,-1970,Social Care Solutions Ltd,Care Establishment,2 - Operations - Learning Disability,LDP E Cambs Team,Day and Domicillary Care Independent Sector
Cambridgeshire County Council,18-Sep-15,19293598-12033489,-1970,Social Care Solutions Ltd,Care Establishment,2 - Operations - Learning Disability,LDP E Cambs Team,Day and Domicillary Care Independent Sector
Cambridgeshire County Council,18-Sep-15,19293601-12033490,-1970,Social Care Solutions Ltd,Care Establishment,2 - Operations - Learning Disability,LDP E Cambs Team,Day and Domicillary Care Independent Sector
Cambridgeshire County Council,18-Sep-15,19293602-12033491,-1970,Social Care Solutions Ltd,Care Establishment,2 - Operations - Learning Disability,LDP E Cambs Team,Day and Domicillary Care Independent Sector
Cambridgeshire County Council,18-Sep-15,19293605-12033492,-1970,Social Care Solutions Ltd,Care Establishment,2 - Operations - Learning Disability,LDP E Cambs Team,Day and Domicillary Care Independent Sector
Cambridgeshire County Council,18-Sep-15,19293608-12033493,-1970,Social Care Solutions Ltd,Care Establishment,2 - Operations - Learning Disability,LDP E Cambs Team,Day and Domicillary Care Independent Sector
Cambridgeshire County Council,18-Sep-15,19293609-12033494,-1970,Social Care Solutions Ltd,Care Establishment,2 - Operations - Learning Disability,LDP E Cambs Team,Day and Domicillary Care Independent Sector
Cambridgeshire County Council,24-Sep-15,19325746-12063293,-1951,Affinity Trust,Care Establishment,2 - Operations - Learning Disability,LDP Fenland Team,Supported Living
Cambridgeshire County Council,24-Sep-15,19330496-12063295,-1951,Affinity Trust,Care Establishment,2 - Operations - Learning Disability,LDP Fenland Team,Supported Living
Cambridgeshire County Council,24-Sep-15,19330504-12063296,-1951,Affinity Trust,Care Establishment,2 - Operations - Learning Disability,LDP Fenland Team,Supported Living
Cambridgeshire County Council,24-Sep-15,19330506-12063297,-1951,Affinity Trust,Care Establishment,2 - Operations - Learning Disability,LDP Fenland Team,Supported Living
Cambridgeshire County Council,01-Sep-15,19217065-11967726,-1887,Mencap,Care Establishment,2 - Operations - Learning Disability,LDP City Team,Supported Living
Cambridgeshire County Council,24-Sep-15,19281526-12059455,-1887,Redacted Personal Data,Individual,2 - Operations - Learning Disability,LDP Fenland Team,Direct Payments - Social Services
Cambridgeshire County Council,24-Sep-15,19281533-12059456,-1887,Redacted Personal Data,Individual,2 - Operations - Learning Disability,LDP Fenland Team,Direct Payments - Social Services
Cambridgeshire County Council,24-Sep-15,19281580-12059458,-1887,Redacted Personal Data,Individual,2 - Operations - Learning Disability,LDP Fenland Team,Direct Payments - Social Services
Cambridgeshire County Council,24-Sep-15,19281581-12059459,-1887,Redacted Personal Data,Individual,2 - Operations - Learning Disability,LDP Fenland Team,Direct Payments - Social Services
Cambridgeshire County Council,24-Sep-15,19281604-12059460,-1887,Redacted Personal Data,Individual,2 - Operations - Learning Disability,LDP Fenland Team,Direct Payments - Social Services
Cambridgeshire County Council,24-Sep-15,19281605-12059461,-1887,Redacted Personal Data,Individual,2 - Operations - Learning Disability,LDP Fenland Team,Direct Payments - Social Services
Cambridgeshire County Council,24-Sep-15,19292058-12059454,-1887,Redacted Personal Data,Individual,2 - Operations - Learning Disability,LDP Fenland Team,Direct Payments - Social Services
Cambridgeshire County Council,03-Sep-15,19223918-11977091,-1713,Hunters Healthcare (Hunters Down),Care Establishment,4 - Commissioning - Mental Health & Supporting People,Dom Blocks,Residential Independent Sector
Cambridgeshire County Council,02-Sep-15,19210071-11972816,-1677,Scope #1,Care Establishment,S&C,Placements - Social Care,Agency Placements - Out County
Cambridgeshire County Council,18-Sep-15,19284104-12038712,-1649,Dimensions (Uk) Ltd,Care Establishment,2 - Operations - Learning Disability,LDP South Cambs - Special Needs,Supported Living
Cambridgeshire County Council,18-Sep-15,19284105-12038713,-1649,Dimensions (Uk) Ltd,Care Establishment,2 - Operations - Learning Disability,LDP South Cambs - Special Needs,Supported Living
Cambridgeshire County Council,18-Sep-15,19284110-12038718,-1649,Dimensions (Uk) Ltd,Care Establishment,2 - Operations - Learning Disability,LDP South Cambs - Special Needs,Supported Living
Cambridgeshire County Council,18-Sep-15,19284136-12038701,-1649,Dimensions (Uk) Ltd,Care Establishment,2 - Operations - Learning Disability,LDP South Cambs - Special Needs,Supported Living
Cambridgeshire County Council,18-Sep-15,19284140-12038703,-1649,Dimensions (Uk) Ltd,Care Establishment,2 - Operations - Learning Disability,LDP South Cambs - Special Needs,Supported Living
Cambridgeshire County Council,18-Sep-15,19294087-12038744,-1649,Dimensions (Uk) Ltd,Care Establishment,2 - Operations - Learning Disability,LDP South Cambs - Special Needs,Supported Living
Cambridgeshire County Council,18-Sep-15,19294088-12038745,-1649,Dimensions (Uk) Ltd,Care Establishment,2 - Operations - Learning Disability,LDP South Cambs - Special Needs,Supported Living
Cambridgeshire County Council,18-Sep-15,19294089-12038746,-1649,Dimensions (Uk) Ltd,Care Establishment,2 - Operations - Learning Disability,LDP South Cambs - Special Needs,Supported Living
Cambridgeshire County Council,18-Sep-15,19294094-12038751,-1649,Dimensions (Uk) Ltd,Care Establishment,2 - Operations - Learning Disability,LDP South Cambs - Special Needs,Supported Living
Cambridgeshire County Council,18-Sep-15,19294096-12038753,-1649,Dimensions (Uk) Ltd,Care Establishment,2 - Operations - Learning Disability,LDP South Cambs - Special Needs,Supported Living
Cambridgeshire County Council,18-Sep-15,19294097-12038754,-1649,Dimensions (Uk) Ltd,Care Establishment,2 - Operations - Learning Disability,LDP South Cambs - Special Needs,Supported Living
Cambridgeshire County Council,18-Sep-15,19294098-12038755,-1649,Dimensions (Uk) Ltd,Care Establishment,2 - Operations - Learning Disability,LDP South Cambs - Special Needs,Supported Living
Cambridgeshire County Council,18-Sep-15,19294101-12038758,-1649,Dimensions (Uk) Ltd,Care Establishment,2 - Operations - Learning Disability,LDP South Cambs - Special Needs,Supported Living
Cambridgeshire County Council,18-Sep-15,19294102-12038759,-1649,Dimensions (Uk) Ltd,Care Establishment,2 - Operations - Learning Disability,LDP South Cambs - Special Needs,Supported Living
Cambridgeshire County Council,18-Sep-15,19294104-12038761,-1649,Dimensions (Uk) Ltd,Care Establishment,2 - Operations - Learning Disability,LDP South Cambs - Special Needs,Supported Living
Cambridgeshire County Council,18-Sep-15,19294105-12038762,-1649,Dimensions (Uk) Ltd,Care Establishment,2 - Operations - Learning Disability,LDP South Cambs - Special Needs,Supported Living
Cambridgeshire County Council,18-Sep-15,19294123-12038778,-1649,Dimensions (Uk) Ltd,Care Establishment,2 - Operations - Learning Disability,LDP South Cambs - Special Needs,Supported Living
Cambridgeshire County Council,18-Sep-15,19294125-12038780,-1649,Dimensions (Uk) Ltd,Care Establishment,2 - Operations - Learning Disability,LDP South Cambs - Special Needs,Supported Living
Cambridgeshire County Council,18-Sep-15,19294137-12038791,-1649,Dimensions (Uk) Ltd,Care Establishment,2 - Operations - Learning Disability,LDP South Cambs - Special Needs,Supported Living
Cambridgeshire County Council,01-Sep-15,19156818-11967922,-1600,South Cambridgeshire District Council,Other Public Bodies,Growth & Economy,Archive Store,Business rates
Cambridgeshire County Council,23-Sep-15,19320579-12051717,-1500,Tim Redmond,Trade Supplier,LRNG,Cambs Music  County Ensembles,Pay - Casual Staff - Course Instructors
Cambridgeshire County Council,18-Sep-15,19272470-12039859,-1467,Little Hands Nursery Schools Limited,Nursery,SMI's,High needs top-up - Early Years,SEN Funding
Cambridgeshire County Council,18-Sep-15,19285589-12038874,-1457,Dimensions (Uk) Ltd,Care Establishment,2 - Operations - Learning Disability,LDP South Cambs - Special Needs,Day and Domicillary Care Independent Sector
Cambridgeshire County Council,18-Sep-15,19285592-12038877,-1457,Dimensions (Uk) Ltd,Care Establishment,2 - Operations - Learning Disability,LDP South Cambs - Special Needs,Day and Domicillary Care Independent Sector
Cambridgeshire County Council,18-Sep-15,19285595-12038880,-1457,Dimensions (Uk) Ltd,Care Establishment,2 - Operations - Learning Disability,LDP South Cambs - Special Needs,Day and Domicillary Care Independent Sector
Cambridgeshire County Council,18-Sep-15,19285600-12038885,-1457,Dimensions (Uk) Ltd,Care Establishment,2 - Operations - Learning Disability,LDP South Cambs - Special Needs,Day and Domicillary Care Independent Sector
Cambridgeshire County Council,18-Sep-15,19285601-12038886,-1457,Dimensions (Uk) Ltd,Care Establishment,2 - Operations - Learning Disability,LDP South Cambs - Special Needs,Day and Domicillary Care Independent Sector
Cambridgeshire County Council,18-Sep-15,19285603-12038888,-1457,Dimensions (Uk) Ltd,Care Establishment,2 - Operations - Learning Disability,LDP South Cambs - Special Needs,Day and Domicillary Care Independent Sector
Cambridgeshire County Council,18-Sep-15,19285604-12038889,-1457,Dimensions (Uk) Ltd,Care Establishment,2 - Operations - Learning Disability,LDP South Cambs - Special Needs,Day and Domicillary Care Independent Sector
Cambridgeshire County Council,18-Sep-15,19285607-12038910,-1457,Dimensions (Uk) Ltd,Care Establishment,2 - Operations - Learning Disability,LDP South Cambs - Special Needs,Day and Domicillary Care Independent Sector
Cambridgeshire County Council,18-Sep-15,19285608-12038911,-1457,Dimensions (Uk) Ltd,Care Establishment,2 - Operations - Learning Disability,LDP South Cambs - Special Needs,Day and Domicillary Care Independent Sector
Cambridgeshire County Council,18-Sep-15,19285618-12038921,-1457,Dimensions (Uk) Ltd,Care Establishment,2 - Operations - Learning Disability,LDP South Cambs - Special Needs,Day and Domicillary Care Independent Sector
Cambridgeshire County Council,18-Sep-15,19285623-12038926,-1457,Dimensions (Uk) Ltd,Care Establishment,2 - Operations - Learning Disability,LDP South Cambs - Special Needs,Day and Domicillary Care Independent Sector
Cambridgeshire County Council,18-Sep-15,19285636-12038903,-1457,Dimensions (Uk) Ltd,Care Establishment,2 - Operations - Learning Disability,LDP South Cambs - Special Needs,Day and Domicillary Care Independent Sector
Cambridgeshire County Council,18-Sep-15,19285639-12038906,-1457,Dimensions (Uk) Ltd,Care Establishment,2 - Operations - Learning Disability,LDP South Cambs - Special Needs,Day and Domicillary Care Independent Sector
Cambridgeshire County Council,18-Sep-15,19285642-12038844,-1457,Dimensions (Uk) Ltd,Care Establishment,2 - Operations - Learning Disability,LDP South Cambs - Special Needs,Day and Domicillary Care Independent Sector
Cambridgeshire County Council,18-Sep-15,19285645-12038847,-1457,Dimensions (Uk) Ltd,Care Establishment,2 - Operations - Learning Disability,LDP South Cambs - Special Needs,Day and Domicillary Care Independent Sector
Cambridgeshire County Council,18-Sep-15,19285646-12038848,-1457,Dimensions (Uk) Ltd,Care Establishment,2 - Operations - Learning Disability,LDP South Cambs - Special Needs,Day and Domicillary Care Independent Sector
Cambridgeshire County Council,18-Sep-15,19285647-12038849,-1457,Dimensions (Uk) Ltd,Care Establishment,2 - Operations - Learning Disability,LDP South Cambs - Special Needs,Day and Domicillary Care Independent Sector
Cambridgeshire County Council,18-Sep-15,19285655-12038857,-1457,Dimensions (Uk) Ltd,Care Establishment,2 - Operations - Learning Disability,LDP South Cambs - Special Needs,Day and Domicillary Care Independent Sector
Cambridgeshire County Council,18-Sep-15,19285658-12038860,-1457,Dimensions (Uk) Ltd,Care Establishment,2 - Operations - Learning Disability,LDP South Cambs - Special Needs,Day and Domicillary Care Independent Sector
Cambridgeshire County Council,18-Sep-15,19284124-12038689,-1414,Dimensions (Uk) Ltd,Care Establishment,2 - Operations - Learning Disability,LDP South Cambs - Special Needs,Supported Living
Cambridgeshire County Council,18-Sep-15,19293593-12033487,-1407,Social Care Solutions Ltd,Care Establishment,2 - Operations - Learning Disability,LDP E Cambs Team,Day and Domicillary Care Independent Sector
Cambridgeshire County Council,18-Sep-15,19302066-12036810,-1393,Prime Life Ltd,Care Establishment,4 - Commissioning - Mental Health & Supporting People,E Cambs & Fenland Mental Health Team,Residential Independent Sector
Cambridgeshire County Council,18-Sep-15,19279213-12019807,-1383,Voyage (Lichfield),Care Establishment,2 - Operations - Learning Disability,LDP South Cambs Team,SDS - Care and support Services
Cambridgeshire County Council,18-Sep-15,19279215-12019809,-1383,Voyage (Lichfield),Care Establishment,2 - Operations - Learning Disability,LDP South Cambs Team,SDS - Care and support Services
Cambridgeshire County Council,18-Sep-15,19279218-12019811,-1383,Voyage (Lichfield),Care Establishment,2 - Operations - Learning Disability,LDP South Cambs Team,SDS - Care and support Services
Cambridgeshire County Council,18-Sep-15,19279222-12019813,-1383,Voyage (Lichfield),Care Establishment,2 - Operations - Learning Disability,LDP South Cambs Team,SDS - Care and support Services
Cambridgeshire County Council,18-Sep-15,19290081-12019742,-1383,Voyage (Lichfield),Care Establishment,2 - Operations - Learning Disability,LDP South Cambs Team,SDS - Care and support Services
Cambridgeshire County Council,18-Sep-15,19290084-12019743,-1383,Voyage (Lichfield),Care Establishment,2 - Operations - Learning Disability,LDP South Cambs Team,SDS - Care and support Services
Cambridgeshire County Council,18-Sep-15,19290106-12019754,-1383,Voyage (Lichfield),Care Establishment,2 - Operations - Learning Disability,LDP South Cambs Team,SDS - Care and support Services
Cambridgeshire County Council,18-Sep-15,19290107-12019755,-1383,Voyage (Lichfield),Care Establishment,2 - Operations - Learning Disability,LDP South Cambs Team,SDS - Care and support Services
Cambridgeshire County Council,18-Sep-15,19290113-12019756,-1383,Voyage (Lichfield),Care Establishment,2 - Operations - Learning Disability,LDP South Cambs Team,SDS - Care and support Services
Cambridgeshire County Council,18-Sep-15,19291203-12019680,-1383,Voyage (Lichfield),Care Establishment,2 - Operations - Learning Disability,LDP South Cambs Team,SDS - Care and support Services
Cambridgeshire County Council,18-Sep-15,19291204-12019681,-1383,Voyage (Lichfield),Care Establishment,2 - Operations - Learning Disability,LDP South Cambs Team,SDS - Care and support Services
Cambridgeshire County Council,18-Sep-15,19291205-12019682,-1383,Voyage (Lichfield),Care Establishment,2 - Operations - Learning Disability,LDP South Cambs Team,SDS - Care and support Services
Cambridgeshire County Council,18-Sep-15,19291206-12019683,-1383,Voyage (Lichfield),Care Establishment,2 - Operations - Learning Disability,LDP South Cambs Team,SDS - Care and support Services
Cambridgeshire County Council,18-Sep-15,19291211-12019686,-1383,Voyage (Lichfield),Care Establishment,2 - Operations - Learning Disability,LDP South Cambs Team,SDS - Care and support Services
Cambridgeshire County Council,18-Sep-15,19291215-12019688,-1383,Voyage (Lichfield),Care Establishment,2 - Operations - Learning Disability,LDP South Cambs Team,SDS - Care and support Services
Cambridgeshire County Council,18-Sep-15,19291218-12019690,-1383,Voyage (Lichfield),Care Establishment,2 - Operations - Learning Disability,LDP South Cambs Team,SDS - Care and support Services
Cambridgeshire County Council,18-Sep-15,19291222-12019691,-1383,Voyage (Lichfield),Care Establishment,2 - Operations - Learning Disability,LDP South Cambs Team,SDS - Care and support Services
Cambridgeshire County Council,18-Sep-15,19291230-12019695,-1383,Voyage (Lichfield),Care Establishment,2 - Operations - Learning Disability,LDP South Cambs Team,SDS - Care and support Services
Cambridgeshire County Council,18-Sep-15,19291231-12019696,-1383,Voyage (Lichfield),Care Establishment,2 - Operations - Learning Disability,LDP South Cambs Team,SDS - Care and support Services
Cambridgeshire County Council,18-Sep-15,19285586-12038936,-1249,Dimensions (Uk) Ltd,Care Establishment,2 - Operations - Learning Disability,LDP South Cambs - Special Needs,Day and Domicillary Care Independent Sector
Cambridgeshire County Council,18-Sep-15,19291229-12019694,-1186,Voyage (Lichfield),Care Establishment,2 - Operations - Learning Disability,LDP South Cambs Team,SDS - Care and support Services
Cambridgeshire County Council,14-Sep-15,19183174-12005834,-1115,Guidant Group,Trade Supplier,LGSS Managed,Hawthorns Community Home,Pay - Agency Staff
Cambridgeshire County Council,22-Sep-15,19255093-12048652,-1082,Hunters Healthcare (Hunters Down),Care Establishment,4 - Commissioning - Mental Health & Supporting People,Dom Blocks,Residential Independent Sector
Cambridgeshire County Council,24-Sep-15,19337514-12064096,-1070,Cottenham Court Nursing Home,Care Establishment,3 - Operations - Countywide Services,Countywide PD Service,Nursing Independent Sector
Cambridgeshire County Council,24-Sep-15,19337515-12064097,-1070,Cottenham Court Nursing Home,Care Establishment,3 - Operations - Countywide Services,Countywide PD Service,Nursing Independent Sector
Cambridgeshire County Council,24-Sep-15,19337516-12064098,-1070,Cottenham Court Nursing Home,Care Establishment,3 - Operations - Countywide Services,Countywide PD Service,Nursing Independent Sector
Cambridgeshire County Council,24-Sep-15,19337522-12064104,-1070,Cottenham Court Nursing Home,Care Establishment,3 - Operations - Countywide Services,Countywide PD Service,Nursing Independent Sector
Cambridgeshire County Council,24-Sep-15,19337527-12064109,-1070,Cottenham Court Nursing Home,Care Establishment,3 - Operations - Countywide Services,Countywide PD Service,Nursing Independent Sector
Cambridgeshire County Council,24-Sep-15,19337528-12064110,-1070,Cottenham Court Nursing Home,Care Establishment,3 - Operations - Countywide Services,Countywide PD Service,Nursing Independent Sector
Cambridgeshire County Council,24-Sep-15,19337530-12064112,-1070,Cottenham Court Nursing Home,Care Establishment,3 - Operations - Countywide Services,Countywide PD Service,Nursing Independent Sector
Cambridgeshire County Council,24-Sep-15,19337532-12064114,-1070,Cottenham Court Nursing Home,Care Establishment,3 - Operations - Countywide Services,Countywide PD Service,Nursing Independent Sector
Cambridgeshire County Council,24-Sep-15,19337533-12064115,-1070,Cottenham Court Nursing Home,Care Establishment,3 - Operations - Countywide Services,Countywide PD Service,Nursing Independent Sector
Cambridgeshire County Council,24-Sep-15,19337535-12064117,-1070,Cottenham Court Nursing Home,Care Establishment,3 - Operations - Countywide Services,Countywide PD Service,Nursing Independent Sector
Cambridgeshire County Council,24-Sep-15,19337537-12064119,-1070,Cottenham Court Nursing Home,Care Establishment,3 - Operations - Countywide Services,Countywide PD Service,Nursing Independent Sector
Cambridgeshire County Council,24-Sep-15,19337538-12064120,-1070,Cottenham Court Nursing Home,Care Establishment,3 - Operations - Countywide Services,Countywide PD Service,Nursing Independent Sector
Cambridgeshire County Council,24-Sep-15,19337542-12064124,-1070,Cottenham Court Nursing Home,Care Establishment,3 - Operations - Countywide Services,Countywide PD Service,Nursing Independent Sector
Cambridgeshire County Council,24-Sep-15,19337544-12064126,-1070,Cottenham Court Nursing Home,Care Establishment,3 - Operations - Countywide Services,Countywide PD Service,Nursing Independent Sector
Cambridgeshire County Council,24-Sep-15,19337545-12064127,-1070,Cottenham Court Nursing Home,Care Establishment,3 - Operations - Countywide Services,Countywide PD Service,Nursing Independent Sector
Cambridgeshire County Council,24-Sep-15,19337547-12064129,-1070,Cottenham Court Nursing Home,Care Establishment,3 - Operations - Countywide Services,Countywide PD Service,Nursing Independent Sector
Cambridgeshire County Council,24-Sep-15,19337552-12064133,-1070,Cottenham Court Nursing Home,Care Establishment,3 - Operations - Countywide Services,Countywide PD Service,Nursing Independent Sector
Cambridgeshire County Council,24-Sep-15,19337555-12064136,-1070,Cottenham Court Nursing Home,Care Establishment,3 - Operations - Countywide Services,Countywide PD Service,Nursing Independent Sector
Cambridgeshire County Council,24-Sep-15,19337556-12064137,-1070,Cottenham Court Nursing Home,Care Establishment,3 - Operations - Countywide Services,Countywide PD Service,Nursing Independent Sector
Cambridgeshire County Council,24-Sep-15,19337558-12064139,-1070,Cottenham Court Nursing Home,Care Establishment,3 - Operations - Countywide Services,Countywide PD Service,Nursing Independent Sector
Cambridgeshire County Council,24-Sep-15,19337559-12064140,-1070,Cottenham Court Nursing Home,Care Establishment,3 - Operations - Countywide Services,Countywide PD Service,Nursing Independent Sector
Cambridgeshire County Council,24-Sep-15,19337561-12064142,-1070,Cottenham Court Nursing Home,Care Establishment,3 - Operations - Countywide Services,Countywide PD Service,Nursing Independent Sector
Cambridgeshire County Council,24-Sep-15,19337562-12064143,-1070,Cottenham Court Nursing Home,Care Establishment,3 - Operations - Countywide Services,Countywide PD Service,Nursing Independent Sector
Cambridgeshire County Council,24-Sep-15,19265514-12059072,-1023,Redacted Personal Data,Individual,2 - Commissioning - Older people Pool,Wisbech Older People Integration Team,SDS - Personal Budgets Contributions
Cambridgeshire County Council,17-Sep-15,19269499-12013687,-1018,Guidant Group,Trade Supplier,4 - Operations - Providers services,17/18 St Lukes Close (Supp Living),Pay - Agency Staff
Cambridgeshire County Council,18-Sep-15,19281139-12027505,-1008,Atlas Home Support,Care Establishment,2 - Operations - Learning Disability,LDP City Team,SDS - Care and support Services
Cambridgeshire County Council,18-Sep-15,19281141-12027507,-1008,Atlas Home Support,Care Establishment,2 - Operations - Learning Disability,LDP City Team,SDS - Care and support Services
Cambridgeshire County Council,18-Sep-15,19281145-12027511,-1008,Atlas Home Support,Care Establishment,2 - Operations - Learning Disability,LDP City Team,SDS - Care and support Services
Cambridgeshire County Council,18-Sep-15,19292158-12027593,-1008,Atlas Home Support,Care Establishment,2 - Operations - Learning Disability,LDP City Team,SDS - Care and support Services
Cambridgeshire County Council,18-Sep-15,19292159-12027594,-1008,Atlas Home Support,Care Establishment,2 - Operations - Learning Disability,LDP City Team,SDS - Care and support Services
Cambridgeshire County Council,18-Sep-15,19292163-12027598,-1008,Atlas Home Support,Care Establishment,2 - Operations - Learning Disability,LDP City Team,SDS - Care and support Services
Cambridgeshire County Council,18-Sep-15,19292164-12027599,-1008,Atlas Home Support,Care Establishment,2 - Operations - Learning Disability,LDP City Team,SDS - Care and support Services
Cambridgeshire County Council,18-Sep-15,19292165-12027600,-1008,Atlas Home Support,Care Establishment,2 - Operations - Learning Disability,LDP City Team,SDS - Care and support Services
Cambridgeshire County Council,18-Sep-15,19292169-12027567,-1008,Atlas Home Support,Care Establishment,2 - Operations - Learning Disability,LDP City Team,SDS - Care and support Services
Cambridgeshire County Council,18-Sep-15,19292170-12027568,-1008,Atlas Home Support,Care Establishment,2 - Operations - Learning Disability,LDP City Team,SDS - Care and support Services
Cambridgeshire County Council,18-Sep-15,19292171-12027569,-1008,Atlas Home Support,Care Establishment,2 - Operations - Learning Disability,LDP City Team,SDS - Care and support Services
Cambridgeshire County Council,18-Sep-15,19292172-12027570,-1008,Atlas Home Support,Care Establishment,2 - Operations - Learning Disability,LDP City Team,SDS - Care and support Services
Cambridgeshire County Council,18-Sep-15,19292174-12027572,-1008,Atlas Home Support,Care Establishment,2 - Operations - Learning Disability,LDP City Team,SDS - Care and support Services
Cambridgeshire County Council,18-Sep-15,19292175-12027573,-1008,Atlas Home Support,Care Establishment,2 - Operations - Learning Disability,LDP City Team,SDS - Care and support Services
Cambridgeshire County Council,18-Sep-15,19292176-12027574,-1008,Atlas Home Support,Care Establishment,2 - Operations - Learning Disability,LDP City Team,SDS - Care and support Services
Cambridgeshire County Council,18-Sep-15,19292178-12027576,-1008,Atlas Home Support,Care Establishment,2 - Operations - Learning Disability,LDP City Team,SDS - Care and support Services
Cambridgeshire County Council,18-Sep-15,19292183-12027581,-1008,Atlas Home Support,Care Establishment,2 - Operations - Learning Disability,LDP City Team,SDS - Care and support Services
Cambridgeshire County Council,18-Sep-15,19292184-12027582,-1008,Atlas Home Support,Care Establishment,2 - Operations - Learning Disability,LDP City Team,SDS - Care and support Services
Cambridgeshire County Council,18-Sep-15,19292185-12027583,-1008,Atlas Home Support,Care Establishment,2 - Operations - Learning Disability,LDP City Team,SDS - Care and support Services
Cambridgeshire County Council,18-Sep-15,19292186-12027584,-1008,Atlas Home Support,Care Establishment,2 - Operations - Learning Disability,LDP City Team,SDS - Care and support Services
Cambridgeshire County Council,03-Sep-15,19246167-11977283,-987,Orchard Manor (Scope),Care Establishment,2 - Operations - Learning Disability,LDP South Cambs Team,Residential Independent Sector
Cambridgeshire County Council,18-Sep-15,19290964-12026598,-978,Caretech Community Services,Care Establishment,2 - Operations - Learning Disability,LDP South Cambs - Special Needs,Day and Domicillary Care Independent Sector
Cambridgeshire County Council,18-Sep-15,19290965-12026599,-978,Caretech Community Services,Care Establishment,2 - Operations - Learning Disability,LDP South Cambs - Special Needs,Day and Domicillary Care Independent Sector
Cambridgeshire County Council,18-Sep-15,19290966-12026600,-978,Caretech Community Services,Care Establishment,2 - Operations - Learning Disability,LDP South Cambs - Special Needs,Day and Domicillary Care Independent Sector
Cambridgeshire County Council,18-Sep-15,19290967-12026601,-978,Caretech Community Services,Care Establishment,2 - Operations - Learning Disability,LDP South Cambs - Special Needs,Day and Domicillary Care Independent Sector
Cambridgeshire County Council,18-Sep-15,19290969-12026603,-978,Caretech Community Services,Care Establishment,2 - Operations - Learning Disability,LDP South Cambs - Special Needs,Day and Domicillary Care Independent Sector
Cambridgeshire County Council,18-Sep-15,19290975-12026609,-978,Caretech Community Services,Care Establishment,2 - Operations - Learning Disability,LDP South Cambs - Special Needs,Day and Domicillary Care Independent Sector
Cambridgeshire County Council,18-Sep-15,19290978-12026612,-978,Caretech Community Services,Care Establishment,2 - Operations - Learning Disability,LDP South Cambs - Special Needs,Day and Domicillary Care Independent Sector
Cambridgeshire County Council,18-Sep-15,19290979-12026613,-978,Caretech Community Services,Care Establishment,2 - Operations - Learning Disability,LDP South Cambs - Special Needs,Day and Domicillary Care Independent Sector
Cambridgeshire County Council,18-Sep-15,19290984-12026618,-978,Caretech Community Services,Care Establishment,2 - Operations - Learning Disability,LDP South Cambs - Special Needs,Day and Domicillary Care Independent Sector
Cambridgeshire County Council,18-Sep-15,19290986-12026620,-978,Caretech Community Services,Care Establishment,2 - Operations - Learning Disability,LDP South Cambs - Special Needs,Day and Domicillary Care Independent Sector
Cambridgeshire County Council,18-Sep-15,19290987-12026621,-978,Caretech Community Services,Care Establishment,2 - Operations - Learning Disability,LDP South Cambs - Special Needs,Day and Domicillary Care Independent Sector
Cambridgeshire County Council,18-Sep-15,19290992-12026626,-978,Caretech Community Services,Care Establishment,2 - Operations - Learning Disability,LDP South Cambs - Special Needs,Day and Domicillary Care Independent Sector
Cambridgeshire County Council,18-Sep-15,19290993-12026627,-978,Caretech Community Services,Care Establishment,2 - Operations - Learning Disability,LDP South Cambs - Special Needs,Day and Domicillary Care Independent Sector
Cambridgeshire County Council,18-Sep-15,19290994-12026584,-978,Caretech Community Services,Care Establishment,2 - Operations - Learning Disability,LDP South Cambs - Special Needs,Day and Domicillary Care Independent Sector
Cambridgeshire County Council,18-Sep-15,19290996-12026586,-978,Caretech Community Services,Care Establishment,2 - Operations - Learning Disability,LDP South Cambs - Special Needs,Day and Domicillary Care Independent Sector
Cambridgeshire County Council,18-Sep-15,19291000-12026590,-978,Caretech Community Services,Care Establishment,2 - Operations - Learning Disability,LDP South Cambs - Special Needs,Day and Domicillary Care Independent Sector
Cambridgeshire County Council,18-Sep-15,19291002-12026592,-978,Caretech Community Services,Care Establishment,2 - Operations - Learning Disability,LDP South Cambs - Special Needs,Day and Domicillary Care Independent Sector
Cambridgeshire County Council,18-Sep-15,19291003-12026593,-978,Caretech Community Services,Care Establishment,2 - Operations - Learning Disability,LDP South Cambs - Special Needs,Day and Domicillary Care Independent Sector
Cambridgeshire County Council,18-Sep-15,19291004-12026594,-978,Caretech Community Services,Care Establishment,2 - Operations - Learning Disability,LDP South Cambs - Special Needs,Day and Domicillary Care Independent Sector
Cambridgeshire County Council,18-Sep-15,19291005-12026595,-978,Caretech Community Services,Care Establishment,2 - Operations - Learning Disability,LDP South Cambs - Special Needs,Day and Domicillary Care Independent Sector
Cambridgeshire County Council,10-Sep-15,19240393-11999920,-955,Woodlands Care Centre,Care Establishment,2 - Commissioning - Older people Pool,Older People Mental Health City & South,Nursing Independent Sector
Cambridgeshire County Council,10-Sep-15,19240394-11999921,-955,Woodlands Care Centre,Care Establishment,2 - Commissioning - Older people Pool,Older People Mental Health City & South,Nursing Independent Sector
Cambridgeshire County Council,10-Sep-15,19240395-11999922,-955,Woodlands Care Centre,Care Establishment,2 - Commissioning - Older people Pool,Older People Mental Health City & South,Nursing Independent Sector
Cambridgeshire County Council,10-Sep-15,19240396-11999923,-955,Woodlands Care Centre,Care Establishment,2 - Commissioning - Older people Pool,Older People Mental Health City & South,Nursing Independent Sector
Cambridgeshire County Council,10-Sep-15,19240397-11999924,-955,Woodlands Care Centre,Care Establishment,2 - Commissioning - Older people Pool,Older People Mental Health City & South,Nursing Independent Sector
Cambridgeshire County Council,10-Sep-15,19240398-11999925,-955,Woodlands Care Centre,Care Establishment,2 - Commissioning - Older people Pool,Older People Mental Health City & South,Nursing Independent Sector
Cambridgeshire County Council,10-Sep-15,19240399-11999926,-955,Woodlands Care Centre,Care Establishment,2 - Commissioning - Older people Pool,Older People Mental Health City & South,Nursing Independent Sector
Cambridgeshire County Council,24-Sep-15,19337541-12064123,-917,Cottenham Court Nursing Home,Care Establishment,3 - Operations - Countywide Services,Countywide PD Service,Nursing Independent Sector
Cambridgeshire County Council,10-Sep-15,19262346-11998764,-874,Abbey Healthcare (Huntingdon) Ltd,Care Establishment,2 - Commissioning - Older people Pool,Hunts O P  Team,Nursing Independent Sector
Cambridgeshire County Council,10-Sep-15,19262348-11998766,-874,Abbey Healthcare (Huntingdon) Ltd,Care Establishment,2 - Commissioning - Older people Pool,Hunts O P  Team,Nursing Independent Sector
Cambridgeshire County Council,10-Sep-15,19262349-11998767,-874,Abbey Healthcare (Huntingdon) Ltd,Care Establishment,2 - Commissioning - Older people Pool,Hunts O P  Team,Nursing Independent Sector
Cambridgeshire County Council,10-Sep-15,19262350-11998768,-874,Abbey Healthcare (Huntingdon) Ltd,Care Establishment,2 - Commissioning - Older people Pool,Hunts O P  Team,Nursing Independent Sector
Cambridgeshire County Council,24-Sep-15,19322740-12063879,-861,Cottenham Court Nursing Home,Care Establishment,3 - Operations - Countywide Services,Countywide PD Service,Nursing Independent Sector
Cambridgeshire County Council,24-Sep-15,19322741-12063880,-861,Cottenham Court Nursing Home,Care Establishment,3 - Operations - Countywide Services,Countywide PD Service,Nursing Independent Sector
Cambridgeshire County Council,24-Sep-15,19328557-12064148,-861,Cottenham Court Nursing Home,Care Establishment,3 - Operations - Countywide Services,Countywide PD Service,Nursing Independent Sector
Cambridgeshire County Council,24-Sep-15,19328558-12064149,-861,Cottenham Court Nursing Home,Care Establishment,3 - Operations - Countywide Services,Countywide PD Service,Nursing Independent Sector
Cambridgeshire County Council,24-Sep-15,19328561-12064152,-861,Cottenham Court Nursing Home,Care Establishment,3 - Operations - Countywide Services,Countywide PD Service,Nursing Independent Sector
Cambridgeshire County Council,24-Sep-15,19328564-12064155,-861,Cottenham Court Nursing Home,Care Establishment,3 - Operations - Countywide Services,Countywide PD Service,Nursing Independent Sector
Cambridgeshire County Council,24-Sep-15,19328566-12064157,-861,Cottenham Court Nursing Home,Care Establishment,3 - Operations - Countywide Services,Countywide PD Service,Nursing Independent Sector
Cambridgeshire County Council,24-Sep-15,19328567-12064158,-861,Cottenham Court Nursing Home,Care Establishment,3 - Operations - Countywide Services,Countywide PD Service,Nursing Independent Sector
Cambridgeshire County Council,24-Sep-15,19328569-12064160,-861,Cottenham Court Nursing Home,Care Establishment,3 - Operations - Countywide Services,Countywide PD Service,Nursing Independent Sector
Cambridgeshire County Council,24-Sep-15,19328571-12064162,-861,Cottenham Court Nursing Home,Care Establishment,3 - Operations - Countywide Services,Countywide PD Service,Nursing Independent Sector
Cambridgeshire County Council,24-Sep-15,19328572-12064163,-861,Cottenham Court Nursing Home,Care Establishment,3 - Operations - Countywide Services,Countywide PD Service,Nursing Independent Sector
Cambridgeshire County Council,24-Sep-15,19328574-12064144,-861,Cottenham Court Nursing Home,Care Establishment,3 - Operations - Countywide Services,Countywide PD Service,Nursing Independent Sector
Cambridgeshire County Council,24-Sep-15,19328575-12064145,-861,Cottenham Court Nursing Home,Care Establishment,3 - Operations - Countywide Services,Countywide PD Service,Nursing Independent Sector
Cambridgeshire County Council,24-Sep-15,19334420-12063908,-861,Cottenham Court Nursing Home,Care Establishment,3 - Operations - Countywide Services,Countywide PD Service,Nursing Independent Sector
Cambridgeshire County Council,24-Sep-15,19334422-12063910,-861,Cottenham Court Nursing Home,Care Establishment,3 - Operations - Countywide Services,Countywide PD Service,Nursing Independent Sector
Cambridgeshire County Council,24-Sep-15,19334423-12063911,-861,Cottenham Court Nursing Home,Care Establishment,3 - Operations - Countywide Services,Countywide PD Service,Nursing Independent Sector
Cambridgeshire County Council,24-Sep-15,19334425-12063913,-861,Cottenham Court Nursing Home,Care Establishment,3 - Operations - Countywide Services,Countywide PD Service,Nursing Independent Sector
Cambridgeshire County Council,24-Sep-15,19334426-12063914,-861,Cottenham Court Nursing Home,Care Establishment,3 - Operations - Countywide Services,Countywide PD Service,Nursing Independent Sector
Cambridgeshire County Council,24-Sep-15,19334428-12063916,-861,Cottenham Court Nursing Home,Care Establishment,3 - Operations - Countywide Services,Countywide PD Service,Nursing Independent Sector
Cambridgeshire County Council,24-Sep-15,19334429-12063917,-861,Cottenham Court Nursing Home,Care Establishment,3 - Operations - Countywide Services,Countywide PD Service,Nursing Independent Sector
Cambridgeshire County Council,24-Sep-15,19334430-12063918,-861,Cottenham Court Nursing Home,Care Establishment,3 - Operations - Countywide Services,Countywide PD Service,Nursing Independent Sector
Cambridgeshire County Council,24-Sep-15,19334432-12063920,-861,Cottenham Court Nursing Home,Care Establishment,3 - Operations - Countywide Services,Countywide PD Service,Nursing Independent Sector
Cambridgeshire County Council,24-Sep-15,19334434-12063922,-861,Cottenham Court Nursing Home,Care Establishment,3 - Operations - Countywide Services,Countywide PD Service,Nursing Independent Sector
Cambridgeshire County Council,18-Sep-15,19297267-12020276,-850,Meadows Homecare Services,Care Establishment,2 - Commissioning - Older people Pool,East Cambs - O P Team,Short Term Other
Cambridgeshire County Council,18-Sep-15,19297284-12020277,-850,Meadows Homecare Services,Care Establishment,2 - Commissioning - Older people Pool,East Cambs - O P Team,Short Term Other
Cambridgeshire County Council,24-Sep-15,19332487-12064531,-838,Etheldred House,Care Establishment,2 - Commissioning - Older people Pool,Older People Mental Health City & South,Nursing Independent Sector
Cambridgeshire County Council,24-Sep-15,19332490-12064534,-838,Etheldred House,Care Establishment,2 - Commissioning - Older people Pool,Older People Mental Health City & South,Nursing Independent Sector
Cambridgeshire County Council,24-Sep-15,19332492-12064536,-838,Etheldred House,Care Establishment,2 - Commissioning - Older people Pool,Older People Mental Health City & South,Nursing Independent Sector
Cambridgeshire County Council,24-Sep-15,19332494-12064538,-838,Etheldred House,Care Establishment,2 - Commissioning - Older people Pool,Older People Mental Health City & South,Nursing Independent Sector
Cambridgeshire County Council,24-Sep-15,19332496-12064540,-838,Etheldred House,Care Establishment,2 - Commissioning - Older people Pool,Older People Mental Health City & South,Nursing Independent Sector
Cambridgeshire County Council,24-Sep-15,19332497-12064541,-838,Etheldred House,Care Establishment,2 - Commissioning - Older people Pool,Older People Mental Health City & South,Nursing Independent Sector
Cambridgeshire County Council,24-Sep-15,19332500-12064544,-838,Etheldred House,Care Establishment,2 - Commissioning - Older people Pool,Older People Mental Health City & South,Nursing Independent Sector
Cambridgeshire County Council,24-Sep-15,19332501-12064545,-838,Etheldred House,Care Establishment,2 - Commissioning - Older people Pool,Older People Mental Health City & South,Nursing Independent Sector
Cambridgeshire County Council,24-Sep-15,19332502-12064546,-838,Etheldred House,Care Establishment,2 - Commissioning - Older people Pool,Older People Mental Health City & South,Nursing Independent Sector
Cambridgeshire County Council,24-Sep-15,19332503-12064547,-838,Etheldred House,Care Establishment,2 - Commissioning - Older people Pool,Older People Mental Health City & South,Nursing Independent Sector
Cambridgeshire County Council,24-Sep-15,19332505-12064549,-838,Etheldred House,Care Establishment,2 - Commissioning - Older people Pool,Older People Mental Health City & South,Nursing Independent Sector
Cambridgeshire County Council,24-Sep-15,19332509-12064553,-838,Etheldred House,Care Establishment,2 - Commissioning - Older people Pool,Older People Mental Health City & South,Nursing Independent Sector
Cambridgeshire County Council,24-Sep-15,19332513-12064557,-838,Etheldred House,Care Establishment,2 - Commissioning - Older people Pool,Older People Mental Health City & South,Nursing Independent Sector
Cambridgeshire County Council,24-Sep-15,19332514-12064558,-838,Etheldred House,Care Establishment,2 - Commissioning - Older people Pool,Older People Mental Health City & South,Nursing Independent Sector
Cambridgeshire County Council,24-Sep-15,19332516-12064560,-838,Etheldred House,Care Establishment,2 - Commissioning - Older people Pool,Older People Mental Health City & South,Nursing Independent Sector
Cambridgeshire County Council,24-Sep-15,19332518-12064562,-838,Etheldred House,Care Establishment,2 - Commissioning - Older people Pool,Older People Mental Health City & South,Nursing Independent Sector
Cambridgeshire County Council,18-Sep-15,19240799-12031675,-835,Longueville Court,Care Establishment,2 - Commissioning - Older people Pool,Older People Mental Health Hunts,Nursing Independent Sector
Cambridgeshire County Council,18-Sep-15,19240800-12031676,-835,Longueville Court,Care Establishment,2 - Commissioning - Older people Pool,Older People Mental Health Hunts,Nursing Independent Sector
Cambridgeshire County Council,18-Sep-15,19240801-12031677,-835,Longueville Court,Care Establishment,2 - Commissioning - Older people Pool,Older People Mental Health Hunts,Nursing Independent Sector
Cambridgeshire County Council,18-Sep-15,19240803-12031679,-835,Longueville Court,Care Establishment,2 - Commissioning - Older people Pool,Older People Mental Health Hunts,Nursing Independent Sector
Cambridgeshire County Council,18-Sep-15,19240804-12031680,-835,Longueville Court,Care Establishment,2 - Commissioning - Older people Pool,Older People Mental Health Hunts,Nursing Independent Sector
Cambridgeshire County Council,18-Sep-15,19240805-12031681,-835,Longueville Court,Care Establishment,2 - Commissioning - Older people Pool,Older People Mental Health Hunts,Nursing Independent Sector
Cambridgeshire County Council,18-Sep-15,19240806-12031682,-835,Longueville Court,Care Establishment,2 - Commissioning - Older people Pool,Older People Mental Health Hunts,Nursing Independent Sector
Cambridgeshire County Council,18-Sep-15,19240807-12031683,-835,Longueville Court,Care Establishment,2 - Commissioning - Older people Pool,Older People Mental Health Hunts,Nursing Independent Sector
Cambridgeshire County Council,18-Sep-15,19240809-12031685,-835,Longueville Court,Care Establishment,2 - Commissioning - Older people Pool,Older People Mental Health Hunts,Nursing Independent Sector
Cambridgeshire County Council,18-Sep-15,19240810-12031686,-835,Longueville Court,Care Establishment,2 - Commissioning - Older people Pool,Older People Mental Health Hunts,Nursing Independent Sector
Cambridgeshire County Council,18-Sep-15,19240812-12031688,-835,Longueville Court,Care Establishment,2 - Commissioning - Older people Pool,Older People Mental Health Hunts,Nursing Independent Sector
Cambridgeshire County Council,18-Sep-15,19240813-12031689,-835,Longueville Court,Care Establishment,2 - Commissioning - Older people Pool,Older People Mental Health Hunts,Nursing Independent Sector
Cambridgeshire County Council,18-Sep-15,19240816-12031692,-835,Longueville Court,Care Establishment,2 - Commissioning - Older people Pool,Older People Mental Health Hunts,Nursing Independent Sector
Cambridgeshire County Council,18-Sep-15,19240817-12031693,-835,Longueville Court,Care Establishment,2 - Commissioning - Older people Pool,Older People Mental Health Hunts,Nursing Independent Sector
Cambridgeshire County Council,18-Sep-15,19240818-12031694,-835,Longueville Court,Care Establishment,2 - Commissioning - Older people Pool,Older People Mental Health Hunts,Nursing Independent Sector
Cambridgeshire County Council,18-Sep-15,19240819-12031695,-835,Longueville Court,Care Establishment,2 - Commissioning - Older people Pool,Older People Mental Health Hunts,Nursing Independent Sector
Cambridgeshire County Council,18-Sep-15,19240821-12031697,-835,Longueville Court,Care Establishment,2 - Commissioning - Older people Pool,Older People Mental Health Hunts,Nursing Independent Sector
Cambridgeshire County Council,18-Sep-15,19240834-12031706,-835,Longueville Court,Care Establishment,2 - Commissioning - Older people Pool,Older People Mental Health Hunts,Nursing Independent Sector
Cambridgeshire County Council,18-Sep-15,19240835-12031707,-835,Longueville Court,Care Establishment,2 - Commissioning - Older people Pool,Older People Mental Health Hunts,Nursing Independent Sector
Cambridgeshire County Council,18-Sep-15,19240837-12031709,-835,Longueville Court,Care Establishment,2 - Commissioning - Older people Pool,Older People Mental Health Hunts,Nursing Independent Sector
Cambridgeshire County Council,18-Sep-15,19240839-12031711,-835,Longueville Court,Care Establishment,2 - Commissioning - Older people Pool,Older People Mental Health Hunts,Nursing Independent Sector
Cambridgeshire County Council,18-Sep-15,19240840-12031712,-835,Longueville Court,Care Establishment,2 - Commissioning - Older people Pool,Older People Mental Health Hunts,Nursing Independent Sector
Cambridgeshire County Council,18-Sep-15,19240851-12031722,-835,Longueville Court,Care Establishment,2 - Commissioning - Older people Pool,Older People Mental Health Hunts,Nursing Independent Sector
Cambridgeshire County Council,18-Sep-15,19240852-12031723,-835,Longueville Court,Care Establishment,2 - Commissioning - Older people Pool,Older People Mental Health Hunts,Nursing Independent Sector
Cambridgeshire County Council,18-Sep-15,19246635-12031674,-835,Longueville Court,Care Establishment,2 - Commissioning - Older people Pool,Older People Mental Health Hunts,Nursing Independent Sector
Cambridgeshire County Council,18-Sep-15,19264014-12031817,-835,Longueville Court,Care Establishment,2 - Commissioning - Older people Pool,Older People Mental Health Hunts,Nursing Independent Sector
Cambridgeshire County Council,18-Sep-15,19264017-12031819,-835,Longueville Court,Care Establishment,2 - Commissioning - Older people Pool,Older People Mental Health Hunts,Nursing Independent Sector
Cambridgeshire County Council,18-Sep-15,19264018-12031820,-835,Longueville Court,Care Establishment,2 - Commissioning - Older people Pool,Older People Mental Health Hunts,Nursing Independent Sector
Cambridgeshire County Council,18-Sep-15,19264030-12031825,-835,Longueville Court,Care Establishment,2 - Commissioning - Older people Pool,Older People Mental Health Hunts,Nursing Independent Sector
Cambridgeshire County Council,18-Sep-15,19264031-12031826,-835,Longueville Court,Care Establishment,2 - Commissioning - Older people Pool,Older People Mental Health Hunts,Nursing Independent Sector
Cambridgeshire County Council,18-Sep-15,19264033-12031828,-835,Longueville Court,Care Establishment,2 - Commissioning - Older people Pool,Older People Mental Health Hunts,Nursing Independent Sector
Cambridgeshire County Council,18-Sep-15,19264039-12031798,-835,Longueville Court,Care Establishment,2 - Commissioning - Older people Pool,Older People Mental Health Hunts,Nursing Independent Sector
Cambridgeshire County Council,18-Sep-15,19264040-12031799,-835,Longueville Court,Care Establishment,2 - Commissioning - Older people Pool,Older People Mental Health Hunts,Nursing Independent Sector
Cambridgeshire County Council,18-Sep-15,19264044-12031803,-835,Longueville Court,Care Establishment,2 - Commissioning - Older people Pool,Older People Mental Health Hunts,Nursing Independent Sector
Cambridgeshire County Council,18-Sep-15,19264046-12031805,-835,Longueville Court,Care Establishment,2 - Commissioning - Older people Pool,Older People Mental Health Hunts,Nursing Independent Sector
Cambridgeshire County Council,18-Sep-15,19264048-12031807,-835,Longueville Court,Care Establishment,2 - Commissioning - Older people Pool,Older People Mental Health Hunts,Nursing Independent Sector
Cambridgeshire County Council,18-Sep-15,19264050-12031809,-835,Longueville Court,Care Establishment,2 - Commissioning - Older people Pool,Older People Mental Health Hunts,Nursing Independent Sector
Cambridgeshire County Council,18-Sep-15,19264051-12031810,-835,Longueville Court,Care Establishment,2 - Commissioning - Older people Pool,Older People Mental Health Hunts,Nursing Independent Sector
Cambridgeshire County Council,18-Sep-15,19264053-12031812,-835,Longueville Court,Care Establishment,2 - Commissioning - Older people Pool,Older People Mental Health Hunts,Nursing Independent Sector
Cambridgeshire County Council,18-Sep-15,19264056-12031795,-835,Longueville Court,Care Establishment,2 - Commissioning - Older people Pool,Older People Mental Health Hunts,Nursing Independent Sector
Cambridgeshire County Council,18-Sep-15,19266042-12031781,-835,Longueville Court,Care Establishment,2 - Commissioning - Older people Pool,Older People Mental Health Hunts,Nursing Independent Sector
Cambridgeshire County Council,18-Sep-15,19266046-12031782,-835,Longueville Court,Care Establishment,2 - Commissioning - Older people Pool,Older People Mental Health Hunts,Nursing Independent Sector
Cambridgeshire County Council,18-Sep-15,19266047-12031783,-835,Longueville Court,Care Establishment,2 - Commissioning - Older people Pool,Older People Mental Health Hunts,Nursing Independent Sector
Cambridgeshire County Council,18-Sep-15,19266051-12031785,-835,Longueville Court,Care Establishment,2 - Commissioning - Older people Pool,Older People Mental Health Hunts,Nursing Independent Sector
Cambridgeshire County Council,18-Sep-15,19266052-12031786,-835,Longueville Court,Care Establishment,2 - Commissioning - Older people Pool,Older People Mental Health Hunts,Nursing Independent Sector
Cambridgeshire County Council,18-Sep-15,19266053-12031787,-835,Longueville Court,Care Establishment,2 - Commissioning - Older people Pool,Older People Mental Health Hunts,Nursing Independent Sector
Cambridgeshire County Council,18-Sep-15,19266055-12031788,-835,Longueville Court,Care Establishment,2 - Commissioning - Older people Pool,Older People Mental Health Hunts,Nursing Independent Sector
Cambridgeshire County Council,18-Sep-15,19266056-12031789,-835,Longueville Court,Care Establishment,2 - Commissioning - Older people Pool,Older People Mental Health Hunts,Nursing Independent Sector
Cambridgeshire County Council,18-Sep-15,19266060-12031792,-835,Longueville Court,Care Establishment,2 - Commissioning - Older people Pool,Older People Mental Health Hunts,Nursing Independent Sector
Cambridgeshire County Council,18-Sep-15,19266063-12031794,-835,Longueville Court,Care Establishment,2 - Commissioning - Older people Pool,Older People Mental Health Hunts,Nursing Independent Sector
Cambridgeshire County Council,18-Sep-15,19288805-12031760,-835,Longueville Court,Care Establishment,2 - Commissioning - Older people Pool,Older People Mental Health Hunts,Nursing Independent Sector
Cambridgeshire County Council,18-Sep-15,19288807-12031762,-835,Longueville Court,Care Establishment,2 - Commissioning - Older people Pool,Older People Mental Health Hunts,Nursing Independent Sector
Cambridgeshire County Council,18-Sep-15,19288808-12031763,-835,Longueville Court,Care Establishment,2 - Commissioning - Older people Pool,Older People Mental Health Hunts,Nursing Independent Sector
Cambridgeshire County Council,18-Sep-15,19288812-12031767,-835,Longueville Court,Care Establishment,2 - Commissioning - Older people Pool,Older People Mental Health Hunts,Nursing Independent Sector
Cambridgeshire County Council,18-Sep-15,19288815-12031769,-835,Longueville Court,Care Establishment,2 - Commissioning - Older people Pool,Older People Mental Health Hunts,Nursing Independent Sector
Cambridgeshire County Council,18-Sep-15,19288816-12031770,-835,Longueville Court,Care Establishment,2 - Commissioning - Older people Pool,Older People Mental Health Hunts,Nursing Independent Sector
Cambridgeshire County Council,18-Sep-15,19288825-12031774,-835,Longueville Court,Care Establishment,2 - Commissioning - Older people Pool,Older People Mental Health Hunts,Nursing Independent Sector
Cambridgeshire County Council,18-Sep-15,19288834-12031776,-835,Longueville Court,Care Establishment,2 - Commissioning - Older people Pool,Older People Mental Health Hunts,Nursing Independent Sector
Cambridgeshire County Council,18-Sep-15,19288835-12031777,-835,Longueville Court,Care Establishment,2 - Commissioning - Older people Pool,Older People Mental Health Hunts,Nursing Independent Sector
Cambridgeshire County Council,18-Sep-15,19288839-12031778,-835,Longueville Court,Care Establishment,2 - Commissioning - Older people Pool,Older People Mental Health Hunts,Nursing Independent Sector
Cambridgeshire County Council,18-Sep-15,19288842-12031756,-835,Longueville Court,Care Establishment,2 - Commissioning - Older people Pool,Older People Mental Health Hunts,Nursing Independent Sector
Cambridgeshire County Council,18-Sep-15,19288845-12031757,-835,Longueville Court,Care Establishment,2 - Commissioning - Older people Pool,Older People Mental Health Hunts,Nursing Independent Sector
Cambridgeshire County Council,18-Sep-15,19288846-12031758,-835,Longueville Court,Care Establishment,2 - Commissioning - Older people Pool,Older People Mental Health Hunts,Nursing Independent Sector
Cambridgeshire County Council,18-Sep-15,19289240-12031730,-835,Longueville Court,Care Establishment,2 - Commissioning - Older people Pool,Older People Mental Health Hunts,Nursing Independent Sector
Cambridgeshire County Council,18-Sep-15,19289248-12031734,-835,Longueville Court,Care Establishment,2 - Commissioning - Older people Pool,Older People Mental Health Hunts,Nursing Independent Sector
Cambridgeshire County Council,18-Sep-15,19289250-12031735,-835,Longueville Court,Care Establishment,2 - Commissioning - Older people Pool,Older People Mental Health Hunts,Nursing Independent Sector
Cambridgeshire County Council,18-Sep-15,19289251-12031736,-835,Longueville Court,Care Establishment,2 - Commissioning - Older people Pool,Older People Mental Health Hunts,Nursing Independent Sector
Cambridgeshire County Council,18-Sep-15,19289252-12031737,-835,Longueville Court,Care Establishment,2 - Commissioning - Older people Pool,Older People Mental Health Hunts,Nursing Independent Sector
Cambridgeshire County Council,18-Sep-15,19289253-12031738,-835,Longueville Court,Care Establishment,2 - Commissioning - Older people Pool,Older People Mental Health Hunts,Nursing Independent Sector
Cambridgeshire County Council,18-Sep-15,19289256-12031741,-835,Longueville Court,Care Establishment,2 - Commissioning - Older people Pool,Older People Mental Health Hunts,Nursing Independent Sector
Cambridgeshire County Council,18-Sep-15,19289264-12031748,-835,Longueville Court,Care Establishment,2 - Commissioning - Older people Pool,Older People Mental Health Hunts,Nursing Independent Sector
Cambridgeshire County Council,18-Sep-15,19289266-12031750,-835,Longueville Court,Care Establishment,2 - Commissioning - Older people Pool,Older People Mental Health Hunts,Nursing Independent Sector
Cambridgeshire County Council,18-Sep-15,19289267-12031751,-835,Longueville Court,Care Establishment,2 - Commissioning - Older people Pool,Older People Mental Health Hunts,Nursing Independent Sector
Cambridgeshire County Council,18-Sep-15,19289270-12031753,-835,Longueville Court,Care Establishment,2 - Commissioning - Older people Pool,Older People Mental Health Hunts,Nursing Independent Sector
Cambridgeshire County Council,18-Sep-15,19289271-12031754,-835,Longueville Court,Care Establishment,2 - Commissioning - Older people Pool,Older People Mental Health Hunts,Nursing Independent Sector
Cambridgeshire County Council,24-Sep-15,19327097-12065781,-835,Longueville Court,Care Establishment,2 - Commissioning - Older people Pool,Older People Mental Health Hunts,Nursing Independent Sector
Cambridgeshire County Council,24-Sep-15,19327098-12065782,-835,Longueville Court,Care Establishment,2 - Commissioning - Older people Pool,Older People Mental Health Hunts,Nursing Independent Sector
Cambridgeshire County Council,24-Sep-15,19327099-12065783,-835,Longueville Court,Care Establishment,2 - Commissioning - Older people Pool,Older People Mental Health Hunts,Nursing Independent Sector
Cambridgeshire County Council,24-Sep-15,19327102-12065785,-835,Longueville Court,Care Establishment,2 - Commissioning - Older people Pool,Older People Mental Health Hunts,Nursing Independent Sector
Cambridgeshire County Council,24-Sep-15,19327104-12065787,-835,Longueville Court,Care Establishment,2 - Commissioning - Older people Pool,Older People Mental Health Hunts,Nursing Independent Sector
Cambridgeshire County Council,24-Sep-15,19327106-12065788,-835,Longueville Court,Care Establishment,2 - Commissioning - Older people Pool,Older People Mental Health Hunts,Nursing Independent Sector
Cambridgeshire County Council,24-Sep-15,19327112-12065789,-835,Longueville Court,Care Establishment,2 - Commissioning - Older people Pool,Older People Mental Health Hunts,Nursing Independent Sector
Cambridgeshire County Council,24-Sep-15,19338026-12065764,-835,Longueville Court,Care Establishment,2 - Commissioning - Older people Pool,Older People Mental Health Hunts,Nursing Independent Sector
Cambridgeshire County Council,24-Sep-15,19338028-12065765,-835,Longueville Court,Care Establishment,2 - Commissioning - Older people Pool,Older People Mental Health Hunts,Nursing Independent Sector
Cambridgeshire County Council,24-Sep-15,19338032-12065768,-835,Longueville Court,Care Establishment,2 - Commissioning - Older people Pool,Older People Mental Health Hunts,Nursing Independent Sector
Cambridgeshire County Council,24-Sep-15,19338033-12065769,-835,Longueville Court,Care Establishment,2 - Commissioning - Older people Pool,Older People Mental Health Hunts,Nursing Independent Sector
Cambridgeshire County Council,24-Sep-15,19338034-12065770,-835,Longueville Court,Care Establishment,2 - Commissioning - Older people Pool,Older People Mental Health Hunts,Nursing Independent Sector
Cambridgeshire County Council,24-Sep-15,19338044-12065775,-835,Longueville Court,Care Establishment,2 - Commissioning - Older people Pool,Older People Mental Health Hunts,Nursing Independent Sector
Cambridgeshire County Council,24-Sep-15,19338059-12065755,-835,Longueville Court,Care Establishment,2 - Commissioning - Older people Pool,Older People Mental Health Hunts,Nursing Independent Sector
Cambridgeshire County Council,24-Sep-15,19338062-12065757,-835,Longueville Court,Care Establishment,2 - Commissioning - Older people Pool,Older People Mental Health Hunts,Nursing Independent Sector
Cambridgeshire County Council,24-Sep-15,19338068-12065759,-835,Longueville Court,Care Establishment,2 - Commissioning - Older people Pool,Older People Mental Health Hunts,Nursing Independent Sector
Cambridgeshire County Council,24-Sep-15,19338071-12065762,-835,Longueville Court,Care Establishment,2 - Commissioning - Older people Pool,Older People Mental Health Hunts,Nursing Independent Sector
Cambridgeshire County Council,24-Sep-15,19338081-12065737,-835,Longueville Court,Care Establishment,2 - Commissioning - Older people Pool,Older People Mental Health Hunts,Nursing Independent Sector
Cambridgeshire County Council,24-Sep-15,19338087-12065741,-835,Longueville Court,Care Establishment,2 - Commissioning - Older people Pool,Older People Mental Health Hunts,Nursing Independent Sector
Cambridgeshire County Council,24-Sep-15,19338091-12065743,-835,Longueville Court,Care Establishment,2 - Commissioning - Older people Pool,Older People Mental Health Hunts,Nursing Independent Sector
Cambridgeshire County Council,24-Sep-15,19338094-12065745,-835,Longueville Court,Care Establishment,2 - Commissioning - Older people Pool,Older People Mental Health Hunts,Nursing Independent Sector
Cambridgeshire County Council,24-Sep-15,19338096-12065746,-835,Longueville Court,Care Establishment,2 - Commissioning - Older people Pool,Older People Mental Health Hunts,Nursing Independent Sector
Cambridgeshire County Council,24-Sep-15,19338097-12065747,-835,Longueville Court,Care Establishment,2 - Commissioning - Older people Pool,Older People Mental Health Hunts,Nursing Independent Sector
Cambridgeshire County Council,24-Sep-15,19338107-12065750,-835,Longueville Court,Care Establishment,2 - Commissioning - Older people Pool,Older People Mental Health Hunts,Nursing Independent Sector
Cambridgeshire County Council,24-Sep-15,19338108-12065751,-835,Longueville Court,Care Establishment,2 - Commissioning - Older people Pool,Older People Mental Health Hunts,Nursing Independent Sector
Cambridgeshire County Council,24-Sep-15,19286255-12068608,-829,Gracefield Nursing And Residential Home,Care Establishment,2 - Commissioning - Older people Pool,Older People Mental Health City & South,Nursing Independent Sector
Cambridgeshire County Council,24-Sep-15,19296279-12068606,-829,Gracefield Nursing And Residential Home,Care Establishment,2 - Commissioning - Older people Pool,Older People Mental Health City & South,Nursing Independent Sector
Cambridgeshire County Council,10-Sep-15,19259859-11999231,-818,The Cambridge Housing Society Ltd,Care Establishment,2 - Commissioning - Older people Pool,North City Older People's Integrated Team,Residential Independent Sector
Cambridgeshire County Council,10-Sep-15,19265071-11999237,-818,The Cambridge Housing Society Ltd,Care Establishment,2 - Commissioning - Older people Pool,North City Older People's Integrated Team,Residential Independent Sector
Cambridgeshire County Council,10-Sep-15,19265072-11999238,-818,The Cambridge Housing Society Ltd,Care Establishment,2 - Commissioning - Older people Pool,North City Older People's Integrated Team,Residential Independent Sector
Cambridgeshire County Council,10-Sep-15,19265073-11999239,-818,The Cambridge Housing Society Ltd,Care Establishment,2 - Commissioning - Older people Pool,North City Older People's Integrated Team,Residential Independent Sector
Cambridgeshire County Council,10-Sep-15,19265074-11999240,-818,The Cambridge Housing Society Ltd,Care Establishment,2 - Commissioning - Older people Pool,North City Older People's Integrated Team,Residential Independent Sector
Cambridgeshire County Council,10-Sep-15,19265076-11999242,-818,The Cambridge Housing Society Ltd,Care Establishment,2 - Commissioning - Older people Pool,North City Older People's Integrated Team,Residential Independent Sector
Cambridgeshire County Council,10-Sep-15,19265078-11999244,-818,The Cambridge Housing Society Ltd,Care Establishment,2 - Commissioning - Older people Pool,North City Older People's Integrated Team,Residential Independent Sector
Cambridgeshire County Council,10-Sep-15,19265082-11999248,-818,The Cambridge Housing Society Ltd,Care Establishment,2 - Commissioning - Older people Pool,North City Older People's Integrated Team,Residential Independent Sector
Cambridgeshire County Council,10-Sep-15,19265083-11999249,-818,The Cambridge Housing Society Ltd,Care Establishment,2 - Commissioning - Older people Pool,North City Older People's Integrated Team,Residential Independent Sector
Cambridgeshire County Council,10-Sep-15,19265085-11999251,-818,The Cambridge Housing Society Ltd,Care Establishment,2 - Commissioning - Older people Pool,North City Older People's Integrated Team,Residential Independent Sector
Cambridgeshire County Council,10-Sep-15,19265086-11999252,-818,The Cambridge Housing Society Ltd,Care Establishment,2 - Commissioning - Older people Pool,North City Older People's Integrated Team,Residential Independent Sector
Cambridgeshire County Council,10-Sep-15,19265087-11999253,-818,The Cambridge Housing Society Ltd,Care Establishment,2 - Commissioning - Older people Pool,North City Older People's Integrated Team,Residential Independent Sector
Cambridgeshire County Council,10-Sep-15,19265089-11999255,-818,The Cambridge Housing Society Ltd,Care Establishment,2 - Commissioning - Older people Pool,North City Older People's Integrated Team,Residential Independent Sector
Cambridgeshire County Council,10-Sep-15,19265094-11999260,-818,The Cambridge Housing Society Ltd,Care Establishment,2 - Commissioning - Older people Pool,North City Older People's Integrated Team,Residential Independent Sector
Cambridgeshire County Council,10-Sep-15,19265099-11999265,-818,The Cambridge Housing Society Ltd,Care Establishment,2 - Commissioning - Older people Pool,North City Older People's Integrated Team,Residential Independent Sector
Cambridgeshire County Council,10-Sep-15,19265107-11999273,-818,The Cambridge Housing Society Ltd,Care Establishment,2 - Commissioning - Older people Pool,North City Older People's Integrated Team,Residential Independent Sector
Cambridgeshire County Council,10-Sep-15,19265108-11999274,-818,The Cambridge Housing Society Ltd,Care Establishment,2 - Commissioning - Older people Pool,North City Older People's Integrated Team,Residential Independent Sector
Cambridgeshire County Council,10-Sep-15,19265109-11999275,-818,The Cambridge Housing Society Ltd,Care Establishment,2 - Commissioning - Older people Pool,North City Older People's Integrated Team,Residential Independent Sector
Cambridgeshire County Council,10-Sep-15,19265111-11999277,-818,The Cambridge Housing Society Ltd,Care Establishment,2 - Commissioning - Older people Pool,North City Older People's Integrated Team,Residential Independent Sector
Cambridgeshire County Council,10-Sep-15,19265112-11999278,-818,The Cambridge Housing Society Ltd,Care Establishment,2 - Commissioning - Older people Pool,North City Older People's Integrated Team,Residential Independent Sector
Cambridgeshire County Council,10-Sep-15,19265113-11999279,-818,The Cambridge Housing Society Ltd,Care Establishment,2 - Commissioning - Older people Pool,North City Older People's Integrated Team,Residential Independent Sector
Cambridgeshire County Council,10-Sep-15,19265114-11999280,-818,The Cambridge Housing Society Ltd,Care Establishment,2 - Commissioning - Older people Pool,North City Older People's Integrated Team,Residential Independent Sector
Cambridgeshire County Council,10-Sep-15,19265119-11999285,-818,The Cambridge Housing Society Ltd,Care Establishment,2 - Commissioning - Older people Pool,North City Older People's Integrated Team,Residential Independent Sector
Cambridgeshire County Council,24-Sep-15,19281564-12059457,-809,Redacted Personal Data,Individual,2 - Operations - Learning Disability,LDP Fenland Team,Direct Payments - Social Services
Cambridgeshire County Council,24-Sep-15,19327123-12064245,-800,Cottenham Court Nursing Home,Care Establishment,2 - Commissioning - Older people Pool,Older People Mental Health City & South,Residential Independent Sector
Cambridgeshire County Council,24-Sep-15,19327124-12064246,-800,Cottenham Court Nursing Home,Care Establishment,2 - Commissioning - Older people Pool,Older People Mental Health City & South,Residential Independent Sector
Cambridgeshire County Council,24-Sep-15,19327126-12064248,-800,Cottenham Court Nursing Home,Care Establishment,2 - Commissioning - Older people Pool,Older People Mental Health City & South,Residential Independent Sector
Cambridgeshire County Council,24-Sep-15,19327128-12064250,-800,Cottenham Court Nursing Home,Care Establishment,2 - Commissioning - Older people Pool,Older People Mental Health City & South,Residential Independent Sector
Cambridgeshire County Council,24-Sep-15,19327130-12064252,-800,Cottenham Court Nursing Home,Care Establishment,2 - Commissioning - Older people Pool,Older People Mental Health City & South,Residential Independent Sector
Cambridgeshire County Council,24-Sep-15,19327133-12064255,-800,Cottenham Court Nursing Home,Care Establishment,2 - Commissioning - Older people Pool,Older People Mental Health City & South,Residential Independent Sector
Cambridgeshire County Council,24-Sep-15,19327135-12064257,-800,Cottenham Court Nursing Home,Care Establishment,2 - Commissioning - Older people Pool,Older People Mental Health City & South,Residential Independent Sector
Cambridgeshire County Council,24-Sep-15,19327137-12064259,-800,Cottenham Court Nursing Home,Care Establishment,2 - Commissioning - Older people Pool,Older People Mental Health City & South,Residential Independent Sector
Cambridgeshire County Council,24-Sep-15,19327138-12064260,-800,Cottenham Court Nursing Home,Care Establishment,2 - Commissioning - Older people Pool,Older People Mental Health City & South,Residential Independent Sector
Cambridgeshire County Council,24-Sep-15,19327139-12064261,-800,Cottenham Court Nursing Home,Care Establishment,2 - Commissioning - Older people Pool,Older People Mental Health City & South,Residential Independent Sector
Cambridgeshire County Council,24-Sep-15,19327140-12064262,-800,Cottenham Court Nursing Home,Care Establishment,2 - Commissioning - Older people Pool,Older People Mental Health City & South,Residential Independent Sector
Cambridgeshire County Council,24-Sep-15,19327141-12064263,-800,Cottenham Court Nursing Home,Care Establishment,2 - Commissioning - Older people Pool,Older People Mental Health City & South,Residential Independent Sector
Cambridgeshire County Council,24-Sep-15,19327143-12064265,-800,Cottenham Court Nursing Home,Care Establishment,2 - Commissioning - Older people Pool,Older People Mental Health City & South,Residential Independent Sector
Cambridgeshire County Council,24-Sep-15,19327144-12064266,-800,Cottenham Court Nursing Home,Care Establishment,2 - Commissioning - Older people Pool,Older People Mental Health City & South,Residential Independent Sector
Cambridgeshire County Council,24-Sep-15,19327148-12064270,-800,Cottenham Court Nursing Home,Care Establishment,2 - Commissioning - Older people Pool,Older People Mental Health City & South,Residential Independent Sector
Cambridgeshire County Council,24-Sep-15,19327150-12064272,-800,Cottenham Court Nursing Home,Care Establishment,2 - Commissioning - Older people Pool,Older People Mental Health City & South,Residential Independent Sector
Cambridgeshire County Council,24-Sep-15,19327159-12064281,-800,Cottenham Court Nursing Home,Care Establishment,2 - Commissioning - Older people Pool,Older People Mental Health City & South,Residential Independent Sector
Cambridgeshire County Council,24-Sep-15,19327160-12064282,-800,Cottenham Court Nursing Home,Care Establishment,2 - Commissioning - Older people Pool,Older People Mental Health City & South,Residential Independent Sector
Cambridgeshire County Council,24-Sep-15,19327164-12064286,-800,Cottenham Court Nursing Home,Care Establishment,2 - Commissioning - Older people Pool,Older People Mental Health City & South,Residential Independent Sector
Cambridgeshire County Council,24-Sep-15,19327166-12064288,-800,Cottenham Court Nursing Home,Care Establishment,2 - Commissioning - Older people Pool,Older People Mental Health City & South,Residential Independent Sector
Cambridgeshire County Council,24-Sep-15,19327167-12064289,-800,Cottenham Court Nursing Home,Care Establishment,2 - Commissioning - Older people Pool,Older People Mental Health City & South,Residential Independent Sector
Cambridgeshire County Council,24-Sep-15,19327168-12064290,-800,Cottenham Court Nursing Home,Care Establishment,2 - Commissioning - Older people Pool,Older People Mental Health City & South,Residential Independent Sector
Cambridgeshire County Council,24-Sep-15,19327169-12064291,-800,Cottenham Court Nursing Home,Care Establishment,2 - Commissioning - Older people Pool,Older People Mental Health City & South,Residential Independent Sector
Cambridgeshire County Council,18-Sep-15,19285579-12038929,-756,Dimensions (Uk) Ltd,Care Establishment,2 - Operations - Learning Disability,LDP South Cambs - Special Needs,Day and Domicillary Care Independent Sector
Cambridgeshire County Council,18-Sep-15,19285581-12038931,-756,Dimensions (Uk) Ltd,Care Establishment,2 - Operations - Learning Disability,LDP South Cambs - Special Needs,Day and Domicillary Care Independent Sector
Cambridgeshire County Council,18-Sep-15,19285588-12038873,-756,Dimensions (Uk) Ltd,Care Establishment,2 - Operations - Learning Disability,LDP South Cambs - Special Needs,Day and Domicillary Care Independent Sector
Cambridgeshire County Council,18-Sep-15,19285590-12038875,-756,Dimensions (Uk) Ltd,Care Establishment,2 - Operations - Learning Disability,LDP South Cambs - Special Needs,Day and Domicillary Care Independent Sector
Cambridgeshire County Council,18-Sep-15,19285596-12038881,-756,Dimensions (Uk) Ltd,Care Establishment,2 - Operations - Learning Disability,LDP South Cambs - Special Needs,Day and Domicillary Care Independent Sector
Cambridgeshire County Council,18-Sep-15,19285606-12038909,-756,Dimensions (Uk) Ltd,Care Establishment,2 - Operations - Learning Disability,LDP South Cambs - Special Needs,Day and Domicillary Care Independent Sector
Cambridgeshire County Council,18-Sep-15,19285609-12038912,-756,Dimensions (Uk) Ltd,Care Establishment,2 - Operations - Learning Disability,LDP South Cambs - Special Needs,Day and Domicillary Care Independent Sector
Cambridgeshire County Council,18-Sep-15,19285610-12038913,-756,Dimensions (Uk) Ltd,Care Establishment,2 - Operations - Learning Disability,LDP South Cambs - Special Needs,Day and Domicillary Care Independent Sector
Cambridgeshire County Council,18-Sep-15,19285612-12038915,-756,Dimensions (Uk) Ltd,Care Establishment,2 - Operations - Learning Disability,LDP South Cambs - Special Needs,Day and Domicillary Care Independent Sector
Cambridgeshire County Council,18-Sep-15,19285622-12038925,-756,Dimensions (Uk) Ltd,Care Establishment,2 - Operations - Learning Disability,LDP South Cambs - Special Needs,Day and Domicillary Care Independent Sector
Cambridgeshire County Council,18-Sep-15,19285625-12038892,-756,Dimensions (Uk) Ltd,Care Establishment,2 - Operations - Learning Disability,LDP South Cambs - Special Needs,Day and Domicillary Care Independent Sector
Cambridgeshire County Council,18-Sep-15,19285627-12038894,-756,Dimensions (Uk) Ltd,Care Establishment,2 - Operations - Learning Disability,LDP South Cambs - Special Needs,Day and Domicillary Care Independent Sector
Cambridgeshire County Council,18-Sep-15,19285628-12038895,-756,Dimensions (Uk) Ltd,Care Establishment,2 - Operations - Learning Disability,LDP South Cambs - Special Needs,Day and Domicillary Care Independent Sector
Cambridgeshire County Council,18-Sep-15,19285630-12038897,-756,Dimensions (Uk) Ltd,Care Establishment,2 - Operations - Learning Disability,LDP South Cambs - Special Needs,Day and Domicillary Care Independent Sector
Cambridgeshire County Council,18-Sep-15,19285633-12038900,-756,Dimensions (Uk) Ltd,Care Establishment,2 - Operations - Learning Disability,LDP South Cambs - Special Needs,Day and Domicillary Care Independent Sector
Cambridgeshire County Council,18-Sep-15,19285637-12038904,-756,Dimensions (Uk) Ltd,Care Establishment,2 - Operations - Learning Disability,LDP South Cambs - Special Needs,Day and Domicillary Care Independent Sector
Cambridgeshire County Council,18-Sep-15,19285640-12038907,-756,Dimensions (Uk) Ltd,Care Establishment,2 - Operations - Learning Disability,LDP South Cambs - Special Needs,Day and Domicillary Care Independent Sector
Cambridgeshire County Council,18-Sep-15,19285649-12038851,-756,Dimensions (Uk) Ltd,Care Establishment,2 - Operations - Learning Disability,LDP South Cambs - Special Needs,Day and Domicillary Care Independent Sector
Cambridgeshire County Council,18-Sep-15,19285651-12038853,-756,Dimensions (Uk) Ltd,Care Establishment,2 - Operations - Learning Disability,LDP South Cambs - Special Needs,Day and Domicillary Care Independent Sector
Cambridgeshire County Council,24-Sep-15,19334421-12063909,-738,Cottenham Court Nursing Home,Care Establishment,3 - Operations - Countywide Services,Countywide PD Service,Nursing Independent Sector
Cambridgeshire County Council,10-Sep-15,19261042-11998771,-730,Abbey Healthcare (Huntingdon) Ltd,Care Establishment,2 - Commissioning - Older people Pool,Hunts O P  Team,Nursing Independent Sector
Cambridgeshire County Council,10-Sep-15,19261043-11998772,-730,Abbey Healthcare (Huntingdon) Ltd,Care Establishment,2 - Commissioning - Older people Pool,Hunts O P  Team,Nursing Independent Sector
Cambridgeshire County Council,10-Sep-15,19261044-11998773,-730,Abbey Healthcare (Huntingdon) Ltd,Care Establishment,2 - Commissioning - Older people Pool,Hunts O P  Team,Nursing Independent Sector
Cambridgeshire County Council,10-Sep-15,19261045-11998774,-730,Abbey Healthcare (Huntingdon) Ltd,Care Establishment,2 - Commissioning - Older people Pool,Hunts O P  Team,Nursing Independent Sector
Cambridgeshire County Council,10-Sep-15,19261046-11998775,-730,Abbey Healthcare (Huntingdon) Ltd,Care Establishment,2 - Commissioning - Older people Pool,Hunts O P  Team,Nursing Independent Sector
Cambridgeshire County Council,10-Sep-15,19261047-11998776,-730,Abbey Healthcare (Huntingdon) Ltd,Care Establishment,2 - Commissioning - Older people Pool,Hunts O P  Team,Nursing Independent Sector
Cambridgeshire County Council,10-Sep-15,19261051-11998780,-730,Abbey Healthcare (Huntingdon) Ltd,Care Establishment,2 - Commissioning - Older people Pool,Hunts O P  Team,Nursing Independent Sector
Cambridgeshire County Council,10-Sep-15,19261052-11998781,-730,Abbey Healthcare (Huntingdon) Ltd,Care Establishment,2 - Commissioning - Older people Pool,Hunts O P  Team,Nursing Independent Sector
Cambridgeshire County Council,18-Sep-15,19297266-12020275,-729,Meadows Homecare Services,Care Establishment,2 - Commissioning - Older people Pool,East Cambs - O P Team,Short Term Other
Cambridgeshire County Council,30-Sep-15,19347047-12081733,-720,Xma Limited,Trade Supplier,LRNG,ICT Service Procurement,Materials for resale
Cambridgeshire County Council,18-Sep-15,19284101-12038709,-710,Dimensions (Uk) Ltd,Care Establishment,2 - Operations - Learning Disability,LDP South Cambs - Special Needs,Supported Living
Cambridgeshire County Council,18-Sep-15,19284107-12038715,-710,Dimensions (Uk) Ltd,Care Establishment,2 - Operations - Learning Disability,LDP South Cambs - Special Needs,Supported Living
Cambridgeshire County Council,18-Sep-15,19284118-12038683,-710,Dimensions (Uk) Ltd,Care Establishment,2 - Operations - Learning Disability,LDP South Cambs - Special Needs,Supported Living
Cambridgeshire County Council,18-Sep-15,19284121-12038686,-710,Dimensions (Uk) Ltd,Care Establishment,2 - Operations - Learning Disability,LDP South Cambs - Special Needs,Supported Living
Cambridgeshire County Council,18-Sep-15,19284128-12038693,-710,Dimensions (Uk) Ltd,Care Establishment,2 - Operations - Learning Disability,LDP South Cambs - Special Needs,Supported Living
Cambridgeshire County Council,18-Sep-15,19284134-12038699,-710,Dimensions (Uk) Ltd,Care Establishment,2 - Operations - Learning Disability,LDP South Cambs - Special Needs,Supported Living
Cambridgeshire County Council,18-Sep-15,19294090-12038747,-710,Dimensions (Uk) Ltd,Care Establishment,2 - Operations - Learning Disability,LDP South Cambs - Special Needs,Supported Living
Cambridgeshire County Council,18-Sep-15,19294093-12038750,-710,Dimensions (Uk) Ltd,Care Establishment,2 - Operations - Learning Disability,LDP South Cambs - Special Needs,Supported Living
Cambridgeshire County Council,18-Sep-15,19294095-12038752,-710,Dimensions (Uk) Ltd,Care Establishment,2 - Operations - Learning Disability,LDP South Cambs - Special Needs,Supported Living
Cambridgeshire County Council,18-Sep-15,19294099-12038756,-710,Dimensions (Uk) Ltd,Care Establishment,2 - Operations - Learning Disability,LDP South Cambs - Special Needs,Supported Living
Cambridgeshire County Council,18-Sep-15,19294107-12038764,-710,Dimensions (Uk) Ltd,Care Establishment,2 - Operations - Learning Disability,LDP South Cambs - Special Needs,Supported Living
Cambridgeshire County Council,18-Sep-15,19294108-12038765,-710,Dimensions (Uk) Ltd,Care Establishment,2 - Operations - Learning Disability,LDP South Cambs - Special Needs,Supported Living
Cambridgeshire County Council,18-Sep-15,19294112-12038769,-710,Dimensions (Uk) Ltd,Care Establishment,2 - Operations - Learning Disability,LDP South Cambs - Special Needs,Supported Living
Cambridgeshire County Council,18-Sep-15,19294114-12038771,-710,Dimensions (Uk) Ltd,Care Establishment,2 - Operations - Learning Disability,LDP South Cambs - Special Needs,Supported Living
Cambridgeshire County Council,18-Sep-15,19294117-12038774,-710,Dimensions (Uk) Ltd,Care Establishment,2 - Operations - Learning Disability,LDP South Cambs - Special Needs,Supported Living
Cambridgeshire County Council,18-Sep-15,19294122-12038777,-710,Dimensions (Uk) Ltd,Care Establishment,2 - Operations - Learning Disability,LDP South Cambs - Special Needs,Supported Living
Cambridgeshire County Council,18-Sep-15,19294127-12038782,-710,Dimensions (Uk) Ltd,Care Establishment,2 - Operations - Learning Disability,LDP South Cambs - Special Needs,Supported Living
Cambridgeshire County Council,18-Sep-15,19294130-12038785,-710,Dimensions (Uk) Ltd,Care Establishment,2 - Operations - Learning Disability,LDP South Cambs - Special Needs,Supported Living
Cambridgeshire County Council,18-Sep-15,19294134-12038788,-710,Dimensions (Uk) Ltd,Care Establishment,2 - Operations - Learning Disability,LDP South Cambs - Special Needs,Supported Living
Cambridgeshire County Council,24-Sep-15,19286254-12068607,-710,Gracefield Nursing And Residential Home,Care Establishment,2 - Commissioning - Older people Pool,Older People Mental Health City & South,Nursing Independent Sector
Cambridgeshire County Council,03-Sep-15,19227377-11977277,-703,Orchard Manor (Scope),Care Establishment,2 - Operations - Learning Disability,LDP City Team,Residential Independent Sector
Cambridgeshire County Council,10-Sep-15,19265104-11999270,-701,The Cambridge Housing Society Ltd,Care Establishment,2 - Commissioning - Older people Pool,North City Older People's Integrated Team,Residential Independent Sector
Cambridgeshire County Council,18-Sep-15,19246161-12033975,-700,The Gables Specialist Nursing Home,Care Establishment,2 - Commissioning - Older people Pool,Older People Mental Health Fenland,Nursing Independent Sector
Cambridgeshire County Council,22-Sep-15,19268935-12048179,-690,Posturite (Uk) Ltd,Trade Supplier,E&P,Head of Service SEND Specialist Services,General Office Expenses & Stationery
Cambridgeshire County Council,24-Sep-15,19327162-12064284,-686,Cottenham Court Nursing Home,Care Establishment,2 - Commissioning - Older people Pool,Older People Mental Health City & South,Residential Independent Sector
Cambridgeshire County Council,01-Sep-15,19217066-11967727,-683,Mencap,Care Establishment,2 - Operations - Learning Disability,LDP City Team,Supported Living
Cambridgeshire County Council,18-Sep-15,17132696-12030673,-678,St George'S Court,Care Establishment,2 - Commissioning - Older people Pool,North City Older People's Integrated Team,Nursing Independent Sector
Cambridgeshire County Council,18-Sep-15,17132699-12030676,-678,St George'S Court,Care Establishment,2 - Commissioning - Older people Pool,North City Older People's Integrated Team,Nursing Independent Sector
Cambridgeshire County Council,18-Sep-15,17132714-12030691,-678,St George'S Court,Care Establishment,2 - Commissioning - Older people Pool,North City Older People's Integrated Team,Nursing Independent Sector
Cambridgeshire County Council,24-Sep-15,19325945-12068458,-678,Buchan Healthcare Ltd,Care Establishment,2 - Commissioning - Older people Pool,East Cambs - O P Team,Nursing Independent Sector
Cambridgeshire County Council,24-Sep-15,19325946-12068459,-678,Buchan Healthcare Ltd,Care Establishment,2 - Commissioning - Older people Pool,East Cambs - O P Team,Nursing Independent Sector
Cambridgeshire County Council,24-Sep-15,19325955-12068465,-678,Buchan Healthcare Ltd,Care Establishment,2 - Commissioning - Older people Pool,East Cambs - O P Team,Nursing Independent Sector
Cambridgeshire County Council,24-Sep-15,19325959-12068451,-678,Buchan Healthcare Ltd,Care Establishment,2 - Commissioning - Older people Pool,East Cambs - O P Team,Nursing Independent Sector
Cambridgeshire County Council,24-Sep-15,19325960-12068452,-678,Buchan Healthcare Ltd,Care Establishment,2 - Commissioning - Older people Pool,East Cambs - O P Team,Nursing Independent Sector
Cambridgeshire County Council,24-Sep-15,19325961-12068453,-678,Buchan Healthcare Ltd,Care Establishment,2 - Commissioning - Older people Pool,East Cambs - O P Team,Nursing Independent Sector
Cambridgeshire County Council,24-Sep-15,19325965-12068455,-678,Buchan Healthcare Ltd,Care Establishment,2 - Commissioning - Older people Pool,East Cambs - O P Team,Nursing Independent Sector
Cambridgeshire County Council,24-Sep-15,19325966-12068456,-678,Buchan Healthcare Ltd,Care Establishment,2 - Commissioning - Older people Pool,East Cambs - O P Team,Nursing Independent Sector
Cambridgeshire County Council,24-Sep-15,19336248-12068440,-678,Buchan Healthcare Ltd,Care Establishment,2 - Commissioning - Older people Pool,East Cambs - O P Team,Nursing Independent Sector
Cambridgeshire County Council,24-Sep-15,19336252-12068442,-678,Buchan Healthcare Ltd,Care Establishment,2 - Commissioning - Older people Pool,East Cambs - O P Team,Nursing Independent Sector
Cambridgeshire County Council,24-Sep-15,19336255-12068443,-678,Buchan Healthcare Ltd,Care Establishment,2 - Commissioning - Older people Pool,East Cambs - O P Team,Nursing Independent Sector
Cambridgeshire County Council,24-Sep-15,19336258-12068445,-678,Buchan Healthcare Ltd,Care Establishment,2 - Commissioning - Older people Pool,East Cambs - O P Team,Nursing Independent Sector
Cambridgeshire County Council,24-Sep-15,19336262-12068448,-678,Buchan Healthcare Ltd,Care Establishment,2 - Commissioning - Older people Pool,East Cambs - O P Team,Nursing Independent Sector
Cambridgeshire County Council,24-Sep-15,19336266-12068450,-678,Buchan Healthcare Ltd,Care Establishment,2 - Commissioning - Older people Pool,East Cambs - O P Team,Nursing Independent Sector
Cambridgeshire County Council,24-Sep-15,19334090-12064021,-675,Cottenham Court Nursing Home,Care Establishment,2 - Commissioning - Older people Pool,North City Older People's Integrated Team,Nursing Independent Sector
Cambridgeshire County Council,24-Sep-15,19334091-12064022,-675,Cottenham Court Nursing Home,Care Establishment,2 - Commissioning - Older people Pool,North City Older People's Integrated Team,Nursing Independent Sector
Cambridgeshire County Council,24-Sep-15,19334092-12064023,-675,Cottenham Court Nursing Home,Care Establishment,2 - Commissioning - Older people Pool,North City Older People's Integrated Team,Nursing Independent Sector
Cambridgeshire County Council,24-Sep-15,19334094-12064024,-675,Cottenham Court Nursing Home,Care Establishment,2 - Commissioning - Older people Pool,North City Older People's Integrated Team,Nursing Independent Sector
Cambridgeshire County Council,24-Sep-15,19334095-12064025,-675,Cottenham Court Nursing Home,Care Establishment,2 - Commissioning - Older people Pool,North City Older People's Integrated Team,Nursing Independent Sector
Cambridgeshire County Council,24-Sep-15,19334098-12064028,-675,Cottenham Court Nursing Home,Care Establishment,2 - Commissioning - Older people Pool,North City Older People's Integrated Team,Nursing Independent Sector
Cambridgeshire County Council,24-Sep-15,19334099-12064029,-675,Cottenham Court Nursing Home,Care Establishment,2 - Commissioning - Older people Pool,North City Older People's Integrated Team,Nursing Independent Sector
Cambridgeshire County Council,24-Sep-15,19334100-12064030,-675,Cottenham Court Nursing Home,Care Establishment,2 - Commissioning - Older people Pool,North City Older People's Integrated Team,Nursing Independent Sector
Cambridgeshire County Council,24-Sep-15,19334102-12064032,-675,Cottenham Court Nursing Home,Care Establishment,2 - Commissioning - Older people Pool,North City Older People's Integrated Team,Nursing Independent Sector
Cambridgeshire County Council,24-Sep-15,19334104-12064034,-675,Cottenham Court Nursing Home,Care Establishment,2 - Commissioning - Older people Pool,North City Older People's Integrated Team,Nursing Independent Sector
Cambridgeshire County Council,24-Sep-15,19334105-12064035,-675,Cottenham Court Nursing Home,Care Establishment,2 - Commissioning - Older people Pool,North City Older People's Integrated Team,Nursing Independent Sector
Cambridgeshire County Council,24-Sep-15,19334107-12064036,-675,Cottenham Court Nursing Home,Care Establishment,2 - Commissioning - Older people Pool,North City Older People's Integrated Team,Nursing Independent Sector
Cambridgeshire County Council,24-Sep-15,19334114-12064043,-675,Cottenham Court Nursing Home,Care Establishment,2 - Commissioning - Older people Pool,North City Older People's Integrated Team,Nursing Independent Sector
Cambridgeshire County Council,24-Sep-15,19334117-12064046,-675,Cottenham Court Nursing Home,Care Establishment,2 - Commissioning - Older people Pool,North City Older People's Integrated Team,Nursing Independent Sector
Cambridgeshire County Council,24-Sep-15,19334118-12064047,-675,Cottenham Court Nursing Home,Care Establishment,2 - Commissioning - Older people Pool,North City Older People's Integrated Team,Nursing Independent Sector
Cambridgeshire County Council,24-Sep-15,19334120-12064049,-675,Cottenham Court Nursing Home,Care Establishment,2 - Commissioning - Older people Pool,North City Older People's Integrated Team,Nursing Independent Sector
Cambridgeshire County Council,24-Sep-15,19334121-12064050,-675,Cottenham Court Nursing Home,Care Establishment,2 - Commissioning - Older people Pool,North City Older People's Integrated Team,Nursing Independent Sector
Cambridgeshire County Council,24-Sep-15,19334124-12064053,-675,Cottenham Court Nursing Home,Care Establishment,2 - Commissioning - Older people Pool,North City Older People's Integrated Team,Nursing Independent Sector
Cambridgeshire County Council,24-Sep-15,19334773-12063870,-675,Cottenham Court Nursing Home,Care Establishment,2 - Commissioning - Older people Pool,North City Older People's Integrated Team,Nursing Independent Sector
Cambridgeshire County Council,24-Sep-15,19334774-12063871,-675,Cottenham Court Nursing Home,Care Establishment,2 - Commissioning - Older people Pool,North City Older People's Integrated Team,Nursing Independent Sector
Cambridgeshire County Council,24-Sep-15,19334777-12063873,-675,Cottenham Court Nursing Home,Care Establishment,2 - Commissioning - Older people Pool,North City Older People's Integrated Team,Nursing Independent Sector
Cambridgeshire County Council,24-Sep-15,19334779-12063875,-675,Cottenham Court Nursing Home,Care Establishment,2 - Commissioning - Older people Pool,North City Older People's Integrated Team,Nursing Independent Sector
Cambridgeshire County Council,24-Sep-15,19334780-12063876,-675,Cottenham Court Nursing Home,Care Establishment,2 - Commissioning - Older people Pool,North City Older People's Integrated Team,Nursing Independent Sector
Cambridgeshire County Council,18-Sep-15,17132692-12030669,-669,St George'S Court,Care Establishment,2 - Commissioning - Older people Pool,Older People Mental Health City & South,Nursing Independent Sector
Cambridgeshire County Council,18-Sep-15,17132695-12030672,-669,St George'S Court,Care Establishment,2 - Commissioning - Older people Pool,Older People Mental Health City & South,Nursing Independent Sector
Cambridgeshire County Council,18-Sep-15,17132697-12030674,-669,St George'S Court,Care Establishment,2 - Commissioning - Older people Pool,Older People Mental Health City & South,Nursing Independent Sector
Cambridgeshire County Council,18-Sep-15,17132698-12030675,-669,St George'S Court,Care Establishment,2 - Commissioning - Older people Pool,Older People Mental Health City & South,Nursing Independent Sector
Cambridgeshire County Council,18-Sep-15,17132700-12030677,-669,St George'S Court,Care Establishment,2 - Commissioning - Older people Pool,Older People Mental Health City & South,Nursing Independent Sector
Cambridgeshire County Council,18-Sep-15,17132701-12030678,-669,St George'S Court,Care Establishment,2 - Commissioning - Older people Pool,Older People Mental Health City & South,Nursing Independent Sector
Cambridgeshire County Council,18-Sep-15,17132702-12030679,-669,St George'S Court,Care Establishment,2 - Commissioning - Older people Pool,Older People Mental Health City & South,Nursing Independent Sector
Cambridgeshire County Council,18-Sep-15,17132703-12030680,-669,St George'S Court,Care Establishment,2 - Commissioning - Older people Pool,North City Older People's Integrated Team,Nursing Independent Sector
Cambridgeshire County Council,18-Sep-15,17132704-12030681,-669,St George'S Court,Care Establishment,2 - Commissioning - Older people Pool,Older People Mental Health City & South,Nursing Independent Sector
Cambridgeshire County Council,18-Sep-15,17132705-12030682,-669,St George'S Court,Care Establishment,2 - Commissioning - Older people Pool,North City Older People's Integrated Team,Nursing Independent Sector
Cambridgeshire County Council,18-Sep-15,17132706-12030683,-669,St George'S Court,Care Establishment,2 - Commissioning - Older people Pool,North City Older People's Integrated Team,Nursing Independent Sector
Cambridgeshire County Council,18-Sep-15,17132708-12030685,-669,St George'S Court,Care Establishment,2 - Commissioning - Older people Pool,Older People Mental Health City & South,Nursing Independent Sector
Cambridgeshire County Council,18-Sep-15,17132709-12030686,-669,St George'S Court,Care Establishment,2 - Commissioning - Older people Pool,Older People Mental Health City & South,Nursing Independent Sector
Cambridgeshire County Council,18-Sep-15,17132710-12030687,-669,St George'S Court,Care Establishment,2 - Commissioning - Older people Pool,Older People Mental Health City & South,Nursing Independent Sector
Cambridgeshire County Council,18-Sep-15,17132711-12030688,-669,St George'S Court,Care Establishment,2 - Commissioning - Older people Pool,Older People Mental Health City & South,Nursing Independent Sector
Cambridgeshire County Council,18-Sep-15,17132713-12030690,-669,St George'S Court,Care Establishment,2 - Commissioning - Older people Pool,North City Older People's Integrated Team,Nursing Independent Sector
Cambridgeshire County Council,18-Sep-15,17132716-12030693,-669,St George'S Court,Care Establishment,2 - Commissioning - Older people Pool,Older People Mental Health City & South,Nursing Independent Sector
Cambridgeshire County Council,18-Sep-15,17143082-12030694,-669,St George'S Court,Care Establishment,2 - Commissioning - Older people Pool,Older People Mental Health City & South,Nursing Independent Sector
Cambridgeshire County Council,18-Sep-15,17143083-12030695,-669,St George'S Court,Care Establishment,2 - Commissioning - Older people Pool,North City Older People's Integrated Team,Nursing Independent Sector
Cambridgeshire County Council,18-Sep-15,17143084-12030696,-669,St George'S Court,Care Establishment,2 - Commissioning - Older people Pool,North City Older People's Integrated Team,Nursing Independent Sector
Cambridgeshire County Council,18-Sep-15,17143085-12030622,-669,St George'S Court,Care Establishment,2 - Commissioning - Older people Pool,Older People Mental Health City & South,Nursing Independent Sector
Cambridgeshire County Council,18-Sep-15,17143086-12030623,-669,St George'S Court,Care Establishment,2 - Commissioning - Older people Pool,North City Older People's Integrated Team,Nursing Independent Sector
Cambridgeshire County Council,18-Sep-15,17143087-12030624,-669,St George'S Court,Care Establishment,2 - Commissioning - Older people Pool,North City Older People's Integrated Team,Nursing Independent Sector
Cambridgeshire County Council,18-Sep-15,17143088-12030625,-669,St George'S Court,Care Establishment,2 - Commissioning - Older people Pool,North City Older People's Integrated Team,Nursing Independent Sector
Cambridgeshire County Council,18-Sep-15,17143089-12030626,-669,St George'S Court,Care Establishment,2 - Commissioning - Older people Pool,North City Older People's Integrated Team,Nursing Independent Sector
Cambridgeshire County Council,18-Sep-15,17143090-12030627,-669,St George'S Court,Care Establishment,2 - Commissioning - Older people Pool,Older People Mental Health City & South,Nursing Independent Sector
Cambridgeshire County Council,18-Sep-15,17143091-12030628,-669,St George'S Court,Care Establishment,2 - Commissioning - Older people Pool,Older People Mental Health City & South,Nursing Independent Sector
Cambridgeshire County Council,18-Sep-15,17143092-12030629,-669,St George'S Court,Care Establishment,2 - Commissioning - Older people Pool,Older People Mental Health City & South,Nursing Independent Sector
Cambridgeshire County Council,18-Sep-15,17143093-12030630,-669,St George'S Court,Care Establishment,2 - Commissioning - Older people Pool,Older People Mental Health City & South,Nursing Independent Sector
Cambridgeshire County Council,18-Sep-15,17143094-12030631,-669,St George'S Court,Care Establishment,2 - Commissioning - Older people Pool,North City Older People's Integrated Team,Nursing Independent Sector
Cambridgeshire County Council,18-Sep-15,17143095-12030632,-669,St George'S Court,Care Establishment,2 - Commissioning - Older people Pool,North City Older People's Integrated Team,Nursing Independent Sector
Cambridgeshire County Council,18-Sep-15,17143096-12030633,-669,St George'S Court,Care Establishment,2 - Commissioning - Older people Pool,North City Older People's Integrated Team,Nursing Independent Sector
Cambridgeshire County Council,18-Sep-15,17143098-12030635,-669,St George'S Court,Care Establishment,2 - Commissioning - Older people Pool,Older People Mental Health City & South,Nursing Independent Sector
Cambridgeshire County Council,18-Sep-15,17143099-12030636,-669,St George'S Court,Care Establishment,2 - Commissioning - Older people Pool,North City Older People's Integrated Team,Nursing Independent Sector
Cambridgeshire County Council,18-Sep-15,17143100-12030637,-669,St George'S Court,Care Establishment,2 - Commissioning - Older people Pool,Older People Mental Health City & South,Nursing Independent Sector
Cambridgeshire County Council,18-Sep-15,17143101-12030638,-669,St George'S Court,Care Establishment,2 - Commissioning - Older people Pool,Older People Mental Health City & South,Nursing Independent Sector
Cambridgeshire County Council,18-Sep-15,17143102-12030639,-669,St George'S Court,Care Establishment,2 - Commissioning - Older people Pool,North City Older People's Integrated Team,Nursing Independent Sector
Cambridgeshire County Council,18-Sep-15,17143104-12030658,-669,St George'S Court,Care Establishment,2 - Commissioning - Older people Pool,Older People Mental Health City & South,Nursing Independent Sector
Cambridgeshire County Council,18-Sep-15,17143105-12030659,-669,St George'S Court,Care Establishment,2 - Commissioning - Older people Pool,Older People Mental Health City & South,Nursing Independent Sector
Cambridgeshire County Council,18-Sep-15,17143106-12030660,-669,St George'S Court,Care Establishment,2 - Commissioning - Older people Pool,Older People Mental Health City & South,Nursing Independent Sector
Cambridgeshire County Council,18-Sep-15,19285652-12038854,-648,Dimensions (Uk) Ltd,Care Establishment,2 - Operations - Learning Disability,LDP South Cambs - Special Needs,Day and Domicillary Care Independent Sector
Cambridgeshire County Council,24-Sep-15,19329896-12065616,-643,The Elms Nursing Home,Care Establishment,2 - Commissioning - Older people Pool,Hunts O P  Team,Short Term Other
Cambridgeshire County Council,24-Sep-15,19322864-12065329,-640,The Elms Nursing Home,Care Establishment,2 - Commissioning - Older people Pool,Wisbech Older People Integration Team,Nursing Independent Sector
Cambridgeshire County Council,24-Sep-15,19322868-12065332,-640,The Elms Nursing Home,Care Establishment,2 - Commissioning - Older people Pool,Wisbech Older People Integration Team,Nursing Independent Sector
Cambridgeshire County Council,24-Sep-15,19322879-12065335,-640,The Elms Nursing Home,Care Establishment,2 - Commissioning - Older people Pool,Wisbech Older People Integration Team,Nursing Independent Sector
Cambridgeshire County Council,24-Sep-15,19322885-12065337,-640,The Elms Nursing Home,Care Establishment,2 - Commissioning - Older people Pool,Wisbech Older People Integration Team,Nursing Independent Sector
Cambridgeshire County Council,24-Sep-15,19322893-12065340,-640,The Elms Nursing Home,Care Establishment,2 - Commissioning - Older people Pool,Wisbech Older People Integration Team,Nursing Independent Sector
Cambridgeshire County Council,24-Sep-15,19322895-12065341,-640,The Elms Nursing Home,Care Establishment,2 - Commissioning - Older people Pool,Wisbech Older People Integration Team,Nursing Independent Sector
Cambridgeshire County Council,24-Sep-15,19322904-12065346,-640,The Elms Nursing Home,Care Establishment,2 - Commissioning - Older people Pool,Wisbech Older People Integration Team,Nursing Independent Sector
Cambridgeshire County Council,24-Sep-15,19322906-12065348,-640,The Elms Nursing Home,Care Establishment,2 - Commissioning - Older people Pool,Wisbech Older People Integration Team,Nursing Independent Sector
Cambridgeshire County Council,24-Sep-15,19322911-12065349,-640,The Elms Nursing Home,Care Establishment,2 - Commissioning - Older people Pool,Wisbech Older People Integration Team,Nursing Independent Sector
Cambridgeshire County Council,24-Sep-15,19322912-12065350,-640,The Elms Nursing Home,Care Establishment,2 - Commissioning - Older people Pool,Wisbech Older People Integration Team,Nursing Independent Sector
Cambridgeshire County Council,24-Sep-15,19322913-12065351,-640,The Elms Nursing Home,Care Establishment,2 - Commissioning - Older people Pool,Wisbech Older People Integration Team,Nursing Independent Sector
Cambridgeshire County Council,24-Sep-15,19322924-12065354,-640,The Elms Nursing Home,Care Establishment,2 - Commissioning - Older people Pool,Wisbech Older People Integration Team,Nursing Independent Sector
Cambridgeshire County Council,24-Sep-15,19322925-12065355,-640,The Elms Nursing Home,Care Establishment,2 - Commissioning - Older people Pool,Wisbech Older People Integration Team,Nursing Independent Sector
Cambridgeshire County Council,24-Sep-15,19322926-12065356,-640,The Elms Nursing Home,Care Establishment,2 - Commissioning - Older people Pool,Wisbech Older People Integration Team,Nursing Independent Sector
Cambridgeshire County Council,24-Sep-15,19322932-12065358,-640,The Elms Nursing Home,Care Establishment,2 - Commissioning - Older people Pool,Wisbech Older People Integration Team,Nursing Independent Sector
Cambridgeshire County Council,24-Sep-15,19322935-12065359,-640,The Elms Nursing Home,Care Establishment,2 - Commissioning - Older people Pool,Wisbech Older People Integration Team,Nursing Independent Sector
Cambridgeshire County Council,24-Sep-15,19322936-12065360,-640,The Elms Nursing Home,Care Establishment,2 - Commissioning - Older people Pool,Wisbech Older People Integration Team,Nursing Independent Sector
Cambridgeshire County Council,24-Sep-15,19322950-12065296,-640,The Elms Nursing Home,Care Establishment,2 - Commissioning - Older people Pool,Wisbech Older People Integration Team,Nursing Independent Sector
Cambridgeshire County Council,24-Sep-15,19329552-12065620,-640,The Elms Nursing Home,Care Establishment,2 - Commissioning - Older people Pool,Wisbech Older People Integration Team,Nursing Independent Sector
Cambridgeshire County Council,24-Sep-15,19329558-12065622,-640,The Elms Nursing Home,Care Establishment,2 - Commissioning - Older people Pool,Wisbech Older People Integration Team,Nursing Independent Sector
Cambridgeshire County Council,24-Sep-15,19329572-12065627,-640,The Elms Nursing Home,Care Establishment,2 - Commissioning - Older people Pool,Wisbech Older People Integration Team,Nursing Independent Sector
Cambridgeshire County Council,24-Sep-15,19334574-12065286,-640,The Elms Nursing Home,Care Establishment,2 - Commissioning - Older people Pool,Wisbech Older People Integration Team,Nursing Independent Sector
Cambridgeshire County Council,24-Sep-15,19334575-12065287,-640,The Elms Nursing Home,Care Establishment,2 - Commissioning - Older people Pool,Wisbech Older People Integration Team,Nursing Independent Sector
Cambridgeshire County Council,24-Sep-15,19334578-12065290,-640,The Elms Nursing Home,Care Establishment,2 - Commissioning - Older people Pool,Wisbech Older People Integration Team,Nursing Independent Sector
Cambridgeshire County Council,24-Sep-15,19334586-12065292,-640,The Elms Nursing Home,Care Establishment,2 - Commissioning - Older people Pool,Wisbech Older People Integration Team,Nursing Independent Sector
Cambridgeshire County Council,24-Sep-15,19334587-12065293,-640,The Elms Nursing Home,Care Establishment,2 - Commissioning - Older people Pool,Wisbech Older People Integration Team,Nursing Independent Sector
Cambridgeshire County Council,24-Sep-15,19334593-12065295,-640,The Elms Nursing Home,Care Establishment,2 - Commissioning - Older people Pool,Wisbech Older People Integration Team,Nursing Independent Sector
Cambridgeshire County Council,18-Sep-15,19262396-12041340,-617,Hunters Healthcare (Hunters Down),Care Establishment,2 - Commissioning - Older people Pool,North City Older People's Integrated Team,Nursing Independent Sector
Cambridgeshire County Council,18-Sep-15,19264989-12041319,-617,Hunters Healthcare (Hunters Down),Care Establishment,2 - Commissioning - Older people Pool,North City Older People's Integrated Team,Nursing Independent Sector
Cambridgeshire County Council,18-Sep-15,19264990-12041320,-617,Hunters Healthcare (Hunters Down),Care Establishment,2 - Commissioning - Older people Pool,North City Older People's Integrated Team,Nursing Independent Sector
Cambridgeshire County Council,24-Sep-15,19328836-12070205,-614,The Cambridge Nursing Centre,Care Establishment,2 - Commissioning - Older people Pool,Older People Mental Health City & South,Nursing Independent Sector
Cambridgeshire County Council,24-Sep-15,19328844-12070213,-614,The Cambridge Nursing Centre,Care Establishment,2 - Commissioning - Older people Pool,Older People Mental Health City & South,Nursing Independent Sector
Cambridgeshire County Council,24-Sep-15,19328851-12070220,-614,The Cambridge Nursing Centre,Care Establishment,2 - Commissioning - Older people Pool,Older People Mental Health City & South,Nursing Independent Sector
Cambridgeshire County Council,24-Sep-15,19328852-12070221,-614,The Cambridge Nursing Centre,Care Establishment,2 - Commissioning - Older people Pool,Older People Mental Health City & South,Nursing Independent Sector
Cambridgeshire County Council,24-Sep-15,19328856-12070115,-614,The Cambridge Nursing Centre,Care Establishment,2 - Commissioning - Older people Pool,Older People Mental Health City & South,Nursing Independent Sector
Cambridgeshire County Council,24-Sep-15,19328859-12070118,-614,The Cambridge Nursing Centre,Care Establishment,2 - Commissioning - Older people Pool,Older People Mental Health City & South,Nursing Independent Sector
Cambridgeshire County Council,24-Sep-15,19328868-12070127,-614,The Cambridge Nursing Centre,Care Establishment,2 - Commissioning - Older people Pool,Older People Mental Health City & South,Nursing Independent Sector
Cambridgeshire County Council,24-Sep-15,19328869-12070128,-614,The Cambridge Nursing Centre,Care Establishment,2 - Commissioning - Older people Pool,Older People Mental Health City & South,Nursing Independent Sector
Cambridgeshire County Council,24-Sep-15,19328873-12070132,-614,The Cambridge Nursing Centre,Care Establishment,2 - Commissioning - Older people Pool,Older People Mental Health City & South,Nursing Independent Sector
Cambridgeshire County Council,24-Sep-15,19328874-12070133,-614,The Cambridge Nursing Centre,Care Establishment,2 - Commissioning - Older people Pool,Older People Mental Health City & South,Nursing Independent Sector
Cambridgeshire County Council,24-Sep-15,19334988-12069586,-614,The Cambridge Nursing Centre,Care Establishment,2 - Commissioning - Older people Pool,Older People Mental Health City & South,Nursing Independent Sector
Cambridgeshire County Council,24-Sep-15,19334997-12069595,-614,The Cambridge Nursing Centre,Care Establishment,2 - Commissioning - Older people Pool,Older People Mental Health City & South,Nursing Independent Sector
Cambridgeshire County Council,24-Sep-15,19334998-12069596,-614,The Cambridge Nursing Centre,Care Establishment,2 - Commissioning - Older people Pool,Older People Mental Health City & South,Nursing Independent Sector
Cambridgeshire County Council,24-Sep-15,19334999-12069597,-614,The Cambridge Nursing Centre,Care Establishment,2 - Commissioning - Older people Pool,Older People Mental Health City & South,Nursing Independent Sector
Cambridgeshire County Council,24-Sep-15,19335001-12069599,-614,The Cambridge Nursing Centre,Care Establishment,2 - Commissioning - Older people Pool,Older People Mental Health City & South,Nursing Independent Sector
Cambridgeshire County Council,24-Sep-15,19335005-12069603,-614,The Cambridge Nursing Centre,Care Establishment,2 - Commissioning - Older people Pool,Older People Mental Health City & South,Nursing Independent Sector
Cambridgeshire County Council,24-Sep-15,19335007-12069605,-614,The Cambridge Nursing Centre,Care Establishment,2 - Commissioning - Older people Pool,Older People Mental Health City & South,Nursing Independent Sector
Cambridgeshire County Council,24-Sep-15,19335008-12069606,-614,The Cambridge Nursing Centre,Care Establishment,2 - Commissioning - Older people Pool,Older People Mental Health City & South,Nursing Independent Sector
Cambridgeshire County Council,24-Sep-15,19335017-12069615,-614,The Cambridge Nursing Centre,Care Establishment,2 - Commissioning - Older people Pool,Older People Mental Health City & South,Nursing Independent Sector
Cambridgeshire County Council,24-Sep-15,19335018-12069616,-614,The Cambridge Nursing Centre,Care Establishment,2 - Commissioning - Older people Pool,Older People Mental Health City & South,Nursing Independent Sector
Cambridgeshire County Council,24-Sep-15,19335029-12069517,-614,The Cambridge Nursing Centre,Care Establishment,2 - Commissioning - Older people Pool,Older People Mental Health City & South,Nursing Independent Sector
Cambridgeshire County Council,24-Sep-15,19335040-12069528,-614,The Cambridge Nursing Centre,Care Establishment,2 - Commissioning - Older people Pool,Older People Mental Health City & South,Nursing Independent Sector
Cambridgeshire County Council,24-Sep-15,19338124-12070032,-614,The Cambridge Nursing Centre,Care Establishment,2 - Commissioning - Older people Pool,Older People Mental Health City & South,Nursing Independent Sector
Cambridgeshire County Council,24-Sep-15,19338127-12070035,-614,The Cambridge Nursing Centre,Care Establishment,2 - Commissioning - Older people Pool,Older People Mental Health City & South,Nursing Independent Sector
Cambridgeshire County Council,24-Sep-15,19338386-12070026,-614,The Cambridge Nursing Centre,Care Establishment,2 - Commissioning - Older people Pool,Older People Mental Health City & South,Nursing Independent Sector
Cambridgeshire County Council,18-Sep-15,19284125-12038690,-608,Dimensions (Uk) Ltd,Care Establishment,2 - Operations - Learning Disability,LDP South Cambs - Special Needs,Supported Living
Cambridgeshire County Council,24-Sep-15,19328827-12070196,-605,The Cambridge Nursing Centre,Care Establishment,2 - Commissioning - Older people Pool,North City Older People's Integrated Team,Nursing Independent Sector
Cambridgeshire County Council,24-Sep-15,19328828-12070197,-605,The Cambridge Nursing Centre,Care Establishment,2 - Commissioning - Older people Pool,North City Older People's Integrated Team,Nursing Independent Sector
Cambridgeshire County Council,24-Sep-15,19328830-12070199,-605,The Cambridge Nursing Centre,Care Establishment,2 - Commissioning - Older people Pool,North City Older People's Integrated Team,Nursing Independent Sector
Cambridgeshire County Council,24-Sep-15,19328833-12070202,-605,The Cambridge Nursing Centre,Care Establishment,2 - Commissioning - Older people Pool,North City Older People's Integrated Team,Nursing Independent Sector
Cambridgeshire County Council,24-Sep-15,19328834-12070203,-605,The Cambridge Nursing Centre,Care Establishment,2 - Commissioning - Older people Pool,North City Older People's Integrated Team,Nursing Independent Sector
Cambridgeshire County Council,24-Sep-15,19328838-12070207,-605,The Cambridge Nursing Centre,Care Establishment,2 - Commissioning - Older people Pool,North City Older People's Integrated Team,Nursing Independent Sector
Cambridgeshire County Council,24-Sep-15,19328840-12070209,-605,The Cambridge Nursing Centre,Care Establishment,2 - Commissioning - Older people Pool,North City Older People's Integrated Team,Nursing Independent Sector
Cambridgeshire County Council,24-Sep-15,19328847-12070216,-605,The Cambridge Nursing Centre,Care Establishment,2 - Commissioning - Older people Pool,North City Older People's Integrated Team,Nursing Independent Sector
Cambridgeshire County Council,24-Sep-15,19328850-12070219,-605,The Cambridge Nursing Centre,Care Establishment,2 - Commissioning - Older people Pool,North City Older People's Integrated Team,Nursing Independent Sector
Cambridgeshire County Council,24-Sep-15,19328854-12070223,-605,The Cambridge Nursing Centre,Care Establishment,2 - Commissioning - Older people Pool,North City Older People's Integrated Team,Nursing Independent Sector
Cambridgeshire County Council,24-Sep-15,19328861-12070120,-605,The Cambridge Nursing Centre,Care Establishment,2 - Commissioning - Older people Pool,North City Older People's Integrated Team,Nursing Independent Sector
Cambridgeshire County Council,24-Sep-15,19328862-12070121,-605,The Cambridge Nursing Centre,Care Establishment,2 - Commissioning - Older people Pool,North City Older People's Integrated Team,Nursing Independent Sector
Cambridgeshire County Council,24-Sep-15,19328867-12070126,-605,The Cambridge Nursing Centre,Care Establishment,2 - Commissioning - Older people Pool,North City Older People's Integrated Team,Nursing Independent Sector
Cambridgeshire County Council,24-Sep-15,19328870-12070129,-605,The Cambridge Nursing Centre,Care Establishment,2 - Commissioning - Older people Pool,North City Older People's Integrated Team,Nursing Independent Sector
Cambridgeshire County Council,24-Sep-15,19328872-12070131,-605,The Cambridge Nursing Centre,Care Establishment,2 - Commissioning - Older people Pool,North City Older People's Integrated Team,Nursing Independent Sector
Cambridgeshire County Council,24-Sep-15,19334993-12069591,-605,The Cambridge Nursing Centre,Care Establishment,2 - Commissioning - Older people Pool,North City Older People's Integrated Team,Nursing Independent Sector
Cambridgeshire County Council,24-Sep-15,19334994-12069592,-605,The Cambridge Nursing Centre,Care Establishment,2 - Commissioning - Older people Pool,North City Older People's Integrated Team,Nursing Independent Sector
Cambridgeshire County Council,24-Sep-15,19334995-12069593,-605,The Cambridge Nursing Centre,Care Establishment,2 - Commissioning - Older people Pool,North City Older People's Integrated Team,Nursing Independent Sector
Cambridgeshire County Council,24-Sep-15,19334996-12069594,-605,The Cambridge Nursing Centre,Care Establishment,2 - Commissioning - Older people Pool,North City Older People's Integrated Team,Nursing Independent Sector
Cambridgeshire County Council,24-Sep-15,19335013-12069611,-605,The Cambridge Nursing Centre,Care Establishment,2 - Commissioning - Older people Pool,North City Older People's Integrated Team,Nursing Independent Sector
Cambridgeshire County Council,24-Sep-15,19335014-12069612,-605,The Cambridge Nursing Centre,Care Establishment,2 - Commissioning - Older people Pool,North City Older People's Integrated Team,Nursing Independent Sector
Cambridgeshire County Council,24-Sep-15,19335019-12069617,-605,The Cambridge Nursing Centre,Care Establishment,2 - Commissioning - Older people Pool,North City Older People's Integrated Team,Nursing Independent Sector
Cambridgeshire County Council,24-Sep-15,19335020-12069618,-605,The Cambridge Nursing Centre,Care Establishment,2 - Commissioning - Older people Pool,North City Older People's Integrated Team,Nursing Independent Sector
Cambridgeshire County Council,24-Sep-15,19335023-12069511,-605,The Cambridge Nursing Centre,Care Establishment,2 - Commissioning - Older people Pool,North City Older People's Integrated Team,Nursing Independent Sector
Cambridgeshire County Council,24-Sep-15,19335025-12069513,-605,The Cambridge Nursing Centre,Care Establishment,2 - Commissioning - Older people Pool,North City Older People's Integrated Team,Nursing Independent Sector
Cambridgeshire County Council,24-Sep-15,19335026-12069514,-605,The Cambridge Nursing Centre,Care Establishment,2 - Commissioning - Older people Pool,North City Older People's Integrated Team,Nursing Independent Sector
Cambridgeshire County Council,24-Sep-15,19335041-12069529,-605,The Cambridge Nursing Centre,Care Establishment,2 - Commissioning - Older people Pool,North City Older People's Integrated Team,Nursing Independent Sector
Cambridgeshire County Council,24-Sep-15,18361772-12062944,-603,Polebrook Nursing & Residential Home,Care Establishment,2 - Commissioning - Older people Pool,Older People Mental Health Hunts,Nursing Independent Sector
Cambridgeshire County Council,24-Sep-15,18361775-12062945,-603,Polebrook Nursing & Residential Home,Care Establishment,2 - Commissioning - Older people Pool,Older People Mental Health Hunts,Nursing Independent Sector
Cambridgeshire County Council,24-Sep-15,18361782-12062946,-603,Polebrook Nursing & Residential Home,Care Establishment,2 - Commissioning - Older people Pool,Older People Mental Health Hunts,Nursing Independent Sector
Cambridgeshire County Council,24-Sep-15,18361783-12062947,-603,Polebrook Nursing & Residential Home,Care Establishment,2 - Commissioning - Older people Pool,Older People Mental Health Hunts,Nursing Independent Sector
Cambridgeshire County Council,24-Sep-15,18361785-12062948,-603,Polebrook Nursing & Residential Home,Care Establishment,2 - Commissioning - Older people Pool,Older People Mental Health Hunts,Nursing Independent Sector
Cambridgeshire County Council,24-Sep-15,18361786-12062949,-603,Polebrook Nursing & Residential Home,Care Establishment,2 - Commissioning - Older people Pool,Older People Mental Health Hunts,Nursing Independent Sector
Cambridgeshire County Council,24-Sep-15,18361790-12062950,-603,Polebrook Nursing & Residential Home,Care Establishment,2 - Commissioning - Older people Pool,Older People Mental Health Hunts,Nursing Independent Sector
Cambridgeshire County Council,24-Sep-15,18361797-12062952,-603,Polebrook Nursing & Residential Home,Care Establishment,2 - Commissioning - Older people Pool,Older People Mental Health Hunts,Nursing Independent Sector
Cambridgeshire County Council,24-Sep-15,18361798-12062953,-603,Polebrook Nursing & Residential Home,Care Establishment,2 - Commissioning - Older people Pool,Older People Mental Health Hunts,Nursing Independent Sector
Cambridgeshire County Council,24-Sep-15,18361805-12062954,-603,Polebrook Nursing & Residential Home,Care Establishment,2 - Commissioning - Older people Pool,Older People Mental Health Hunts,Nursing Independent Sector
Cambridgeshire County Council,24-Sep-15,18361813-12062955,-603,Polebrook Nursing & Residential Home,Care Establishment,2 - Commissioning - Older people Pool,Older People Mental Health Hunts,Nursing Independent Sector
Cambridgeshire County Council,24-Sep-15,19336414-12063796,-600,Cottenham Court Nursing Home,Care Establishment,2 - Commissioning - Older people Pool,East Cambs - O P Team,Nursing Independent Sector
Cambridgeshire County Council,24-Sep-15,19336416-12063798,-600,Cottenham Court Nursing Home,Care Establishment,2 - Commissioning - Older people Pool,East Cambs - O P Team,Nursing Independent Sector
Cambridgeshire County Council,24-Sep-15,19336418-12063800,-600,Cottenham Court Nursing Home,Care Establishment,2 - Commissioning - Older people Pool,East Cambs - O P Team,Nursing Independent Sector
Cambridgeshire County Council,24-Sep-15,19336421-12063803,-600,Cottenham Court Nursing Home,Care Establishment,2 - Commissioning - Older people Pool,East Cambs - O P Team,Nursing Independent Sector
Cambridgeshire County Council,24-Sep-15,19336429-12063811,-600,Cottenham Court Nursing Home,Care Establishment,2 - Commissioning - Older people Pool,East Cambs - O P Team,Nursing Independent Sector
Cambridgeshire County Council,24-Sep-15,19336430-12063812,-600,Cottenham Court Nursing Home,Care Establishment,2 - Commissioning - Older people Pool,East Cambs - O P Team,Nursing Independent Sector
Cambridgeshire County Council,24-Sep-15,19336431-12063813,-600,Cottenham Court Nursing Home,Care Establishment,2 - Commissioning - Older people Pool,East Cambs - O P Team,Nursing Independent Sector
Cambridgeshire County Council,24-Sep-15,19336434-12063816,-600,Cottenham Court Nursing Home,Care Establishment,2 - Commissioning - Older people Pool,East Cambs - O P Team,Nursing Independent Sector
Cambridgeshire County Council,24-Sep-15,19336436-12063818,-600,Cottenham Court Nursing Home,Care Establishment,2 - Commissioning - Older people Pool,East Cambs - O P Team,Nursing Independent Sector
Cambridgeshire County Council,24-Sep-15,19336437-12063819,-600,Cottenham Court Nursing Home,Care Establishment,2 - Commissioning - Older people Pool,East Cambs - O P Team,Nursing Independent Sector
Cambridgeshire County Council,24-Sep-15,19336438-12063820,-600,Cottenham Court Nursing Home,Care Establishment,2 - Commissioning - Older people Pool,East Cambs - O P Team,Nursing Independent Sector
Cambridgeshire County Council,24-Sep-15,19336439-12063821,-600,Cottenham Court Nursing Home,Care Establishment,2 - Commissioning - Older people Pool,East Cambs - O P Team,Nursing Independent Sector
Cambridgeshire County Council,24-Sep-15,19336441-12063823,-600,Cottenham Court Nursing Home,Care Establishment,2 - Commissioning - Older people Pool,East Cambs - O P Team,Nursing Independent Sector
Cambridgeshire County Council,24-Sep-15,19336445-12063827,-600,Cottenham Court Nursing Home,Care Establishment,2 - Commissioning - Older people Pool,East Cambs - O P Team,Nursing Independent Sector
Cambridgeshire County Council,24-Sep-15,19336447-12063829,-600,Cottenham Court Nursing Home,Care Establishment,2 - Commissioning - Older people Pool,East Cambs - O P Team,Nursing Independent Sector
Cambridgeshire County Council,24-Sep-15,19336448-12063830,-600,Cottenham Court Nursing Home,Care Establishment,2 - Commissioning - Older people Pool,East Cambs - O P Team,Nursing Independent Sector
Cambridgeshire County Council,24-Sep-15,19336452-12063834,-600,Cottenham Court Nursing Home,Care Establishment,2 - Commissioning - Older people Pool,East Cambs - O P Team,Nursing Independent Sector
Cambridgeshire County Council,24-Sep-15,19336453-12063835,-600,Cottenham Court Nursing Home,Care Establishment,2 - Commissioning - Older people Pool,East Cambs - O P Team,Nursing Independent Sector
Cambridgeshire County Council,24-Sep-15,19336455-12063837,-600,Cottenham Court Nursing Home,Care Establishment,2 - Commissioning - Older people Pool,East Cambs - O P Team,Nursing Independent Sector
Cambridgeshire County Council,24-Sep-15,19336457-12063839,-600,Cottenham Court Nursing Home,Care Establishment,2 - Commissioning - Older people Pool,East Cambs - O P Team,Nursing Independent Sector
Cambridgeshire County Council,24-Sep-15,19336459-12063793,-600,Cottenham Court Nursing Home,Care Establishment,2 - Commissioning - Older people Pool,East Cambs - O P Team,Nursing Independent Sector
Cambridgeshire County Council,24-Sep-15,19336460-12063794,-600,Cottenham Court Nursing Home,Care Establishment,2 - Commissioning - Older people Pool,East Cambs - O P Team,Nursing Independent Sector
Cambridgeshire County Council,24-Sep-15,19336461-12063795,-600,Cottenham Court Nursing Home,Care Establishment,2 - Commissioning - Older people Pool,East Cambs - O P Team,Nursing Independent Sector
Cambridgeshire County Council,24-Sep-15,19332508-12064552,-599,Etheldred House,Care Establishment,2 - Commissioning - Older people Pool,Older People Mental Health City & South,Nursing Independent Sector
Cambridgeshire County Council,03-Sep-15,19246377-11976238,-587,Conquest Care Homes (Soham) Ltd,Care Establishment,2 - Operations - Learning Disability,LDP E Cambs Team,SDS - Care and support Services
Cambridgeshire County Council,18-Sep-15,19264638-12027653,-587,Conquest Care Homes (Soham) Ltd,Care Establishment,2 - Operations - Learning Disability,LDP E Cambs Special Needs,SDS - Care and support Services
Cambridgeshire County Council,18-Sep-15,19282260-12027640,-587,Conquest Care Homes (Soham) Ltd,Care Establishment,2 - Operations - Learning Disability,LDP E Cambs Special Needs,SDS - Care and support Services
Cambridgeshire County Council,24-Sep-15,19329609-12063264,-587,Conquest Care Homes (Soham) Ltd,Care Establishment,2 - Operations - Learning Disability,LDP E Cambs Team,SDS - Care and support Services
Cambridgeshire County Council,18-Sep-15,17143103-12030657,-581,St George'S Court,Care Establishment,2 - Commissioning - Older people Pool,North City Older People's Integrated Team,Nursing Independent Sector
Cambridgeshire County Council,24-Sep-15,19334768-12063865,-579,Cottenham Court Nursing Home,Care Establishment,2 - Commissioning - Older people Pool,North City Older People's Integrated Team,Nursing Independent Sector
Cambridgeshire County Council,18-Sep-15,19290074-12027331,-578,Atlas Home Support,Care Establishment,2 - Operations - Learning Disability,LDP City Team,Supported Living
Cambridgeshire County Council,18-Sep-15,19290078-12027291,-578,Atlas Home Support,Care Establishment,2 - Operations - Learning Disability,LDP City Team,Supported Living
Cambridgeshire County Council,18-Sep-15,19290079-12027292,-578,Atlas Home Support,Care Establishment,2 - Operations - Learning Disability,LDP City Team,Supported Living
Cambridgeshire County Council,18-Sep-15,19301005-12027468,-578,Atlas Home Support,Care Establishment,2 - Operations - Learning Disability,LDP City Team,Supported Living
Cambridgeshire County Council,18-Sep-15,19301011-12027474,-578,Atlas Home Support,Care Establishment,2 - Operations - Learning Disability,LDP City Team,Supported Living
Cambridgeshire County Council,18-Sep-15,19301025-12027488,-578,Atlas Home Support,Care Establishment,2 - Operations - Learning Disability,LDP City Team,Supported Living
Cambridgeshire County Council,18-Sep-15,19301029-12027492,-578,Atlas Home Support,Care Establishment,2 - Operations - Learning Disability,LDP City Team,Supported Living
Cambridgeshire County Council,18-Sep-15,19301036-12027499,-578,Atlas Home Support,Care Establishment,2 - Operations - Learning Disability,LDP City Team,Supported Living
Cambridgeshire County Council,18-Sep-15,19301065-12027394,-578,Atlas Home Support,Care Establishment,2 - Operations - Learning Disability,LDP City Team,Supported Living
Cambridgeshire County Council,18-Sep-15,19301078-12027407,-578,Atlas Home Support,Care Establishment,2 - Operations - Learning Disability,LDP City Team,Supported Living
Cambridgeshire County Council,18-Sep-15,19301085-12027414,-578,Atlas Home Support,Care Establishment,2 - Operations - Learning Disability,LDP City Team,Supported Living
Cambridgeshire County Council,18-Sep-15,19301086-12027415,-578,Atlas Home Support,Care Establishment,2 - Operations - Learning Disability,LDP City Team,Supported Living
Cambridgeshire County Council,18-Sep-15,19301089-12027418,-578,Atlas Home Support,Care Establishment,2 - Operations - Learning Disability,LDP City Team,Supported Living
Cambridgeshire County Council,18-Sep-15,19301094-12027423,-578,Atlas Home Support,Care Establishment,2 - Operations - Learning Disability,LDP City Team,Supported Living
Cambridgeshire County Council,18-Sep-15,19301095-12027424,-578,Atlas Home Support,Care Establishment,2 - Operations - Learning Disability,LDP City Team,Supported Living
Cambridgeshire County Council,18-Sep-15,19301101-12027430,-578,Atlas Home Support,Care Establishment,2 - Operations - Learning Disability,LDP City Team,Supported Living
Cambridgeshire County Council,18-Sep-15,19301102-12027431,-578,Atlas Home Support,Care Establishment,2 - Operations - Learning Disability,LDP City Team,Supported Living
Cambridgeshire County Council,18-Sep-15,19301103-12027432,-578,Atlas Home Support,Care Establishment,2 - Operations - Learning Disability,LDP City Team,Supported Living
Cambridgeshire County Council,18-Sep-15,19301106-12027435,-578,Atlas Home Support,Care Establishment,2 - Operations - Learning Disability,LDP City Team,Supported Living
Cambridgeshire County Council,18-Sep-15,19281420-12027373,-577,Atlas Home Support,Care Establishment,2 - Operations - Learning Disability,LDP City Team,Day and Domicillary Care Independent Sector
Cambridgeshire County Council,18-Sep-15,19281426-12027375,-577,Atlas Home Support,Care Establishment,2 - Operations - Learning Disability,LDP City Team,Day and Domicillary Care Independent Sector
Cambridgeshire County Council,18-Sep-15,19281427-12027376,-577,Atlas Home Support,Care Establishment,2 - Operations - Learning Disability,LDP City Team,Day and Domicillary Care Independent Sector
Cambridgeshire County Council,18-Sep-15,19281428-12027377,-577,Atlas Home Support,Care Establishment,2 - Operations - Learning Disability,LDP City Team,Day and Domicillary Care Independent Sector
Cambridgeshire County Council,18-Sep-15,19281430-12027379,-577,Atlas Home Support,Care Establishment,2 - Operations - Learning Disability,LDP City Team,Day and Domicillary Care Independent Sector
Cambridgeshire County Council,18-Sep-15,19281434-12027381,-577,Atlas Home Support,Care Establishment,2 - Operations - Learning Disability,LDP City Team,Day and Domicillary Care Independent Sector
Cambridgeshire County Council,18-Sep-15,19281435-12027382,-577,Atlas Home Support,Care Establishment,2 - Operations - Learning Disability,LDP City Team,Day and Domicillary Care Independent Sector
Cambridgeshire County Council,18-Sep-15,19281436-12027383,-577,Atlas Home Support,Care Establishment,2 - Operations - Learning Disability,LDP City Team,Day and Domicillary Care Independent Sector
Cambridgeshire County Council,18-Sep-15,19281441-12027385,-577,Atlas Home Support,Care Establishment,2 - Operations - Learning Disability,LDP City Team,Day and Domicillary Care Independent Sector
Cambridgeshire County Council,18-Sep-15,19281442-12027365,-577,Atlas Home Support,Care Establishment,2 - Operations - Learning Disability,LDP City Team,Day and Domicillary Care Independent Sector
Cambridgeshire County Council,18-Sep-15,19281443-12027366,-577,Atlas Home Support,Care Establishment,2 - Operations - Learning Disability,LDP City Team,Day and Domicillary Care Independent Sector
Cambridgeshire County Council,18-Sep-15,19292310-12027529,-577,Atlas Home Support,Care Establishment,2 - Operations - Learning Disability,LDP City Team,Day and Domicillary Care Independent Sector
Cambridgeshire County Council,18-Sep-15,19292321-12027532,-577,Atlas Home Support,Care Establishment,2 - Operations - Learning Disability,LDP City Team,Day and Domicillary Care Independent Sector
Cambridgeshire County Council,18-Sep-15,19292324-12027534,-577,Atlas Home Support,Care Establishment,2 - Operations - Learning Disability,LDP City Team,Day and Domicillary Care Independent Sector
Cambridgeshire County Council,18-Sep-15,19292325-12027535,-577,Atlas Home Support,Care Establishment,2 - Operations - Learning Disability,LDP City Team,Day and Domicillary Care Independent Sector
Cambridgeshire County Council,18-Sep-15,19292329-12027538,-577,Atlas Home Support,Care Establishment,2 - Operations - Learning Disability,LDP City Team,Day and Domicillary Care Independent Sector
Cambridgeshire County Council,18-Sep-15,19292331-12027540,-577,Atlas Home Support,Care Establishment,2 - Operations - Learning Disability,LDP City Team,Day and Domicillary Care Independent Sector
Cambridgeshire County Council,18-Sep-15,19292335-12027542,-577,Atlas Home Support,Care Establishment,2 - Operations - Learning Disability,LDP City Team,Day and Domicillary Care Independent Sector
Cambridgeshire County Council,18-Sep-15,19292339-12027545,-577,Atlas Home Support,Care Establishment,2 - Operations - Learning Disability,LDP City Team,Day and Domicillary Care Independent Sector
Cambridgeshire County Council,18-Sep-15,19292343-12027546,-577,Atlas Home Support,Care Establishment,2 - Operations - Learning Disability,LDP City Team,Day and Domicillary Care Independent Sector
Cambridgeshire County Council,18-Sep-15,19292177-12027575,-576,Atlas Home Support,Care Establishment,2 - Operations - Learning Disability,LDP City Team,SDS - Care and support Services
Cambridgeshire County Council,18-Sep-15,17132707-12030684,-573,St George'S Court,Care Establishment,2 - Commissioning - Older people Pool,Older People Mental Health City & South,Nursing Independent Sector
Cambridgeshire County Council,18-Sep-15,19290003-12027293,-572,Atlas Home Support,Care Establishment,2 - Operations - Learning Disability,LDP City Team,Supported Living
Cambridgeshire County Council,18-Sep-15,19290004-12027294,-572,Atlas Home Support,Care Establishment,2 - Operations - Learning Disability,LDP City Team,Supported Living
Cambridgeshire County Council,18-Sep-15,19290010-12027299,-572,Atlas Home Support,Care Establishment,2 - Operations - Learning Disability,LDP City Team,Supported Living
Cambridgeshire County Council,18-Sep-15,19290030-12027319,-572,Atlas Home Support,Care Establishment,2 - Operations - Learning Disability,LDP City Team,Supported Living
Cambridgeshire County Council,18-Sep-15,19290031-12027320,-572,Atlas Home Support,Care Establishment,2 - Operations - Learning Disability,LDP City Team,Supported Living
Cambridgeshire County Council,18-Sep-15,19290036-12027325,-572,Atlas Home Support,Care Establishment,2 - Operations - Learning Disability,LDP City Team,Supported Living
Cambridgeshire County Council,18-Sep-15,19290038-12027327,-572,Atlas Home Support,Care Establishment,2 - Operations - Learning Disability,LDP City Team,Supported Living
Cambridgeshire County Council,18-Sep-15,19290040-12027329,-572,Atlas Home Support,Care Establishment,2 - Operations - Learning Disability,LDP City Team,Supported Living
Cambridgeshire County Council,18-Sep-15,19290787-12027275,-572,Atlas Home Support,Care Establishment,2 - Operations - Learning Disability,LDP City Team,Supported Living
Cambridgeshire County Council,18-Sep-15,19300966-12027386,-572,Atlas Home Support,Care Establishment,2 - Operations - Learning Disability,LDP City Team,Supported Living
Cambridgeshire County Council,18-Sep-15,19300974-12027438,-572,Atlas Home Support,Care Establishment,2 - Operations - Learning Disability,LDP City Team,Supported Living
Cambridgeshire County Council,18-Sep-15,19300987-12027450,-572,Atlas Home Support,Care Establishment,2 - Operations - Learning Disability,LDP City Team,Supported Living
Cambridgeshire County Council,18-Sep-15,19300989-12027452,-572,Atlas Home Support,Care Establishment,2 - Operations - Learning Disability,LDP City Team,Supported Living
Cambridgeshire County Council,18-Sep-15,19300990-12027453,-572,Atlas Home Support,Care Establishment,2 - Operations - Learning Disability,LDP City Team,Supported Living
Cambridgeshire County Council,18-Sep-15,19300992-12027455,-572,Atlas Home Support,Care Establishment,2 - Operations - Learning Disability,LDP City Team,Supported Living
Cambridgeshire County Council,18-Sep-15,19300994-12027457,-572,Atlas Home Support,Care Establishment,2 - Operations - Learning Disability,LDP City Team,Supported Living
Cambridgeshire County Council,18-Sep-15,19300995-12027458,-572,Atlas Home Support,Care Establishment,2 - Operations - Learning Disability,LDP City Team,Supported Living
Cambridgeshire County Council,18-Sep-15,19301001-12027464,-572,Atlas Home Support,Care Establishment,2 - Operations - Learning Disability,LDP City Team,Supported Living
Cambridgeshire County Council,18-Sep-15,19301002-12027465,-572,Atlas Home Support,Care Establishment,2 - Operations - Learning Disability,LDP City Team,Supported Living
Cambridgeshire County Council,10-Sep-15,19260818-11999586,-565,Midfield Lodge Care Centre,Care Establishment,2 - Commissioning - Older people Pool,East Cambs - O P Team,Nursing Independent Sector
Cambridgeshire County Council,10-Sep-15,19260825-11999593,-565,Midfield Lodge Care Centre,Care Establishment,2 - Commissioning - Older people Pool,East Cambs - O P Team,Nursing Independent Sector
Cambridgeshire County Council,10-Sep-15,19260830-11999598,-565,Midfield Lodge Care Centre,Care Establishment,2 - Commissioning - Older people Pool,East Cambs - O P Team,Nursing Independent Sector
Cambridgeshire County Council,10-Sep-15,19260831-11999599,-565,Midfield Lodge Care Centre,Care Establishment,2 - Commissioning - Older people Pool,East Cambs - O P Team,Nursing Independent Sector
Cambridgeshire County Council,10-Sep-15,19260832-11999600,-565,Midfield Lodge Care Centre,Care Establishment,2 - Commissioning - Older people Pool,East Cambs - O P Team,Nursing Independent Sector
Cambridgeshire County Council,10-Sep-15,19260834-11999602,-565,Midfield Lodge Care Centre,Care Establishment,2 - Commissioning - Older people Pool,East Cambs - O P Team,Nursing Independent Sector
Cambridgeshire County Council,10-Sep-15,19260835-11999603,-565,Midfield Lodge Care Centre,Care Establishment,2 - Commissioning - Older people Pool,East Cambs - O P Team,Nursing Independent Sector
Cambridgeshire County Council,10-Sep-15,19260836-11999604,-565,Midfield Lodge Care Centre,Care Establishment,2 - Commissioning - Older people Pool,East Cambs - O P Team,Nursing Independent Sector
Cambridgeshire County Council,10-Sep-15,19260837-11999605,-565,Midfield Lodge Care Centre,Care Establishment,2 - Commissioning - Older people Pool,East Cambs - O P Team,Nursing Independent Sector
Cambridgeshire County Council,10-Sep-15,19260841-11999609,-565,Midfield Lodge Care Centre,Care Establishment,2 - Commissioning - Older people Pool,East Cambs - O P Team,Nursing Independent Sector
Cambridgeshire County Council,10-Sep-15,19260842-11999610,-565,Midfield Lodge Care Centre,Care Establishment,2 - Commissioning - Older people Pool,East Cambs - O P Team,Nursing Independent Sector
Cambridgeshire County Council,10-Sep-15,19260843-11999611,-565,Midfield Lodge Care Centre,Care Establishment,2 - Commissioning - Older people Pool,East Cambs - O P Team,Nursing Independent Sector
Cambridgeshire County Council,10-Sep-15,19260848-11999616,-565,Midfield Lodge Care Centre,Care Establishment,2 - Commissioning - Older people Pool,East Cambs - O P Team,Nursing Independent Sector
Cambridgeshire County Council,10-Sep-15,19260849-11999617,-565,Midfield Lodge Care Centre,Care Establishment,2 - Commissioning - Older people Pool,East Cambs - O P Team,Nursing Independent Sector
Cambridgeshire County Council,10-Sep-15,19260856-11999624,-565,Midfield Lodge Care Centre,Care Establishment,2 - Commissioning - Older people Pool,East Cambs - O P Team,Nursing Independent Sector
Cambridgeshire County Council,10-Sep-15,19260857-11999625,-565,Midfield Lodge Care Centre,Care Establishment,2 - Commissioning - Older people Pool,East Cambs - O P Team,Nursing Independent Sector
Cambridgeshire County Council,10-Sep-15,19260859-11999627,-565,Midfield Lodge Care Centre,Care Establishment,2 - Commissioning - Older people Pool,East Cambs - O P Team,Nursing Independent Sector
Cambridgeshire County Council,10-Sep-15,19260863-11999631,-565,Midfield Lodge Care Centre,Care Establishment,2 - Commissioning - Older people Pool,East Cambs - O P Team,Nursing Independent Sector
Cambridgeshire County Council,10-Sep-15,19260864-11999632,-565,Midfield Lodge Care Centre,Care Establishment,2 - Commissioning - Older people Pool,East Cambs - O P Team,Nursing Independent Sector
Cambridgeshire County Council,10-Sep-15,19260867-11999635,-565,Midfield Lodge Care Centre,Care Establishment,2 - Commissioning - Older people Pool,East Cambs - O P Team,Nursing Independent Sector
Cambridgeshire County Council,10-Sep-15,19264117-11999535,-565,Midfield Lodge Care Centre,Care Establishment,2 - Commissioning - Older people Pool,East Cambs - O P Team,Nursing Independent Sector
Cambridgeshire County Council,10-Sep-15,19264119-11999537,-565,Midfield Lodge Care Centre,Care Establishment,2 - Commissioning - Older people Pool,East Cambs - O P Team,Nursing Independent Sector
Cambridgeshire County Council,10-Sep-15,19266105-11999672,-565,Midfield Lodge Care Centre,Care Establishment,2 - Commissioning - Older people Pool,East Cambs - O P Team,Nursing Independent Sector
Cambridgeshire County Council,24-Sep-15,19323119-12069620,-565,The Cambridge Nursing Centre,Care Establishment,2 - Commissioning - Older people Pool,Older People Mental Health City & South,Nursing Independent Sector
Cambridgeshire County Council,24-Sep-15,19323121-12069622,-565,The Cambridge Nursing Centre,Care Establishment,2 - Commissioning - Older people Pool,Older People Mental Health City & South,Nursing Independent Sector
Cambridgeshire County Council,24-Sep-15,19323131-12069632,-565,The Cambridge Nursing Centre,Care Establishment,2 - Commissioning - Older people Pool,Older People Mental Health City & South,Nursing Independent Sector
Cambridgeshire County Council,24-Sep-15,19323133-12069634,-565,The Cambridge Nursing Centre,Care Establishment,2 - Commissioning - Older people Pool,Older People Mental Health City & South,Nursing Independent Sector
Cambridgeshire County Council,24-Sep-15,19323134-12069635,-565,The Cambridge Nursing Centre,Care Establishment,2 - Commissioning - Older people Pool,Older People Mental Health City & South,Nursing Independent Sector
Cambridgeshire County Council,24-Sep-15,19323136-12069637,-565,The Cambridge Nursing Centre,Care Establishment,2 - Commissioning - Older people Pool,Older People Mental Health City & South,Nursing Independent Sector
Cambridgeshire County Council,24-Sep-15,19323138-12069639,-565,The Cambridge Nursing Centre,Care Establishment,2 - Commissioning - Older people Pool,Older People Mental Health City & South,Nursing Independent Sector
Cambridgeshire County Council,24-Sep-15,19323141-12069642,-565,The Cambridge Nursing Centre,Care Establishment,2 - Commissioning - Older people Pool,Older People Mental Health City & South,Nursing Independent Sector
Cambridgeshire County Council,24-Sep-15,19323143-12069644,-565,The Cambridge Nursing Centre,Care Establishment,2 - Commissioning - Older people Pool,Older People Mental Health City & South,Nursing Independent Sector
Cambridgeshire County Council,24-Sep-15,19323144-12069645,-565,The Cambridge Nursing Centre,Care Establishment,2 - Commissioning - Older people Pool,Older People Mental Health City & South,Nursing Independent Sector
Cambridgeshire County Council,24-Sep-15,19323145-12069646,-565,The Cambridge Nursing Centre,Care Establishment,2 - Commissioning - Older people Pool,Older People Mental Health City & South,Nursing Independent Sector
Cambridgeshire County Council,24-Sep-15,19323148-12069649,-565,The Cambridge Nursing Centre,Care Establishment,2 - Commissioning - Older people Pool,Older People Mental Health City & South,Nursing Independent Sector
Cambridgeshire County Council,24-Sep-15,19323154-12069655,-565,The Cambridge Nursing Centre,Care Establishment,2 - Commissioning - Older people Pool,Older People Mental Health City & South,Nursing Independent Sector
Cambridgeshire County Council,24-Sep-15,19323157-12069658,-565,The Cambridge Nursing Centre,Care Establishment,2 - Commissioning - Older people Pool,Older People Mental Health City & South,Nursing Independent Sector
Cambridgeshire County Council,24-Sep-15,19323159-12069660,-565,The Cambridge Nursing Centre,Care Establishment,2 - Commissioning - Older people Pool,Older People Mental Health City & South,Nursing Independent Sector
Cambridgeshire County Council,24-Sep-15,19323161-12069662,-565,The Cambridge Nursing Centre,Care Establishment,2 - Commissioning - Older people Pool,Older People Mental Health City & South,Nursing Independent Sector
Cambridgeshire County Council,24-Sep-15,19323162-12069663,-565,The Cambridge Nursing Centre,Care Establishment,2 - Commissioning - Older people Pool,Older People Mental Health City & South,Nursing Independent Sector
Cambridgeshire County Council,24-Sep-15,19323164-12069665,-565,The Cambridge Nursing Centre,Care Establishment,2 - Commissioning - Older people Pool,Older People Mental Health City & South,Nursing Independent Sector
Cambridgeshire County Council,24-Sep-15,19323165-12069666,-565,The Cambridge Nursing Centre,Care Establishment,2 - Commissioning - Older people Pool,Older People Mental Health City & South,Nursing Independent Sector
Cambridgeshire County Council,24-Sep-15,19323167-12069668,-565,The Cambridge Nursing Centre,Care Establishment,2 - Commissioning - Older people Pool,Older People Mental Health City & South,Nursing Independent Sector
Cambridgeshire County Council,24-Sep-15,19323168-12069669,-565,The Cambridge Nursing Centre,Care Establishment,2 - Commissioning - Older people Pool,Older People Mental Health City & South,Nursing Independent Sector
Cambridgeshire County Council,24-Sep-15,19323169-12069670,-565,The Cambridge Nursing Centre,Care Establishment,2 - Commissioning - Older people Pool,Older People Mental Health City & South,Nursing Independent Sector
Cambridgeshire County Council,24-Sep-15,19323171-12069672,-565,The Cambridge Nursing Centre,Care Establishment,2 - Commissioning - Older people Pool,Older People Mental Health City & South,Nursing Independent Sector
Cambridgeshire County Council,24-Sep-15,19325573-12069493,-565,The Cambridge Nursing Centre,Care Establishment,2 - Commissioning - Older people Pool,Older People Mental Health City & South,Nursing Independent Sector
Cambridgeshire County Council,24-Sep-15,19325586-12069504,-565,The Cambridge Nursing Centre,Care Establishment,2 - Commissioning - Older people Pool,Older People Mental Health City & South,Nursing Independent Sector
Cambridgeshire County Council,24-Sep-15,19325587-12069505,-565,The Cambridge Nursing Centre,Care Establishment,2 - Commissioning - Older people Pool,Older People Mental Health City & South,Nursing Independent Sector
Cambridgeshire County Council,24-Sep-15,19325588-12069506,-565,The Cambridge Nursing Centre,Care Establishment,2 - Commissioning - Older people Pool,Older People Mental Health City & South,Nursing Independent Sector
Cambridgeshire County Council,24-Sep-15,19325589-12069507,-565,The Cambridge Nursing Centre,Care Establishment,2 - Commissioning - Older people Pool,Older People Mental Health City & South,Nursing Independent Sector
Cambridgeshire County Council,24-Sep-15,19325594-12069475,-565,The Cambridge Nursing Centre,Care Establishment,2 - Commissioning - Older people Pool,Older People Mental Health City & South,Nursing Independent Sector
Cambridgeshire County Council,24-Sep-15,19325596-12069477,-565,The Cambridge Nursing Centre,Care Establishment,2 - Commissioning - Older people Pool,Older People Mental Health City & South,Nursing Independent Sector
Cambridgeshire County Council,24-Sep-15,19325598-12069479,-565,The Cambridge Nursing Centre,Care Establishment,2 - Commissioning - Older people Pool,Older People Mental Health City & South,Nursing Independent Sector
Cambridgeshire County Council,24-Sep-15,19325600-12069480,-565,The Cambridge Nursing Centre,Care Establishment,2 - Commissioning - Older people Pool,Older People Mental Health City & South,Nursing Independent Sector
Cambridgeshire County Council,24-Sep-15,19325601-12069481,-565,The Cambridge Nursing Centre,Care Establishment,2 - Commissioning - Older people Pool,Older People Mental Health City & South,Nursing Independent Sector
Cambridgeshire County Council,24-Sep-15,19325602-12069482,-565,The Cambridge Nursing Centre,Care Establishment,2 - Commissioning - Older people Pool,Older People Mental Health City & South,Nursing Independent Sector
Cambridgeshire County Council,24-Sep-15,19325603-12069483,-565,The Cambridge Nursing Centre,Care Establishment,2 - Commissioning - Older people Pool,Older People Mental Health City & South,Nursing Independent Sector
Cambridgeshire County Council,24-Sep-15,19325604-12069484,-565,The Cambridge Nursing Centre,Care Establishment,2 - Commissioning - Older people Pool,Older People Mental Health City & South,Nursing Independent Sector
Cambridgeshire County Council,24-Sep-15,19325605-12069485,-565,The Cambridge Nursing Centre,Care Establishment,2 - Commissioning - Older people Pool,Older People Mental Health City & South,Nursing Independent Sector
Cambridgeshire County Council,24-Sep-15,19325606-12069486,-565,The Cambridge Nursing Centre,Care Establishment,2 - Commissioning - Older people Pool,Older People Mental Health City & South,Nursing Independent Sector
Cambridgeshire County Council,24-Sep-15,19325608-12069487,-565,The Cambridge Nursing Centre,Care Establishment,2 - Commissioning - Older people Pool,Older People Mental Health City & South,Nursing Independent Sector
Cambridgeshire County Council,24-Sep-15,19325609-12069488,-565,The Cambridge Nursing Centre,Care Establishment,2 - Commissioning - Older people Pool,Older People Mental Health City & South,Nursing Independent Sector
Cambridgeshire County Council,24-Sep-15,19325610-12069489,-565,The Cambridge Nursing Centre,Care Establishment,2 - Commissioning - Older people Pool,Older People Mental Health City & South,Nursing Independent Sector
Cambridgeshire County Council,24-Sep-15,19325967-12069414,-565,The Cambridge Nursing Centre,Care Establishment,2 - Commissioning - Older people Pool,Older People Mental Health E Cambs,Nursing Independent Sector
Cambridgeshire County Council,24-Sep-15,19325968-12069415,-565,The Cambridge Nursing Centre,Care Establishment,2 - Commissioning - Older people Pool,Older People Mental Health E Cambs,Nursing Independent Sector
Cambridgeshire County Council,24-Sep-15,19325969-12069416,-565,The Cambridge Nursing Centre,Care Establishment,2 - Commissioning - Older people Pool,Older People Mental Health E Cambs,Nursing Independent Sector
Cambridgeshire County Council,24-Sep-15,19325972-12069419,-565,The Cambridge Nursing Centre,Care Establishment,2 - Commissioning - Older people Pool,Older People Mental Health E Cambs,Nursing Independent Sector
Cambridgeshire County Council,24-Sep-15,19325973-12069420,-565,The Cambridge Nursing Centre,Care Establishment,2 - Commissioning - Older people Pool,Older People Mental Health E Cambs,Nursing Independent Sector
Cambridgeshire County Council,24-Sep-15,19325974-12069421,-565,The Cambridge Nursing Centre,Care Establishment,2 - Commissioning - Older people Pool,Older People Mental Health E Cambs,Nursing Independent Sector
Cambridgeshire County Council,24-Sep-15,19325976-12069423,-565,The Cambridge Nursing Centre,Care Establishment,2 - Commissioning - Older people Pool,Older People Mental Health E Cambs,Nursing Independent Sector
Cambridgeshire County Council,24-Sep-15,19325977-12069424,-565,The Cambridge Nursing Centre,Care Establishment,2 - Commissioning - Older people Pool,Older People Mental Health E Cambs,Nursing Independent Sector
Cambridgeshire County Council,24-Sep-15,19325978-12069425,-565,The Cambridge Nursing Centre,Care Establishment,2 - Commissioning - Older people Pool,Older People Mental Health E Cambs,Nursing Independent Sector
Cambridgeshire County Council,24-Sep-15,19325979-12069426,-565,The Cambridge Nursing Centre,Care Establishment,2 - Commissioning - Older people Pool,Older People Mental Health E Cambs,Nursing Independent Sector
Cambridgeshire County Council,24-Sep-15,19325980-12069427,-565,The Cambridge Nursing Centre,Care Establishment,2 - Commissioning - Older people Pool,Older People Mental Health E Cambs,Nursing Independent Sector
Cambridgeshire County Council,24-Sep-15,19325983-12069430,-565,The Cambridge Nursing Centre,Care Establishment,2 - Commissioning - Older people Pool,Older People Mental Health E Cambs,Nursing Independent Sector
Cambridgeshire County Council,24-Sep-15,19325986-12069433,-565,The Cambridge Nursing Centre,Care Establishment,2 - Commissioning - Older people Pool,Older People Mental Health E Cambs,Nursing Independent Sector
Cambridgeshire County Council,24-Sep-15,19326589-12069412,-565,The Cambridge Nursing Centre,Care Establishment,2 - Commissioning - Older people Pool,Older People Mental Health City & South,Nursing Independent Sector
Cambridgeshire County Council,24-Sep-15,19326590-12069413,-565,The Cambridge Nursing Centre,Care Establishment,2 - Commissioning - Older people Pool,Older People Mental Health City & South,Nursing Independent Sector
Cambridgeshire County Council,24-Sep-15,19326591-12069286,-565,The Cambridge Nursing Centre,Care Establishment,2 - Commissioning - Older people Pool,Older People Mental Health City & South,Nursing Independent Sector
Cambridgeshire County Council,24-Sep-15,19326593-12069288,-565,The Cambridge Nursing Centre,Care Establishment,2 - Commissioning - Older people Pool,Older People Mental Health City & South,Nursing Independent Sector
Cambridgeshire County Council,24-Sep-15,19329127-12070135,-565,The Cambridge Nursing Centre,Care Establishment,2 - Commissioning - Older people Pool,Older People Mental Health City & South,Nursing Independent Sector
Cambridgeshire County Council,24-Sep-15,19329290-12070036,-565,The Cambridge Nursing Centre,Care Establishment,2 - Commissioning - Older people Pool,Older People Mental Health City & South,Nursing Independent Sector
Cambridgeshire County Council,24-Sep-15,19329291-12070037,-565,The Cambridge Nursing Centre,Care Establishment,2 - Commissioning - Older people Pool,Older People Mental Health City & South,Nursing Independent Sector
Cambridgeshire County Council,24-Sep-15,19329293-12070039,-565,The Cambridge Nursing Centre,Care Establishment,2 - Commissioning - Older people Pool,Older People Mental Health City & South,Nursing Independent Sector
Cambridgeshire County Council,24-Sep-15,19329294-12070040,-565,The Cambridge Nursing Centre,Care Establishment,2 - Commissioning - Older people Pool,Older People Mental Health City & South,Nursing Independent Sector
Cambridgeshire County Council,24-Sep-15,19329295-12070041,-565,The Cambridge Nursing Centre,Care Establishment,2 - Commissioning - Older people Pool,Older People Mental Health City & South,Nursing Independent Sector
Cambridgeshire County Council,24-Sep-15,19329299-12070045,-565,The Cambridge Nursing Centre,Care Establishment,2 - Commissioning - Older people Pool,Older People Mental Health City & South,Nursing Independent Sector
Cambridgeshire County Council,24-Sep-15,19329300-12070046,-565,The Cambridge Nursing Centre,Care Establishment,2 - Commissioning - Older people Pool,Older People Mental Health City & South,Nursing Independent Sector
Cambridgeshire County Council,24-Sep-15,19329303-12070049,-565,The Cambridge Nursing Centre,Care Establishment,2 - Commissioning - Older people Pool,Older People Mental Health City & South,Nursing Independent Sector
Cambridgeshire County Council,24-Sep-15,19329304-12070050,-565,The Cambridge Nursing Centre,Care Establishment,2 - Commissioning - Older people Pool,Older People Mental Health City & South,Nursing Independent Sector
Cambridgeshire County Council,24-Sep-15,19329309-12070055,-565,The Cambridge Nursing Centre,Care Establishment,2 - Commissioning - Older people Pool,Older People Mental Health City & South,Nursing Independent Sector
Cambridgeshire County Council,24-Sep-15,19329310-12070056,-565,The Cambridge Nursing Centre,Care Establishment,2 - Commissioning - Older people Pool,Older People Mental Health City & South,Nursing Independent Sector
Cambridgeshire County Council,24-Sep-15,19329313-12070059,-565,The Cambridge Nursing Centre,Care Establishment,2 - Commissioning - Older people Pool,Older People Mental Health City & South,Nursing Independent Sector
Cambridgeshire County Council,24-Sep-15,19329314-12070060,-565,The Cambridge Nursing Centre,Care Establishment,2 - Commissioning - Older people Pool,Older People Mental Health City & South,Nursing Independent Sector
Cambridgeshire County Council,24-Sep-15,19329319-12070064,-565,The Cambridge Nursing Centre,Care Establishment,2 - Commissioning - Older people Pool,Older People Mental Health City & South,Nursing Independent Sector
Cambridgeshire County Council,24-Sep-15,19329320-12070065,-565,The Cambridge Nursing Centre,Care Establishment,2 - Commissioning - Older people Pool,Older People Mental Health City & South,Nursing Independent Sector
Cambridgeshire County Council,24-Sep-15,19329597-12070024,-565,The Cambridge Nursing Centre,Care Establishment,2 - Commissioning - Older people Pool,Older People Mental Health City & South,Nursing Independent Sector
Cambridgeshire County Council,24-Sep-15,19329598-12070025,-565,The Cambridge Nursing Centre,Care Establishment,2 - Commissioning - Older people Pool,Older People Mental Health City & South,Nursing Independent Sector
Cambridgeshire County Council,24-Sep-15,19330022-12069966,-565,The Cambridge Nursing Centre,Care Establishment,2 - Commissioning - Older people Pool,Older People Mental Health City & South,Nursing Independent Sector
Cambridgeshire County Council,24-Sep-15,19330025-12069969,-565,The Cambridge Nursing Centre,Care Establishment,2 - Commissioning - Older people Pool,Older People Mental Health City & South,Nursing Independent Sector
Cambridgeshire County Council,24-Sep-15,19330028-12069972,-565,The Cambridge Nursing Centre,Care Establishment,2 - Commissioning - Older people Pool,Older People Mental Health City & South,Nursing Independent Sector
Cambridgeshire County Council,24-Sep-15,19330031-12069975,-565,The Cambridge Nursing Centre,Care Establishment,2 - Commissioning - Older people Pool,Older People Mental Health City & South,Nursing Independent Sector
Cambridgeshire County Council,24-Sep-15,19330035-12069979,-565,The Cambridge Nursing Centre,Care Establishment,2 - Commissioning - Older people Pool,Older People Mental Health City & South,Nursing Independent Sector
Cambridgeshire County Council,24-Sep-15,19330038-12069982,-565,The Cambridge Nursing Centre,Care Establishment,2 - Commissioning - Older people Pool,Older People Mental Health City & South,Nursing Independent Sector
Cambridgeshire County Council,24-Sep-15,19330039-12069983,-565,The Cambridge Nursing Centre,Care Establishment,2 - Commissioning - Older people Pool,Older People Mental Health City & South,Nursing Independent Sector
Cambridgeshire County Council,24-Sep-15,19330891-12069932,-565,The Cambridge Nursing Centre,Care Establishment,2 - Commissioning - Older people Pool,Older People Mental Health E Cambs,Nursing Independent Sector
Cambridgeshire County Council,24-Sep-15,19330892-12069933,-565,The Cambridge Nursing Centre,Care Establishment,2 - Commissioning - Older people Pool,Older People Mental Health E Cambs,Nursing Independent Sector
Cambridgeshire County Council,24-Sep-15,19330898-12069939,-565,The Cambridge Nursing Centre,Care Establishment,2 - Commissioning - Older people Pool,Older People Mental Health E Cambs,Nursing Independent Sector
Cambridgeshire County Council,24-Sep-15,19330900-12069941,-565,The Cambridge Nursing Centre,Care Establishment,2 - Commissioning - Older people Pool,Older People Mental Health E Cambs,Nursing Independent Sector
Cambridgeshire County Council,24-Sep-15,19330904-12069945,-565,The Cambridge Nursing Centre,Care Establishment,2 - Commissioning - Older people Pool,Older People Mental Health E Cambs,Nursing Independent Sector
Cambridgeshire County Council,24-Sep-15,19330906-12069947,-565,The Cambridge Nursing Centre,Care Establishment,2 - Commissioning - Older people Pool,Older People Mental Health E Cambs,Nursing Independent Sector
Cambridgeshire County Council,24-Sep-15,19330907-12069948,-565,The Cambridge Nursing Centre,Care Establishment,2 - Commissioning - Older people Pool,Older People Mental Health E Cambs,Nursing Independent Sector
Cambridgeshire County Council,24-Sep-15,19330908-12069949,-565,The Cambridge Nursing Centre,Care Establishment,2 - Commissioning - Older people Pool,Older People Mental Health E Cambs,Nursing Independent Sector
Cambridgeshire County Council,24-Sep-15,19330911-12069952,-565,The Cambridge Nursing Centre,Care Establishment,2 - Commissioning - Older people Pool,Older People Mental Health E Cambs,Nursing Independent Sector
Cambridgeshire County Council,24-Sep-15,19330913-12069954,-565,The Cambridge Nursing Centre,Care Establishment,2 - Commissioning - Older people Pool,Older People Mental Health E Cambs,Nursing Independent Sector
Cambridgeshire County Council,24-Sep-15,19330915-12069956,-565,The Cambridge Nursing Centre,Care Establishment,2 - Commissioning - Older people Pool,Older People Mental Health E Cambs,Nursing Independent Sector
Cambridgeshire County Council,24-Sep-15,19330922-12069963,-565,The Cambridge Nursing Centre,Care Establishment,2 - Commissioning - Older people Pool,Older People Mental Health E Cambs,Nursing Independent Sector
Cambridgeshire County Council,24-Sep-15,19333126-12069883,-565,The Cambridge Nursing Centre,Care Establishment,2 - Commissioning - Older people Pool,Older People Mental Health City & South,Nursing Independent Sector
Cambridgeshire County Council,24-Sep-15,19333130-12069887,-565,The Cambridge Nursing Centre,Care Establishment,2 - Commissioning - Older people Pool,Older People Mental Health City & South,Nursing Independent Sector
Cambridgeshire County Council,24-Sep-15,19333133-12069890,-565,The Cambridge Nursing Centre,Care Establishment,2 - Commissioning - Older people Pool,Older People Mental Health City & South,Nursing Independent Sector
Cambridgeshire County Council,24-Sep-15,19333137-12069894,-565,The Cambridge Nursing Centre,Care Establishment,2 - Commissioning - Older people Pool,Older People Mental Health City & South,Nursing Independent Sector
Cambridgeshire County Council,24-Sep-15,19333139-12069896,-565,The Cambridge Nursing Centre,Care Establishment,2 - Commissioning - Older people Pool,Older People Mental Health City & South,Nursing Independent Sector
Cambridgeshire County Council,24-Sep-15,19333142-12069899,-565,The Cambridge Nursing Centre,Care Establishment,2 - Commissioning - Older people Pool,Older People Mental Health City & South,Nursing Independent Sector
Cambridgeshire County Council,24-Sep-15,19333143-12069900,-565,The Cambridge Nursing Centre,Care Establishment,2 - Commissioning - Older people Pool,Older People Mental Health City & South,Nursing Independent Sector
Cambridgeshire County Council,24-Sep-15,19333147-12069904,-565,The Cambridge Nursing Centre,Care Establishment,2 - Commissioning - Older people Pool,Older People Mental Health City & South,Nursing Independent Sector
Cambridgeshire County Council,24-Sep-15,19333149-12069906,-565,The Cambridge Nursing Centre,Care Establishment,2 - Commissioning - Older people Pool,Older People Mental Health City & South,Nursing Independent Sector
Cambridgeshire County Council,24-Sep-15,19333151-12069908,-565,The Cambridge Nursing Centre,Care Establishment,2 - Commissioning - Older people Pool,Older People Mental Health City & South,Nursing Independent Sector
Cambridgeshire County Council,24-Sep-15,19333153-12069910,-565,The Cambridge Nursing Centre,Care Establishment,2 - Commissioning - Older people Pool,Older People Mental Health City & South,Nursing Independent Sector
Cambridgeshire County Council,24-Sep-15,19333155-12069912,-565,The Cambridge Nursing Centre,Care Establishment,2 - Commissioning - Older people Pool,Older People Mental Health City & South,Nursing Independent Sector
Cambridgeshire County Council,24-Sep-15,19333157-12069914,-565,The Cambridge Nursing Centre,Care Establishment,2 - Commissioning - Older people Pool,Older People Mental Health City & South,Nursing Independent Sector
Cambridgeshire County Council,24-Sep-15,19333158-12069915,-565,The Cambridge Nursing Centre,Care Establishment,2 - Commissioning - Older people Pool,Older People Mental Health City & South,Nursing Independent Sector
Cambridgeshire County Council,24-Sep-15,19333159-12069916,-565,The Cambridge Nursing Centre,Care Establishment,2 - Commissioning - Older people Pool,Older People Mental Health City & South,Nursing Independent Sector
Cambridgeshire County Council,24-Sep-15,19333160-12069917,-565,The Cambridge Nursing Centre,Care Establishment,2 - Commissioning - Older people Pool,Older People Mental Health City & South,Nursing Independent Sector
Cambridgeshire County Council,24-Sep-15,19333162-12069919,-565,The Cambridge Nursing Centre,Care Establishment,2 - Commissioning - Older people Pool,Older People Mental Health City & South,Nursing Independent Sector
Cambridgeshire County Council,24-Sep-15,19333163-12069920,-565,The Cambridge Nursing Centre,Care Establishment,2 - Commissioning - Older people Pool,Older People Mental Health City & South,Nursing Independent Sector
Cambridgeshire County Council,24-Sep-15,19333164-12069921,-565,The Cambridge Nursing Centre,Care Establishment,2 - Commissioning - Older people Pool,Older People Mental Health City & South,Nursing Independent Sector
Cambridgeshire County Council,24-Sep-15,19333165-12069922,-565,The Cambridge Nursing Centre,Care Establishment,2 - Commissioning - Older people Pool,Older People Mental Health City & South,Nursing Independent Sector
Cambridgeshire County Council,24-Sep-15,19333168-12069925,-565,The Cambridge Nursing Centre,Care Establishment,2 - Commissioning - Older people Pool,Older People Mental Health City & South,Nursing Independent Sector
Cambridgeshire County Council,24-Sep-15,19333895-12069749,-565,The Cambridge Nursing Centre,Care Establishment,2 - Commissioning - Older people Pool,Older People Mental Health City & South,Nursing Independent Sector
Cambridgeshire County Council,24-Sep-15,19333897-12069751,-565,The Cambridge Nursing Centre,Care Establishment,2 - Commissioning - Older people Pool,Older People Mental Health City & South,Nursing Independent Sector
Cambridgeshire County Council,24-Sep-15,19333898-12069752,-565,The Cambridge Nursing Centre,Care Establishment,2 - Commissioning - Older people Pool,Older People Mental Health City & South,Nursing Independent Sector
Cambridgeshire County Council,24-Sep-15,19333906-12069760,-565,The Cambridge Nursing Centre,Care Establishment,2 - Commissioning - Older people Pool,Older People Mental Health City & South,Nursing Independent Sector
Cambridgeshire County Council,24-Sep-15,19333910-12069764,-565,The Cambridge Nursing Centre,Care Establishment,2 - Commissioning - Older people Pool,Older People Mental Health City & South,Nursing Independent Sector
Cambridgeshire County Council,24-Sep-15,19333911-12069765,-565,The Cambridge Nursing Centre,Care Establishment,2 - Commissioning - Older people Pool,Older People Mental Health City & South,Nursing Independent Sector
Cambridgeshire County Council,24-Sep-15,19333912-12069766,-565,The Cambridge Nursing Centre,Care Establishment,2 - Commissioning - Older people Pool,Older People Mental Health City & South,Nursing Independent Sector
Cambridgeshire County Council,24-Sep-15,19333916-12069716,-565,The Cambridge Nursing Centre,Care Establishment,2 - Commissioning - Older people Pool,Older People Mental Health City & South,Nursing Independent Sector
Cambridgeshire County Council,24-Sep-15,19333919-12069719,-565,The Cambridge Nursing Centre,Care Establishment,2 - Commissioning - Older people Pool,Older People Mental Health City & South,Nursing Independent Sector
Cambridgeshire County Council,24-Sep-15,19333921-12069721,-565,The Cambridge Nursing Centre,Care Establishment,2 - Commissioning - Older people Pool,Older People Mental Health City & South,Nursing Independent Sector
Cambridgeshire County Council,24-Sep-15,19333924-12069724,-565,The Cambridge Nursing Centre,Care Establishment,2 - Commissioning - Older people Pool,Older People Mental Health City & South,Nursing Independent Sector
Cambridgeshire County Council,24-Sep-15,19333926-12069726,-565,The Cambridge Nursing Centre,Care Establishment,2 - Commissioning - Older people Pool,Older People Mental Health City & South,Nursing Independent Sector
Cambridgeshire County Council,24-Sep-15,19333927-12069727,-565,The Cambridge Nursing Centre,Care Establishment,2 - Commissioning - Older people Pool,Older People Mental Health City & South,Nursing Independent Sector
Cambridgeshire County Council,24-Sep-15,19333928-12069728,-565,The Cambridge Nursing Centre,Care Establishment,2 - Commissioning - Older people Pool,Older People Mental Health City & South,Nursing Independent Sector
Cambridgeshire County Council,24-Sep-15,19333929-12069729,-565,The Cambridge Nursing Centre,Care Establishment,2 - Commissioning - Older people Pool,Older People Mental Health City & South,Nursing Independent Sector
Cambridgeshire County Council,24-Sep-15,19333930-12069730,-565,The Cambridge Nursing Centre,Care Establishment,2 - Commissioning - Older people Pool,Older People Mental Health City & South,Nursing Independent Sector
Cambridgeshire County Council,24-Sep-15,19333933-12069733,-565,The Cambridge Nursing Centre,Care Establishment,2 - Commissioning - Older people Pool,Older People Mental Health City & South,Nursing Independent Sector
Cambridgeshire County Council,24-Sep-15,19333935-12069735,-565,The Cambridge Nursing Centre,Care Establishment,2 - Commissioning - Older people Pool,Older People Mental Health City & South,Nursing Independent Sector
Cambridgeshire County Council,24-Sep-15,19333936-12069736,-565,The Cambridge Nursing Centre,Care Establishment,2 - Commissioning - Older people Pool,Older People Mental Health City & South,Nursing Independent Sector
Cambridgeshire County Council,24-Sep-15,19333937-12069737,-565,The Cambridge Nursing Centre,Care Establishment,2 - Commissioning - Older people Pool,Older People Mental Health City & South,Nursing Independent Sector
Cambridgeshire County Council,24-Sep-15,19333938-12069738,-565,The Cambridge Nursing Centre,Care Establishment,2 - Commissioning - Older people Pool,Older People Mental Health City & South,Nursing Independent Sector
Cambridgeshire County Council,24-Sep-15,19333940-12069740,-565,The Cambridge Nursing Centre,Care Establishment,2 - Commissioning - Older people Pool,Older People Mental Health City & South,Nursing Independent Sector
Cambridgeshire County Council,24-Sep-15,19333942-12069742,-565,The Cambridge Nursing Centre,Care Establishment,2 - Commissioning - Older people Pool,Older People Mental Health City & South,Nursing Independent Sector
Cambridgeshire County Council,24-Sep-15,19333944-12069744,-565,The Cambridge Nursing Centre,Care Establishment,2 - Commissioning - Older people Pool,Older People Mental Health City & South,Nursing Independent Sector
Cambridgeshire County Council,24-Sep-15,19333946-12069746,-565,The Cambridge Nursing Centre,Care Establishment,2 - Commissioning - Older people Pool,Older People Mental Health City & South,Nursing Independent Sector
Cambridgeshire County Council,24-Sep-15,19335273-12069435,-565,The Cambridge Nursing Centre,Care Establishment,2 - Commissioning - Older people Pool,Older People Mental Health City & South,Nursing Independent Sector
Cambridgeshire County Council,24-Sep-15,19335281-12069442,-565,The Cambridge Nursing Centre,Care Establishment,2 - Commissioning - Older people Pool,Older People Mental Health City & South,Nursing Independent Sector
Cambridgeshire County Council,24-Sep-15,19335282-12069443,-565,The Cambridge Nursing Centre,Care Establishment,2 - Commissioning - Older people Pool,Older People Mental Health City & South,Nursing Independent Sector
Cambridgeshire County Council,24-Sep-15,19335293-12069450,-565,The Cambridge Nursing Centre,Care Establishment,2 - Commissioning - Older people Pool,Older People Mental Health City & South,Nursing Independent Sector
Cambridgeshire County Council,24-Sep-15,19335295-12069452,-565,The Cambridge Nursing Centre,Care Establishment,2 - Commissioning - Older people Pool,Older People Mental Health City & South,Nursing Independent Sector
Cambridgeshire County Council,24-Sep-15,19335305-12069460,-565,The Cambridge Nursing Centre,Care Establishment,2 - Commissioning - Older people Pool,Older People Mental Health City & South,Nursing Independent Sector
Cambridgeshire County Council,24-Sep-15,19335306-12069461,-565,The Cambridge Nursing Centre,Care Establishment,2 - Commissioning - Older people Pool,Older People Mental Health City & South,Nursing Independent Sector
Cambridgeshire County Council,24-Sep-15,19335310-12069464,-565,The Cambridge Nursing Centre,Care Establishment,2 - Commissioning - Older people Pool,Older People Mental Health City & South,Nursing Independent Sector
Cambridgeshire County Council,24-Sep-15,19335311-12069465,-565,The Cambridge Nursing Centre,Care Establishment,2 - Commissioning - Older people Pool,Older People Mental Health City & South,Nursing Independent Sector
Cambridgeshire County Council,24-Sep-15,19335312-12069466,-565,The Cambridge Nursing Centre,Care Establishment,2 - Commissioning - Older people Pool,Older People Mental Health City & South,Nursing Independent Sector
Cambridgeshire County Council,24-Sep-15,19335315-12069469,-565,The Cambridge Nursing Centre,Care Establishment,2 - Commissioning - Older people Pool,Older People Mental Health City & South,Nursing Independent Sector
Cambridgeshire County Council,24-Sep-15,19335317-12069470,-565,The Cambridge Nursing Centre,Care Establishment,2 - Commissioning - Older people Pool,Older People Mental Health City & South,Nursing Independent Sector
Cambridgeshire County Council,24-Sep-15,19335319-12069472,-565,The Cambridge Nursing Centre,Care Establishment,2 - Commissioning - Older people Pool,Older People Mental Health City & South,Nursing Independent Sector
Cambridgeshire County Council,24-Sep-15,19336191-12069356,-565,The Cambridge Nursing Centre,Care Establishment,2 - Commissioning - Older people Pool,Older People Mental Health Hunts,Nursing Independent Sector
Cambridgeshire County Council,24-Sep-15,19336192-12069357,-565,The Cambridge Nursing Centre,Care Establishment,2 - Commissioning - Older people Pool,Older People Mental Health Hunts,Nursing Independent Sector
Cambridgeshire County Council,24-Sep-15,19336193-12069358,-565,The Cambridge Nursing Centre,Care Establishment,2 - Commissioning - Older people Pool,Older People Mental Health Hunts,Nursing Independent Sector
Cambridgeshire County Council,24-Sep-15,19336194-12069359,-565,The Cambridge Nursing Centre,Care Establishment,2 - Commissioning - Older people Pool,Older People Mental Health Hunts,Nursing Independent Sector
Cambridgeshire County Council,24-Sep-15,19336197-12069362,-565,The Cambridge Nursing Centre,Care Establishment,2 - Commissioning - Older people Pool,Older People Mental Health Hunts,Nursing Independent Sector
Cambridgeshire County Council,24-Sep-15,19336201-12069366,-565,The Cambridge Nursing Centre,Care Establishment,2 - Commissioning - Older people Pool,Older People Mental Health Hunts,Nursing Independent Sector
Cambridgeshire County Council,24-Sep-15,19336202-12069367,-565,The Cambridge Nursing Centre,Care Establishment,2 - Commissioning - Older people Pool,Older People Mental Health Hunts,Nursing Independent Sector
Cambridgeshire County Council,24-Sep-15,19336206-12069371,-565,The Cambridge Nursing Centre,Care Establishment,2 - Commissioning - Older people Pool,Older People Mental Health Hunts,Nursing Independent Sector
Cambridgeshire County Council,24-Sep-15,19336208-12069373,-565,The Cambridge Nursing Centre,Care Establishment,2 - Commissioning - Older people Pool,Older People Mental Health Hunts,Nursing Independent Sector
Cambridgeshire County Council,24-Sep-15,19336209-12069374,-565,The Cambridge Nursing Centre,Care Establishment,2 - Commissioning - Older people Pool,Older People Mental Health Hunts,Nursing Independent Sector
Cambridgeshire County Council,24-Sep-15,19336211-12069376,-565,The Cambridge Nursing Centre,Care Establishment,2 - Commissioning - Older people Pool,Older People Mental Health Hunts,Nursing Independent Sector
Cambridgeshire County Council,24-Sep-15,19336213-12069378,-565,The Cambridge Nursing Centre,Care Establishment,2 - Commissioning - Older people Pool,Older People Mental Health Hunts,Nursing Independent Sector
Cambridgeshire County Council,24-Sep-15,19336217-12069382,-565,The Cambridge Nursing Centre,Care Establishment,2 - Commissioning - Older people Pool,Older People Mental Health Hunts,Nursing Independent Sector
Cambridgeshire County Council,24-Sep-15,19336219-12069384,-565,The Cambridge Nursing Centre,Care Establishment,2 - Commissioning - Older people Pool,Older People Mental Health Hunts,Nursing Independent Sector
Cambridgeshire County Council,24-Sep-15,19336220-12069385,-565,The Cambridge Nursing Centre,Care Establishment,2 - Commissioning - Older people Pool,Older People Mental Health Hunts,Nursing Independent Sector
Cambridgeshire County Council,24-Sep-15,19336226-12069391,-565,The Cambridge Nursing Centre,Care Establishment,2 - Commissioning - Older people Pool,Older People Mental Health Hunts,Nursing Independent Sector
Cambridgeshire County Council,24-Sep-15,19336227-12069392,-565,The Cambridge Nursing Centre,Care Establishment,2 - Commissioning - Older people Pool,Older People Mental Health Hunts,Nursing Independent Sector
Cambridgeshire County Council,24-Sep-15,19336228-12069393,-565,The Cambridge Nursing Centre,Care Establishment,2 - Commissioning - Older people Pool,Older People Mental Health Hunts,Nursing Independent Sector
Cambridgeshire County Council,24-Sep-15,19336230-12069395,-565,The Cambridge Nursing Centre,Care Establishment,2 - Commissioning - Older people Pool,Older People Mental Health Hunts,Nursing Independent Sector
Cambridgeshire County Council,24-Sep-15,19336231-12069396,-565,The Cambridge Nursing Centre,Care Establishment,2 - Commissioning - Older people Pool,Older People Mental Health Hunts,Nursing Independent Sector
Cambridgeshire County Council,24-Sep-15,19336232-12069397,-565,The Cambridge Nursing Centre,Care Establishment,2 - Commissioning - Older people Pool,Older People Mental Health Hunts,Nursing Independent Sector
Cambridgeshire County Council,24-Sep-15,19336233-12069398,-565,The Cambridge Nursing Centre,Care Establishment,2 - Commissioning - Older people Pool,Older People Mental Health Hunts,Nursing Independent Sector
Cambridgeshire County Council,24-Sep-15,19336235-12069400,-565,The Cambridge Nursing Centre,Care Establishment,2 - Commissioning - Older people Pool,Older People Mental Health Hunts,Nursing Independent Sector
Cambridgeshire County Council,24-Sep-15,19336241-12069406,-565,The Cambridge Nursing Centre,Care Establishment,2 - Commissioning - Older people Pool,Older People Mental Health Hunts,Nursing Independent Sector
Cambridgeshire County Council,24-Sep-15,19336244-12069409,-565,The Cambridge Nursing Centre,Care Establishment,2 - Commissioning - Older people Pool,Older People Mental Health Hunts,Nursing Independent Sector
Cambridgeshire County Council,24-Sep-15,19336246-12069411,-565,The Cambridge Nursing Centre,Care Establishment,2 - Commissioning - Older people Pool,Older People Mental Health Hunts,Nursing Independent Sector
Cambridgeshire County Council,24-Sep-15,19337654-12070138,-565,The Cambridge Nursing Centre,Care Establishment,2 - Commissioning - Older people Pool,Older People Mental Health City & South,Nursing Independent Sector
Cambridgeshire County Council,24-Sep-15,19337659-12070143,-565,The Cambridge Nursing Centre,Care Establishment,2 - Commissioning - Older people Pool,Older People Mental Health City & South,Nursing Independent Sector
Cambridgeshire County Council,24-Sep-15,19337661-12070145,-565,The Cambridge Nursing Centre,Care Establishment,2 - Commissioning - Older people Pool,Older People Mental Health City & South,Nursing Independent Sector
Cambridgeshire County Council,24-Sep-15,19337663-12070147,-565,The Cambridge Nursing Centre,Care Establishment,2 - Commissioning - Older people Pool,Older People Mental Health City & South,Nursing Independent Sector
Cambridgeshire County Council,24-Sep-15,19337665-12070149,-565,The Cambridge Nursing Centre,Care Establishment,2 - Commissioning - Older people Pool,Older People Mental Health City & South,Nursing Independent Sector
Cambridgeshire County Council,24-Sep-15,19337666-12070150,-565,The Cambridge Nursing Centre,Care Establishment,2 - Commissioning - Older people Pool,Older People Mental Health City & South,Nursing Independent Sector
Cambridgeshire County Council,24-Sep-15,19337669-12070153,-565,The Cambridge Nursing Centre,Care Establishment,2 - Commissioning - Older people Pool,Older People Mental Health City & South,Nursing Independent Sector
Cambridgeshire County Council,24-Sep-15,19337670-12070154,-565,The Cambridge Nursing Centre,Care Establishment,2 - Commissioning - Older people Pool,Older People Mental Health City & South,Nursing Independent Sector
Cambridgeshire County Council,24-Sep-15,19337671-12070155,-565,The Cambridge Nursing Centre,Care Establishment,2 - Commissioning - Older people Pool,Older People Mental Health City & South,Nursing Independent Sector
Cambridgeshire County Council,24-Sep-15,19337674-12070158,-565,The Cambridge Nursing Centre,Care Establishment,2 - Commissioning - Older people Pool,Older People Mental Health City & South,Nursing Independent Sector
Cambridgeshire County Council,24-Sep-15,19337677-12070161,-565,The Cambridge Nursing Centre,Care Establishment,2 - Commissioning - Older people Pool,Older People Mental Health City & South,Nursing Independent Sector
Cambridgeshire County Council,24-Sep-15,19337678-12070162,-565,The Cambridge Nursing Centre,Care Establishment,2 - Commissioning - Older people Pool,Older People Mental Health City & South,Nursing Independent Sector
Cambridgeshire County Council,24-Sep-15,19337679-12070163,-565,The Cambridge Nursing Centre,Care Establishment,2 - Commissioning - Older people Pool,Older People Mental Health City & South,Nursing Independent Sector
Cambridgeshire County Council,24-Sep-15,19337680-12070164,-565,The Cambridge Nursing Centre,Care Establishment,2 - Commissioning - Older people Pool,Older People Mental Health City & South,Nursing Independent Sector
Cambridgeshire County Council,24-Sep-15,19337684-12070168,-565,The Cambridge Nursing Centre,Care Establishment,2 - Commissioning - Older people Pool,Older People Mental Health City & South,Nursing Independent Sector
Cambridgeshire County Council,24-Sep-15,19337685-12070169,-565,The Cambridge Nursing Centre,Care Establishment,2 - Commissioning - Older people Pool,Older People Mental Health City & South,Nursing Independent Sector
Cambridgeshire County Council,24-Sep-15,19337686-12070170,-565,The Cambridge Nursing Centre,Care Establishment,2 - Commissioning - Older people Pool,Older People Mental Health City & South,Nursing Independent Sector
Cambridgeshire County Council,24-Sep-15,19337688-12070172,-565,The Cambridge Nursing Centre,Care Establishment,2 - Commissioning - Older people Pool,Older People Mental Health City & South,Nursing Independent Sector
Cambridgeshire County Council,24-Sep-15,19337690-12070174,-565,The Cambridge Nursing Centre,Care Establishment,2 - Commissioning - Older people Pool,Older People Mental Health City & South,Nursing Independent Sector
Cambridgeshire County Council,24-Sep-15,19337695-12070179,-565,The Cambridge Nursing Centre,Care Establishment,2 - Commissioning - Older people Pool,Older People Mental Health City & South,Nursing Independent Sector
Cambridgeshire County Council,24-Sep-15,19337697-12070181,-565,The Cambridge Nursing Centre,Care Establishment,2 - Commissioning - Older people Pool,Older People Mental Health City & South,Nursing Independent Sector
Cambridgeshire County Council,24-Sep-15,19337701-12070185,-565,The Cambridge Nursing Centre,Care Establishment,2 - Commissioning - Older people Pool,Older People Mental Health City & South,Nursing Independent Sector
Cambridgeshire County Council,24-Sep-15,19337702-12070186,-565,The Cambridge Nursing Centre,Care Establishment,2 - Commissioning - Older people Pool,Older People Mental Health City & South,Nursing Independent Sector
Cambridgeshire County Council,24-Sep-15,19337703-12070187,-565,The Cambridge Nursing Centre,Care Establishment,2 - Commissioning - Older people Pool,Older People Mental Health City & South,Nursing Independent Sector
Cambridgeshire County Council,24-Sep-15,19337705-12070189,-565,The Cambridge Nursing Centre,Care Establishment,2 - Commissioning - Older people Pool,Older People Mental Health City & South,Nursing Independent Sector
Cambridgeshire County Council,24-Sep-15,19337708-12070192,-565,The Cambridge Nursing Centre,Care Establishment,2 - Commissioning - Older people Pool,Older People Mental Health City & South,Nursing Independent Sector
Cambridgeshire County Council,24-Sep-15,19337710-12070194,-565,The Cambridge Nursing Centre,Care Establishment,2 - Commissioning - Older people Pool,Older People Mental Health City & South,Nursing Independent Sector
Cambridgeshire County Council,24-Sep-15,19338586-12069984,-565,The Cambridge Nursing Centre,Care Establishment,2 - Commissioning - Older people Pool,Older People Mental Health City & South,Nursing Independent Sector
Cambridgeshire County Council,24-Sep-15,19338587-12069985,-565,The Cambridge Nursing Centre,Care Establishment,2 - Commissioning - Older people Pool,Older People Mental Health City & South,Nursing Independent Sector
Cambridgeshire County Council,24-Sep-15,19338589-12069986,-565,The Cambridge Nursing Centre,Care Establishment,2 - Commissioning - Older people Pool,Older People Mental Health City & South,Nursing Independent Sector
Cambridgeshire County Council,24-Sep-15,19338590-12069987,-565,The Cambridge Nursing Centre,Care Establishment,2 - Commissioning - Older people Pool,Older People Mental Health City & South,Nursing Independent Sector
Cambridgeshire County Council,24-Sep-15,19338591-12069988,-565,The Cambridge Nursing Centre,Care Establishment,2 - Commissioning - Older people Pool,Older People Mental Health City & South,Nursing Independent Sector
Cambridgeshire County Council,24-Sep-15,19338592-12069989,-565,The Cambridge Nursing Centre,Care Establishment,2 - Commissioning - Older people Pool,Older People Mental Health City & South,Nursing Independent Sector
Cambridgeshire County Council,24-Sep-15,19338593-12069990,-565,The Cambridge Nursing Centre,Care Establishment,2 - Commissioning - Older people Pool,Older People Mental Health City & South,Nursing Independent Sector
Cambridgeshire County Council,24-Sep-15,19338594-12069991,-565,The Cambridge Nursing Centre,Care Establishment,2 - Commissioning - Older people Pool,Older People Mental Health City & South,Nursing Independent Sector
Cambridgeshire County Council,24-Sep-15,19338596-12069993,-565,The Cambridge Nursing Centre,Care Establishment,2 - Commissioning - Older people Pool,Older People Mental Health City & South,Nursing Independent Sector
Cambridgeshire County Council,24-Sep-15,19338597-12069994,-565,The Cambridge Nursing Centre,Care Establishment,2 - Commissioning - Older people Pool,Older People Mental Health City & South,Nursing Independent Sector
Cambridgeshire County Council,24-Sep-15,19338598-12069995,-565,The Cambridge Nursing Centre,Care Establishment,2 - Commissioning - Older people Pool,Older People Mental Health City & South,Nursing Independent Sector
Cambridgeshire County Council,24-Sep-15,19338599-12069996,-565,The Cambridge Nursing Centre,Care Establishment,2 - Commissioning - Older people Pool,Older People Mental Health City & South,Nursing Independent Sector
Cambridgeshire County Council,24-Sep-15,19338605-12070002,-565,The Cambridge Nursing Centre,Care Establishment,2 - Commissioning - Older people Pool,Older People Mental Health City & South,Nursing Independent Sector
Cambridgeshire County Council,24-Sep-15,19338609-12070006,-565,The Cambridge Nursing Centre,Care Establishment,2 - Commissioning - Older people Pool,Older People Mental Health City & South,Nursing Independent Sector
Cambridgeshire County Council,24-Sep-15,19338618-12070015,-565,The Cambridge Nursing Centre,Care Establishment,2 - Commissioning - Older people Pool,Older People Mental Health City & South,Nursing Independent Sector
Cambridgeshire County Council,24-Sep-15,19338619-12070016,-565,The Cambridge Nursing Centre,Care Establishment,2 - Commissioning - Older people Pool,Older People Mental Health City & South,Nursing Independent Sector
Cambridgeshire County Council,24-Sep-15,19338621-12070018,-565,The Cambridge Nursing Centre,Care Establishment,2 - Commissioning - Older people Pool,Older People Mental Health City & South,Nursing Independent Sector
Cambridgeshire County Council,24-Sep-15,19338622-12070019,-565,The Cambridge Nursing Centre,Care Establishment,2 - Commissioning - Older people Pool,Older People Mental Health City & South,Nursing Independent Sector
Cambridgeshire County Council,24-Sep-15,19338623-12070020,-565,The Cambridge Nursing Centre,Care Establishment,2 - Commissioning - Older people Pool,Older People Mental Health City & South,Nursing Independent Sector
Cambridgeshire County Council,24-Sep-15,19338625-12070021,-565,The Cambridge Nursing Centre,Care Establishment,2 - Commissioning - Older people Pool,Older People Mental Health City & South,Nursing Independent Sector
Cambridgeshire County Council,24-Sep-15,19338627-12070022,-565,The Cambridge Nursing Centre,Care Establishment,2 - Commissioning - Older people Pool,Older People Mental Health City & South,Nursing Independent Sector
Cambridgeshire County Council,18-Sep-15,19286096-12026007,-563,Hales Group Limited,Trade Supplier,2 - Commissioning - Older people Pool,Hunts O P  Team,Day and Domicillary Care Independent Sector
Cambridgeshire County Council,18-Sep-15,19298510-12033371,-559,Woodlands Care Centre,Care Establishment,2 - Commissioning - Older people Pool,North City Older People's Integrated Team,Nursing Independent Sector
Cambridgeshire County Council,18-Sep-15,19298511-12033372,-559,Woodlands Care Centre,Care Establishment,2 - Commissioning - Older people Pool,North City Older People's Integrated Team,Nursing Independent Sector
Cambridgeshire County Council,24-Sep-15,19333115-12067873,-557,Barchester Healthcare Homes Ltd,Care Establishment,2 - Commissioning - Older people Pool,East Cambs - O P Team,Nursing Independent Sector
Cambridgeshire County Council,24-Sep-15,19333116-12067874,-557,Barchester Healthcare Homes Ltd,Care Establishment,2 - Commissioning - Older people Pool,East Cambs - O P Team,Nursing Independent Sector
